Organisation name,Organisation Code,Effective date,Directorate / service where expenditure incurred,Service Category label,Service category URI,Supplier (Beneficiary) name,Local supplier (beneficiary) internal reference,Supplier,Supplier registered charity number,VCSE grant,Payment date - G/L Date,Transaction number,Net Amount,Irrecoverable VAT,purpose_of_spend,Procurement classification / merchant category: Council�s procurement category name,Procurement classification / merchant category: CPV label,Procurement classification / merchant category: CPV code,Procurement classification / merchant category: Proclass label,Procurement classification / merchant category: Proclass code,card_transaction
The Royal Borough of Kensington and Chelsea,RBKC,,Adult Social Care,Director Integrated Commissioning,,Medequip Assistive Technology Ltd ,1234994,,,,06/04/2021,2200161677,708.00,,Hired and Contracted Services,,,,,,No
The Royal Borough of Kensington and Chelsea,RBKC,,Adult Social Care,Director Integrated Commissioning,,Medequip Assistive Technology Ltd ,1234994,,,,06/04/2021,2200161678,"154,637.97",,Hired and Contracted Services,,,,,,No
The Royal Borough of Kensington and Chelsea,RBKC,,Adult Social Care,Director Integrated Commissioning,,Medequip Assistive Technology Ltd ,1234994,,,,18/05/2021,2200170944,"126,812.02",,Hired and Contracted Services,,,,,,No
The Royal Borough of Kensington and Chelsea,RBKC,,Adult Social Care,Director Integrated Commissioning,,Medequip Assistive Technology Ltd ,1234994,,,,23/06/2021,2200178412,"1,092.00",,Hired and Contracted Services,,,,,,No
The Royal Borough of Kensington and Chelsea,RBKC,,Adult Social Care,Director Integrated Commissioning,,Medequip Assistive Technology Ltd ,1234994,,,,29/06/2021,2200179311,"121,033.36",,Hired and Contracted Services,,,,,,No
The Royal Borough of Kensington and Chelsea,RBKC,,Adult Social Care,Director Adult Social Care,,Buddi Limited,1280098,,,,23/06/2021,2200178446,"3,239.00",,Payments to Voluntary bodies,,,,,,No
The Royal Borough of Kensington and Chelsea,RBKC,,Adult Social Care,Director Adult Social Care,,Doro AB,1274450,,,,01/04/2021,2200161619,"1,830.00",,Payments to Voluntary bodies,,,,,,No
The Royal Borough of Kensington and Chelsea,RBKC,,Adult Social Care,Director Adult Social Care,,Doro AB,1274450,,,,07/04/2021,2200162050,"1,300.00",,Payments to Voluntary bodies,,,,,,No
The Royal Borough of Kensington and Chelsea,RBKC,,Adult Social Care,Director Adult Social Care,,Red Alert Ltd ,1231238,,,,27/04/2021,2200166395,700.00,,Payments to Voluntary bodies,,,,,,No
The Royal Borough of Kensington and Chelsea,RBKC,,Adult Social Care,Director Adult Social Care,,Red Alert Ltd ,1231238,,,,19/05/2021,2200171203,"1,400.00",,Payments to Voluntary bodies,,,,,,No
The Royal Borough of Kensington and Chelsea,RBKC,,Adult Social Care,Director Adult Social Care,,Red Alert Ltd ,1231238,,,,27/05/2021,2200173311,700.00,,Payments to Voluntary bodies,,,,,,No
The Royal Borough of Kensington and Chelsea,RBKC,,Adult Social Care,Director Adult Social Care,,Red Alert Ltd ,1231238,,,,02/06/2021,2200174052,700.00,,Payments to Voluntary bodies,,,,,,No
The Royal Borough of Kensington and Chelsea,RBKC,,Adult Social Care,Director Adult Social Care,,Red Alert Ltd ,1231238,,,,29/06/2021,2200179317,"2,100.00",,Payments to Voluntary bodies,,,,,,No
The Royal Borough of Kensington and Chelsea,RBKC,,Adult Social Care,Director Adult Social Care,,Red Alert Ltd ,1231238,,,,29/06/2021,2200179318,700.00,,Payments to Voluntary bodies,,,,,,No
The Royal Borough of Kensington and Chelsea,RBKC,,Adult Social Care,Director Adult Social Care,,Tunstall Healthcare (UK) Ltd (Use 3012996),1235586,,,,01/04/2021,2200161227,"8,895.25",,Payments to Voluntary bodies,,,,,,No
The Royal Borough of Kensington and Chelsea,RBKC,,Adult Social Care,Director Adult Social Care,,Tunstall Healthcare (UK) Ltd (Use 3012996),1235586,,,,01/04/2021,2200161228,"1,873.50",,Payments to Voluntary bodies,,,,,,No
The Royal Borough of Kensington and Chelsea,RBKC,,Adult Social Care,Director Adult Social Care,,Tunstall Healthcare (UK) Ltd (Use 3012996),1235586,,,,30/04/2021,2200167265,936.75,,Payments to Voluntary bodies,,,,,,No
The Royal Borough of Kensington and Chelsea,RBKC,,Adult Social Care,Director Adult Social Care,,Tunstall Healthcare (UK) Ltd (Use 3012996),1235586,,,,11/05/2021,2200169344,936.75,,Payments to Voluntary bodies,,,,,,No
The Royal Borough of Kensington and Chelsea,RBKC,,Adult Social Care,Director Adult Social Care,,Tunstall Healthcare (UK) Ltd (Use 3012996),1235586,,,,20/05/2021,2200171655,"2,725.00",,Payments to Voluntary bodies,,,,,,No
The Royal Borough of Kensington and Chelsea,RBKC,,Adult Social Care,Director Adult Social Care,,Tunstall Healthcare (UK) Ltd (Use 3012996),1235586,,,,22/06/2021,2200177925,"2,725.00",,Payments to Voluntary bodies,,,,,,No
The Royal Borough of Kensington and Chelsea,RBKC,,Adult Social Care,Director Adult Social Care,,Tunstall Healthcare (UK) Ltd (Use 3012996),1235586,,,,25/06/2021,2200178966,"1,635.00",,Payments to Voluntary bodies,,,,,,No
The Royal Borough of Kensington and Chelsea,RBKC,,Adult Social Care,Director Adult Social Care,,Tunstall Healthcare (UK) Ltd (Use 3012996),1235586,,,,30/06/2021,2200179536,"1,635.00",,Payments to Voluntary bodies,,,,,,No
The Royal Borough of Kensington and Chelsea,RBKC,,Adult Social Care,Director Adult Social Care,,Tunstall Response Ltd ,1235587,,,,26/04/2021,2200166225,"11,228.62",,Domestic Supplies,,,,,,No
The Royal Borough of Kensington and Chelsea,RBKC,,Environment & Communities,Planning and Place,,Sage Green Safety Ltd,1269431,,,,22/04/2021,2200165571,"1,800.00",,Service Charges - Premises,,,,,,No
The Royal Borough of Kensington and Chelsea,RBKC,,Environment & Communities,Planning and Place,,Sage Green Safety Ltd,1269431,,,,27/04/2021,2200166464,800.00,,Service Charges - Premises,,,,,,No
The Royal Borough of Kensington and Chelsea,RBKC,,Environment & Communities,Planning and Place,,Sage Green Safety Ltd,1269431,,,,23/06/2021,2200178399,800.00,,Service Charges - Premises,,,,,,No
The Royal Borough of Kensington and Chelsea,RBKC,,Environment & Communities,Planning and Place,,Sage Green Safety Ltd,1269431,,,,23/06/2021,2200178400,"1,800.00",,Service Charges - Premises,,,,,,No
The Royal Borough of Kensington and Chelsea,RBKC,,Environment & Communities,Planning and Place,,Sage Green Safety Ltd,1269431,,,,30/06/2021,2200179512,800.00,,Service Charges - Premises,,,,,,No
The Royal Borough of Kensington and Chelsea,RBKC,,Environment & Communities,Planning and Place,,Ihs Global Ltd,1234760,,,,19/04/2021,2200164427,"2,521.67",,Subscriptions,,,,,,No
The Royal Borough of Kensington and Chelsea,RBKC,,Environment & Communities,Planning and Place,,London District Surveyors,1234927,,,,23/04/2021,2200165835,695.00,,Subscriptions,,,,,,No
The Royal Borough of Kensington and Chelsea,RBKC,,Environment & Communities,"Cleaner, Greener and Cultural Services",,C J Jordan & Son Ltd ,1233031,,,,27/04/2021,2200166470,763.01,,Hired and Contracted Services,,,,,,No
The Royal Borough of Kensington and Chelsea,RBKC,,Environment & Communities,"Cleaner, Greener and Cultural Services",,C J Jordan & Son Ltd ,1233031,,,,28/04/2021,2200166667,619.82,,Hired and Contracted Services,,,,,,No
The Royal Borough of Kensington and Chelsea,RBKC,,Environment & Communities,"Cleaner, Greener and Cultural Services",,C J Jordan & Son Ltd ,1233031,,,,28/04/2021,2200166670,"2,040.70",,Hired and Contracted Services,,,,,,No
The Royal Borough of Kensington and Chelsea,RBKC,,Environment & Communities,"Cleaner, Greener and Cultural Services",,C J Jordan & Son Ltd ,1233031,,,,28/04/2021,2200166674,"1,467.94",,Hired and Contracted Services,,,,,,No
The Royal Borough of Kensington and Chelsea,RBKC,,Environment & Communities,"Cleaner, Greener and Cultural Services",,C J Jordan & Son Ltd ,1233031,,,,25/05/2021,2200172390,930.41,,Hired and Contracted Services,,,,,,No
The Royal Borough of Kensington and Chelsea,RBKC,,Environment & Communities,"Cleaner, Greener and Cultural Services",,C J Jordan & Son Ltd ,1233031,,,,25/05/2021,2200172393,543.72,,Hired and Contracted Services,,,,,,No
The Royal Borough of Kensington and Chelsea,RBKC,,Environment & Communities,"Cleaner, Greener and Cultural Services",,C J Jordan & Son Ltd ,1233031,,,,22/06/2021,2200178021,529.20,,Hired and Contracted Services,,,,,,No
The Royal Borough of Kensington and Chelsea,RBKC,,Environment & Communities,"Cleaner, Greener and Cultural Services",,C J Jordan & Son Ltd ,1233031,,,,22/06/2021,2200178022,"1,602.12",,Hired and Contracted Services,,,,,,No
The Royal Borough of Kensington and Chelsea,RBKC,,Environment & Communities,"Cleaner, Greener and Cultural Services",,C J Jordan & Son Ltd ,1233031,,,,22/06/2021,2200178024,906.20,,Hired and Contracted Services,,,,,,No
The Royal Borough of Kensington and Chelsea,RBKC,,Environment & Communities,"Cleaner, Greener and Cultural Services",,C J Jordan & Son Ltd ,1233031,,,,22/06/2021,2200178032,906.20,,Hired and Contracted Services,,,,,,No
The Royal Borough of Kensington and Chelsea,RBKC,,Environment & Communities,"Cleaner, Greener and Cultural Services",,Clear Skies Software Ltd,1233403,,,,21/06/2021,2200177641,"1,850.00",,B*Purchase & Processing Of Films,,,,,,No
The Royal Borough of Kensington and Chelsea,RBKC,,Environment & Communities,"Cleaner, Greener and Cultural Services",,Redact Details,1234806,,,,10/06/2021,2200175723,"1,013.00",,Equipment,,,,,,No
The Royal Borough of Kensington and Chelsea,RBKC,,Environment & Communities,"Cleaner, Greener and Cultural Services",,Redact Details,1234806,,,,10/06/2021,2200175728,"1,058.00",,Equipment,,,,,,No
The Royal Borough of Kensington and Chelsea,RBKC,,Environment & Communities,"Cleaner, Greener and Cultural Services",,Redact Details,1234806,,,,11/06/2021,2200176063,"1,170.00",,Equipment,,,,,,No
The Royal Borough of Kensington and Chelsea,RBKC,,Environment & Communities,"Cleaner, Greener and Cultural Services",,Quadron Services Ltd T/A Idverde ,1231423,,,,12/04/2021,2200163107,"1,239.36",,Grounds Maintenance Contracts,,,,,,No
The Royal Borough of Kensington and Chelsea,RBKC,,Environment & Communities,"Cleaner, Greener and Cultural Services",,Quadron Services Ltd T/A Idverde ,1231423,,,,12/04/2021,2200163107,"54,458.26",,Grounds Maintenance Contracts,,,,,,No
The Royal Borough of Kensington and Chelsea,RBKC,,Environment & Communities,"Cleaner, Greener and Cultural Services",,Quadron Services Ltd T/A Idverde ,1231423,,,,27/04/2021,2200166459,"54,458.26",,Grounds Maintenance Contracts,,,,,,No
The Royal Borough of Kensington and Chelsea,RBKC,,Environment & Communities,"Cleaner, Greener and Cultural Services",,Quadron Services Ltd T/A Idverde ,1231423,,,,27/04/2021,2200166459,"1,239.36",,Grounds Maintenance Contracts,,,,,,No
The Royal Borough of Kensington and Chelsea,RBKC,,Environment & Communities,"Cleaner, Greener and Cultural Services",,Quadron Services Ltd T/A Idverde ,1231423,,,,10/05/2021,2200168710,"54,458.26",,Grounds Maintenance Contracts,,,,,,No
The Royal Borough of Kensington and Chelsea,RBKC,,Environment & Communities,"Cleaner, Greener and Cultural Services",,Quadron Services Ltd T/A Idverde ,1231423,,,,10/05/2021,2200168710,"1,239.36",,Grounds Maintenance Contracts,,,,,,No
The Royal Borough of Kensington and Chelsea,RBKC,,Environment & Communities,"Cleaner, Greener and Cultural Services",,Quadron Services Ltd T/A Idverde ,1231423,,,,07/06/2021,2200175062,"1,239.36",,Grounds Maintenance Contracts,,,,,,No
The Royal Borough of Kensington and Chelsea,RBKC,,Environment & Communities,"Cleaner, Greener and Cultural Services",,Quadron Services Ltd T/A Idverde ,1231423,,,,07/06/2021,2200175062,"54,458.26",,Grounds Maintenance Contracts,,,,,,No
The Royal Borough of Kensington and Chelsea,RBKC,,Resources and Customer Delivery,Customer Delivery,,London Borough of Ealing,D000000023,,,,21/05/2021,3110308746,"14,736.57",,Uniform Business Rates,,,,,,No
The Royal Borough of Kensington and Chelsea,RBKC,,Resources and Customer Delivery,Customer Delivery,,London Borough Of Hounslow ,1231811,,,,22/06/2021,3110320694,"33,280.00",,Uniform Business Rates,,,,,,No
The Royal Borough of Kensington and Chelsea,RBKC,,Environment & Communities,Communities,,City Of Westminster ,1231771,,,,29/06/2021,2200179455,"81,326.29",,Hired and Contracted Services,,,,,,No
The Royal Borough of Kensington and Chelsea,RBKC,,Capital,Capital,,24 Seven Companies Ltd,1260952,,,,22/06/2021,2200178061,"1,000.00",,Payments to main contractor,,,,,,No
The Royal Borough of Kensington and Chelsea,RBKC,,Capital,Capital,,24 Seven Companies Ltd,1260952,,,,22/06/2021,2200178062,500.00,,Payments to main contractor,,,,,,No
The Royal Borough of Kensington and Chelsea,RBKC,,Capital,Capital,,3Bm Ltd ,1232075,,,,26/04/2021,2200166153,"3,500.00",,Payments to main contractor,,,,,,No
The Royal Borough of Kensington and Chelsea,RBKC,,Capital,Capital,,3Bm Ltd ,1232075,,,,12/05/2021,2200169743,"12,223.18",,Payments to main contractor,,,,,,No
The Royal Borough of Kensington and Chelsea,RBKC,,Capital,Capital,,3Bm Ltd ,1232075,,,,13/05/2021,2200169990,"29,576.00",,Payments to main contractor,,,,,,No
The Royal Borough of Kensington and Chelsea,RBKC,,Capital,Capital,,3Bm Ltd ,1232075,,,,13/05/2021,2200169990,"2,957.60",,Payments to main contractor,,,,,,No
The Royal Borough of Kensington and Chelsea,RBKC,,Capital,Capital,,3Bm Ltd ,1232075,,,,13/05/2021,2200169991,"38,479.90",,Payments to main contractor,,,,,,No
The Royal Borough of Kensington and Chelsea,RBKC,,Capital,Capital,,3Bm Ltd ,1232075,,,,13/05/2021,2200169991,"3,848.00",,Payments to main contractor,,,,,,No
The Royal Borough of Kensington and Chelsea,RBKC,,Capital,Capital,,3Bm Ltd ,1232075,,,,13/05/2021,2200169992,"1,908.30",,Payments to main contractor,,,,,,No
The Royal Borough of Kensington and Chelsea,RBKC,,Capital,Capital,,3Bm Ltd ,1232075,,,,13/05/2021,2200169992,"19,083.00",,Payments to main contractor,,,,,,No
The Royal Borough of Kensington and Chelsea,RBKC,,Capital,Capital,,3Bm Ltd ,1232075,,,,13/05/2021,2200169994,"6,270.00",,Payments to main contractor,,,,,,No
The Royal Borough of Kensington and Chelsea,RBKC,,Capital,Capital,,3Bm Ltd ,1232075,,,,13/05/2021,2200169994,627.00,,Payments to main contractor,,,,,,No
The Royal Borough of Kensington and Chelsea,RBKC,,Capital,Capital,,3Bm Ltd ,1232075,,,,13/05/2021,2200170189,"1,100.00",,Payments to main contractor,,,,,,No
The Royal Borough of Kensington and Chelsea,RBKC,,Capital,Capital,,3Bm Ltd ,1232075,,,,10/06/2021,2200175738,"13,200.00",,Payments to main contractor,,,,,,No
The Royal Borough of Kensington and Chelsea,RBKC,,Capital,Capital,,3Bm Ltd ,1232075,,,,10/06/2021,2200175739,"8,222.50",,Payments to main contractor,,,,,,No
The Royal Borough of Kensington and Chelsea,RBKC,,Capital,Capital,,3Bm Ltd ,1232075,,,,10/06/2021,2200175740,"2,090.00",,Payments to main contractor,,,,,,No
The Royal Borough of Kensington and Chelsea,RBKC,,Capital,Capital,,3Bm Ltd ,1232075,,,,10/06/2021,2200175741,"25,753.20",,Payments to main contractor,,,,,,No
The Royal Borough of Kensington and Chelsea,RBKC,,Capital,Capital,,3Bm Ltd ,1232075,,,,22/06/2021,2200177991,"8,250.00",,Payments to main contractor,,,,,,No
The Royal Borough of Kensington and Chelsea,RBKC,,Capital,Capital,,3Bm Ltd ,1232075,,,,23/06/2021,2200178444,"1,100.00",,Payments to main contractor,,,,,,No
The Royal Borough of Kensington and Chelsea,RBKC,,Capital,Capital,,3Bm Ltd ,1232075,,,,23/06/2021,2200178445,"1,100.00",,Payments to main contractor,,,,,,No
The Royal Borough of Kensington and Chelsea,RBKC,,Capital,Capital,,A N Contract Service Ltd ,1232095,,,,01/04/2021,2200163126,"1,500.00",,Planned Maintenance (CM),,,,,,No
The Royal Borough of Kensington and Chelsea,RBKC,,Capital,Capital,,A N Contract Service Ltd ,1232095,,,,04/05/2021,2200167640,"8,193.50",,Planned Maintenance (CM),,,,,,No
The Royal Borough of Kensington and Chelsea,RBKC,,Capital,Capital,,A N Contract Service Ltd ,1232095,,,,05/05/2021,2200167954,"2,375.00",,Planned Maintenance (CM),,,,,,No
The Royal Borough of Kensington and Chelsea,RBKC,,Capital,Capital,,A N Contract Service Ltd ,1232095,,,,10/05/2021,2200168739,"3,950.00",,Planned Maintenance (CM),,,,,,No
The Royal Borough of Kensington and Chelsea,RBKC,,Capital,Capital,,A N Contract Service Ltd ,1232095,,,,10/05/2021,2200168741,"9,583.34",,Planned Maintenance (CM),,,,,,No
The Royal Borough of Kensington and Chelsea,RBKC,,Capital,Capital,,A N Contract Service Ltd ,1232095,,,,10/05/2021,2200168744,"19,183.34",,Planned Maintenance (CM),,,,,,No
The Royal Borough of Kensington and Chelsea,RBKC,,Capital,Capital,,A N Contract Service Ltd ,1232095,,,,10/05/2021,2200168746,"15,671.34",,Planned Maintenance (CM),,,,,,No
The Royal Borough of Kensington and Chelsea,RBKC,,Capital,Capital,,A N Contract Service Ltd ,1232095,,,,10/05/2021,2200168747,"4,900.00",,Planned Maintenance (CM),,,,,,No
The Royal Borough of Kensington and Chelsea,RBKC,,Capital,Capital,,A N Contract Service Ltd ,1232095,,,,10/05/2021,2200168751,"14,710.00",,Planned Maintenance (CM),,,,,,No
The Royal Borough of Kensington and Chelsea,RBKC,,Capital,Capital,,A N Contract Service Ltd ,1232095,,,,10/05/2021,2200168807,"4,800.00",,Planned Maintenance (CM),,,,,,No
The Royal Borough of Kensington and Chelsea,RBKC,,Capital,Capital,,A N Contract Service Ltd ,1232095,,,,10/05/2021,2200168810,"18,944.00",,Planned Maintenance (CM),,,,,,No
The Royal Borough of Kensington and Chelsea,RBKC,,Capital,Capital,,A N Contract Service Ltd ,1232095,,,,10/05/2021,2200168813,"9,556.00",,Planned Maintenance (CM),,,,,,No
The Royal Borough of Kensington and Chelsea,RBKC,,Capital,Capital,,A N Contract Service Ltd ,1232095,,,,10/05/2021,2200168833,"2,777.50",,Planned Maintenance (CM),,,,,,No
The Royal Borough of Kensington and Chelsea,RBKC,,Capital,Capital,,A N Contract Service Ltd ,1232095,,,,10/05/2021,2200168834,"1,875.50",,Planned Maintenance (CM),,,,,,No
The Royal Borough of Kensington and Chelsea,RBKC,,Capital,Capital,,A N Contract Service Ltd ,1232095,,,,10/05/2021,2200168836,"11,851.00",,Planned Maintenance (CM),,,,,,No
The Royal Borough of Kensington and Chelsea,RBKC,,Capital,Capital,,A N Contract Service Ltd ,1232095,,,,10/05/2021,2200168837,987.50,,Planned Maintenance (CM),,,,,,No
The Royal Borough of Kensington and Chelsea,RBKC,,Capital,Capital,,A N Contract Service Ltd ,1232095,,,,10/05/2021,2200168838,"1,875.50",,Planned Maintenance (CM),,,,,,No
The Royal Borough of Kensington and Chelsea,RBKC,,Capital,Capital,,A N Contract Service Ltd ,1232095,,,,10/05/2021,2200168839,"1,775.50",,Planned Maintenance (CM),,,,,,No
The Royal Borough of Kensington and Chelsea,RBKC,,Capital,Capital,,A N Contract Service Ltd ,1232095,,,,10/05/2021,2200168840,"1,600.00",,Planned Maintenance (CM),,,,,,No
The Royal Borough of Kensington and Chelsea,RBKC,,Capital,Capital,,A N Contract Service Ltd ,1232095,,,,10/05/2021,2200168841,"23,293.25",,Planned Maintenance (CM),,,,,,No
The Royal Borough of Kensington and Chelsea,RBKC,,Capital,Capital,,A N Contract Service Ltd ,1232095,,,,20/05/2021,2200171502,"10,492.00",,Planned Maintenance (CM),,,,,,No
The Royal Borough of Kensington and Chelsea,RBKC,,Capital,Capital,,A N Contract Service Ltd ,1232095,,,,25/05/2021,2200172328,"20,233.00",,Planned Maintenance (CM),,,,,,No
The Royal Borough of Kensington and Chelsea,RBKC,,Capital,Capital,,A N Contract Service Ltd ,1232095,,,,25/05/2021,2200172329,"7,638.00",,Planned Maintenance (CM),,,,,,No
The Royal Borough of Kensington and Chelsea,RBKC,,Capital,Capital,,A N Contract Service Ltd ,1232095,,,,21/06/2021,2200177680,"9,850.00",,Planned Maintenance (CM),,,,,,No
The Royal Borough of Kensington and Chelsea,RBKC,,Capital,Capital,,A N Contract Service Ltd ,1232095,,,,29/06/2021,2200179400,"17,800.00",,Planned Maintenance (CM),,,,,,No
The Royal Borough of Kensington and Chelsea,RBKC,,Capital,Capital,,ABCA Systems LTD ,1252858,,,,10/05/2021,2200169056,"17,055.00",,Payments to main contractor,,,,,,No
The Royal Borough of Kensington and Chelsea,RBKC,,Capital,Capital,,ABCA Systems LTD ,1252858,,,,22/06/2021,2200178207,"32,579.60",,Payments to main contractor,,,,,,No
The Royal Borough of Kensington and Chelsea,RBKC,,Capital,Capital,,ACS PROFESSIONALS IN CONSTRUCTION L,1277658,,,,22/04/2021,2200165656,"300,200.00",,Payments to main contractor,,,,,,No
The Royal Borough of Kensington and Chelsea,RBKC,,Capital,Capital,,ACS PROFESSIONALS IN CONSTRUCTION L,1277658,,,,20/05/2021,2200171578,"298,500.00",,Payments to main contractor,,,,,,No
The Royal Borough of Kensington and Chelsea,RBKC,,Capital,Capital,,ACS PROFESSIONALS IN CONSTRUCTION L,1277658,,,,08/06/2021,2200175278,"278,575.00",,Payments to main contractor,,,,,,No
The Royal Borough of Kensington and Chelsea,RBKC,,Capital,Capital,,AECB,1278413,,,,11/06/2021,2200176018,"1,640.00",,Payments to main contractor,,,,,,No
The Royal Borough of Kensington and Chelsea,RBKC,,Capital,Capital,,AJ Mobility Ltd,1258634,,,,03/06/2021,2200174337,899.04,,Payments to main contractor,,,,,,No
The Royal Borough of Kensington and Chelsea,RBKC,,Capital,Capital,,AJ Products (UK) Ltd,1269768,,,,20/05/2021,2200171454,825.00,,Health and Safety Alterations,,,,,,No
The Royal Borough of Kensington and Chelsea,RBKC,,Capital,Capital,,Ans Group Ltd,1265384,,,,05/05/2021,2200167906,"7,500.00",,Computer Software,,,,,,No
The Royal Borough of Kensington and Chelsea,RBKC,,Capital,Capital,,Ans Group Ltd,1265384,,,,20/05/2021,2200171611,"47,712.50",,Computer Software,,,,,,No
The Royal Borough of Kensington and Chelsea,RBKC,,Capital,Capital,,Ans Group Ltd,1265384,,,,27/05/2021,2200173304,"7,500.00",,Computer Software,,,,,,No
The Royal Borough of Kensington and Chelsea,RBKC,,Capital,Capital,,AO Business,1232416,,,,17/06/2021,2200177192,"4,142.03",,Special Maintenance,,,,,,No
The Royal Borough of Kensington and Chelsea,RBKC,,Capital,Capital,,AO Business,1232416,,,,17/06/2021,2200177193,"1,140.75",,Special Maintenance,,,,,,No
The Royal Borough of Kensington and Chelsea,RBKC,,Capital,Capital,,AO Business,1232416,,,,17/06/2021,2200177195,"4,142.05",,Special Maintenance,,,,,,No
The Royal Borough of Kensington and Chelsea,RBKC,,Capital,Capital,,AO Business,1232416,,,,17/06/2021,2200177196,"8,284.10",,Special Maintenance,,,,,,No
The Royal Borough of Kensington and Chelsea,RBKC,,Capital,Capital,,Abbey Builders Ltd ,1232102,,,,30/06/2021,2200179621,"7,165.78",,Payments to main contractor,,,,,,No
The Royal Borough of Kensington and Chelsea,RBKC,,Capital,Capital,,Abc Building & Maintenance Contractors,1231156,,,,24/05/2021,2200172059,"7,078.00",,Payments to main contractor,,,,,,No
The Royal Borough of Kensington and Chelsea,RBKC,,Capital,Capital,,Academy Consulting Solutions Ltd ,1232117,,,,06/04/2021,2200161595,"2,000.00",,Other Consultants,,,,,,No
The Royal Borough of Kensington and Chelsea,RBKC,,Capital,Capital,,Academy Consulting Solutions Ltd ,1232117,,,,09/04/2021,2200162589,"6,000.00",,Payments to main contractor,,,,,,No
The Royal Borough of Kensington and Chelsea,RBKC,,Capital,Capital,,Academy Consulting Solutions Ltd ,1232117,,,,20/04/2021,2200164834,"7,000.00",,Quantity Surveyors,,,,,,No
The Royal Borough of Kensington and Chelsea,RBKC,,Capital,Capital,,Academy Consulting Solutions Ltd ,1232117,,,,04/05/2021,2200167600,"6,500.00",,Payments to main contractor,,,,,,No
The Royal Borough of Kensington and Chelsea,RBKC,,Capital,Capital,,Academy Consulting Solutions Ltd ,1232117,,,,02/06/2021,2200173894,"6,500.00",,Payments to main contractor,,,,,,No
The Royal Borough of Kensington and Chelsea,RBKC,,Capital,Capital,,Academy Consulting Solutions Ltd ,1232117,,,,02/06/2021,2200173896,"2,000.00",,Other Consultants,,,,,,No
The Royal Borough of Kensington and Chelsea,RBKC,,Capital,Capital,,Ad Esse Consulting Ltd,1280011,,,,08/06/2021,2200175285,"8,852.92",,Design Consultant,,,,,,No
The Royal Borough of Kensington and Chelsea,RBKC,,Capital,Capital,,Adaptations MW Ltd,1272466,,,,25/05/2021,2200172405,"7,220.00",,Payments to main contractor,,,,,,No
The Royal Borough of Kensington and Chelsea,RBKC,,Capital,Capital,,Adaptations MW Ltd,1272466,,,,15/06/2021,2200176667,"7,019.00",,Payments to main contractor,,,,,,No
The Royal Borough of Kensington and Chelsea,RBKC,,Capital,Capital,,Allies & Morrison LLP ,1232371,,,,15/04/2021,2200163874,"22,686.00",,Payments to main contractor,,,,,,No
The Royal Borough of Kensington and Chelsea,RBKC,,Capital,Capital,,Allies & Morrison LLP ,1232371,,,,15/04/2021,2200163876,"2,205.00",,Payments to main contractor,,,,,,No
The Royal Borough of Kensington and Chelsea,RBKC,,Capital,Capital,,Allies & Morrison LLP ,1232371,,,,15/04/2021,2200163937,"1,484.85",,HCC - Architects,,,,,,No
The Royal Borough of Kensington and Chelsea,RBKC,,Capital,Capital,,Allies & Morrison LLP ,1232371,,,,19/04/2021,2200164535,"63,512.38",,Payments to main contractor,,,,,,No
The Royal Borough of Kensington and Chelsea,RBKC,,Capital,Capital,,Allies & Morrison LLP ,1232371,,,,20/04/2021,2200164900,"2,100.00",,Payments to main contractor,,,,,,No
The Royal Borough of Kensington and Chelsea,RBKC,,Capital,Capital,,Allies & Morrison LLP ,1232371,,,,05/05/2021,2200167968,"5,671.50",,Payments to main contractor,,,,,,No
The Royal Borough of Kensington and Chelsea,RBKC,,Capital,Capital,,Allies & Morrison LLP ,1232371,,,,12/05/2021,2200169648,"2,631.74",,Romanse Expenses,,,,,,No
The Royal Borough of Kensington and Chelsea,RBKC,,Capital,Capital,,Allies & Morrison LLP ,1232371,,,,13/05/2021,2200170042,"2,631.74",,Romanse Expenses,,,,,,No
The Royal Borough of Kensington and Chelsea,RBKC,,Capital,Capital,,Allies & Morrison LLP ,1232371,,,,16/06/2021,2200176990,"5,671.50",,Payments to main contractor,,,,,,No
The Royal Borough of Kensington and Chelsea,RBKC,,Capital,Capital,,Ansador Ltd ,1232405,,,,24/05/2021,2200172163,"108,639.38",,Payments to main contractor,,,,,,No
The Royal Borough of Kensington and Chelsea,RBKC,,Capital,Capital,,Aqua Environemntal Services Ltd,1261585,,,,01/04/2021,2200161403,"2,106.00",,Water provision,,,,,,No
The Royal Borough of Kensington and Chelsea,RBKC,,Capital,Capital,,Aquaneed Ltd,1260944,,,,01/04/2021,2200161659,"1,043.57",,Payments to main contractor,,,,,,No
The Royal Borough of Kensington and Chelsea,RBKC,,Capital,Capital,,Aquaneed Ltd,1260944,,,,01/04/2021,2200162807,"6,544.85",,Payments to main contractor,,,,,,No
The Royal Borough of Kensington and Chelsea,RBKC,,Capital,Capital,,Aquaneed Ltd,1260944,,,,06/04/2021,2200161654,"6,537.88",,Payments to main contractor,,,,,,No
The Royal Borough of Kensington and Chelsea,RBKC,,Capital,Capital,,Aquaneed Ltd,1260944,,,,06/04/2021,2200161658,"6,377.05",,Payments to main contractor,,,,,,No
The Royal Borough of Kensington and Chelsea,RBKC,,Capital,Capital,,Aquaneed Ltd,1260944,,,,27/05/2021,2200173237,"1,194.78",,Payments to main contractor,,,,,,No
The Royal Borough of Kensington and Chelsea,RBKC,,Capital,Capital,,Aquaneed Ltd,1260944,,,,27/05/2021,2200173291,"2,903.51",,Payments to main contractor,,,,,,No
The Royal Borough of Kensington and Chelsea,RBKC,,Capital,Capital,,Aquaneed Ltd,1260944,,,,15/06/2021,2200176669,"1,317.73",,Payments to main contractor,,,,,,No
The Royal Borough of Kensington and Chelsea,RBKC,,Capital,Capital,,Arcadis Llp ,1232430,,,,01/04/2021,2200161624,"5,000.00",,,,,,,,No
The Royal Borough of Kensington and Chelsea,RBKC,,Capital,Capital,,Arcadis Llp ,1232430,,,,04/05/2021,2200167738,"30,911.00",,Romanse Expenses,,,,,,No
The Royal Borough of Kensington and Chelsea,RBKC,,Capital,Capital,,Arcadis Llp ,1232430,,,,05/05/2021,2200167966,"5,000.00",,,,,,,,No
The Royal Borough of Kensington and Chelsea,RBKC,,Capital,Capital,,Arcadis Llp ,1232430,,,,27/05/2021,2200173236,"5,000.00",,,,,,,,No
The Royal Borough of Kensington and Chelsea,RBKC,,Capital,Capital,,Arcadis Llp ,1232430,,,,15/06/2021,2200176619,"5,000.00",,Payments to main contractor,,,,,,No
The Royal Borough of Kensington and Chelsea,RBKC,,Capital,Capital,,Arcus Consulting Llp,1265536,,,,01/04/2021,2200160966,"2,887.50",,Payments to main contractor,,,,,,No
The Royal Borough of Kensington and Chelsea,RBKC,,Capital,Capital,,Arcus Consulting Llp,1265536,,,,01/04/2021,2200160967,"2,887.50",,Payments to main contractor,,,,,,No
The Royal Borough of Kensington and Chelsea,RBKC,,Capital,Capital,,Arcus Consulting Llp,1265536,,,,01/04/2021,2200160968,"2,681.25",,Site Works,,,,,,No
The Royal Borough of Kensington and Chelsea,RBKC,,Capital,Capital,,Arcus Consulting Llp,1265536,,,,01/04/2021,2200160969,"2,549.50",,Site Works,,,,,,No
The Royal Borough of Kensington and Chelsea,RBKC,,Capital,Capital,,Arcus Consulting Llp,1265536,,,,09/04/2021,2200162590,"4,250.00",,Payments to main contractor,,,,,,No
The Royal Borough of Kensington and Chelsea,RBKC,,Capital,Capital,,Arcus Consulting Llp,1265536,,,,09/04/2021,2200162591,"2,887.50",,Payments to main contractor,,,,,,No
The Royal Borough of Kensington and Chelsea,RBKC,,Capital,Capital,,Ark Build Plc ,1231173,,,,12/04/2021,2200163093,"117,868.60",,Payments to main contractor,,,,,,No
The Royal Borough of Kensington and Chelsea,RBKC,,Capital,Capital,,Ark Build Plc ,1231173,,,,27/04/2021,2200166388,"6,250.00",,Payments to main contractor,,,,,,No
The Royal Borough of Kensington and Chelsea,RBKC,,Capital,Capital,,Ark Build Plc ,1231173,,,,11/05/2021,2200169361,"100,721.75",,Payments to main contractor,,,,,,No
The Royal Borough of Kensington and Chelsea,RBKC,,Capital,Capital,,Ark Build Plc ,1231173,,,,07/06/2021,2200175058,"118,670.01",,Payments to main contractor,,,,,,No
The Royal Borough of Kensington and Chelsea,RBKC,,Capital,Capital,,Ark Build Plc ,1231173,,,,22/06/2021,2200177909,"91,131.31",,Payments to main contractor,,,,,,No
The Royal Borough of Kensington and Chelsea,RBKC,,Capital,Capital,,Ashfords Llp ,1232627,,,,01/04/2021,2200160939,802.80,,Payments to main contractor,,,,,,No
The Royal Borough of Kensington and Chelsea,RBKC,,Capital,Capital,,Ashfords Llp ,1232627,,,,29/04/2021,2200167076,"1,670.00",,,,,,,,No
The Royal Borough of Kensington and Chelsea,RBKC,,Capital,Capital,,Ashfords Llp ,1232627,,,,04/05/2021,2200167647,"3,052.00",,Legal Fees & expenses,,,,,,No
The Royal Borough of Kensington and Chelsea,RBKC,,Capital,Capital,,Ashfords Llp ,1232627,,,,02/06/2021,2200174033,710.00,,Legal Fees & expenses,,,,,,No
The Royal Borough of Kensington and Chelsea,RBKC,,Capital,Capital,,Ashfords Llp ,1232627,,,,02/06/2021,2200174040,726.00,,Legal Fees & expenses,,,,,,No
The Royal Borough of Kensington and Chelsea,RBKC,,Capital,Capital,,AtelierWest Ltd,1275695,,,,19/04/2021,2200164388,"1,785.00",,Payments to main contractor,,,,,,No
The Royal Borough of Kensington and Chelsea,RBKC,,Capital,Capital,,AtelierWest Ltd,1275695,,,,19/04/2021,2200164389,"1,118.75",,Payments to main contractor,,,,,,No
The Royal Borough of Kensington and Chelsea,RBKC,,Capital,Capital,,AtelierWest Ltd,1275695,,,,19/04/2021,2200164520,"4,882.00",,B*Surveyors,,,,,,No
The Royal Borough of Kensington and Chelsea,RBKC,,Capital,Capital,,AtelierWest Ltd,1275695,,,,19/04/2021,2200164526,"4,365.00",,B*Surveyors,,,,,,No
The Royal Borough of Kensington and Chelsea,RBKC,,Capital,Capital,,Axis Europe Plc,1232679,,,,21/04/2021,2200165187,"10,376.42",,Payments to sub contractor,,,,,,No
The Royal Borough of Kensington and Chelsea,RBKC,,Capital,Capital,,BB7 FIRE LIMITED,1258576,,,,21/04/2021,2200165275,"7,500.00",,Planned Maintenance (CM),,,,,,No
The Royal Borough of Kensington and Chelsea,RBKC,,Capital,Capital,,BT Global Services ,1233001,,,,28/04/2021,2200166702,"1,336.23",,Telecommunications,,,,,,No
The Royal Borough of Kensington and Chelsea,RBKC,,Capital,Capital,,BT Global Services ,1233001,,,,04/05/2021,2200167580,"5,538.67",,Computer Equipment,,,,,,No
The Royal Borough of Kensington and Chelsea,RBKC,,Capital,Capital,,BT Global Services ,1233001,,,,04/05/2021,2200167580,"2,350.00",,Computer Equipment,,,,,,No
The Royal Borough of Kensington and Chelsea,RBKC,,Capital,Capital,,BT Global Services ,1233001,,,,10/05/2021,2200168708,"1,136.28",,Other capital equipment,,,,,,No
The Royal Borough of Kensington and Chelsea,RBKC,,Capital,Capital,,BT Global Services ,1233001,,,,10/05/2021,2200168708,973.93,,Other capital equipment,,,,,,No
The Royal Borough of Kensington and Chelsea,RBKC,,Capital,Capital,,BT Global Services ,1233001,,,,10/05/2021,2200168708,"15,728.57",,Other capital equipment,,,,,,No
The Royal Borough of Kensington and Chelsea,RBKC,,Capital,Capital,,BT Global Services ,1233001,,,,10/05/2021,2200168708,"1,217.54",,Other capital equipment,,,,,,No
The Royal Borough of Kensington and Chelsea,RBKC,,Capital,Capital,,BT Global Services ,1233001,,,,25/05/2021,2200172655,"2,278.80",,Other capital equipment,,,,,,No
The Royal Borough of Kensington and Chelsea,RBKC,,Capital,Capital,,BT Global Services ,1233001,,,,28/05/2021,2200173385,"3,985.00",,Other capital equipment,,,,,,No
The Royal Borough of Kensington and Chelsea,RBKC,,Capital,Capital,,BT Global Services ,1233001,,,,17/06/2021,2200177153,"79,666.00",,Design Consultant,,,,,,No
The Royal Borough of Kensington and Chelsea,RBKC,,Capital,Capital,,BT Global Services ,1233001,,,,17/06/2021,2200177153,"6,684.00",,Design Consultant,,,,,,No
The Royal Borough of Kensington and Chelsea,RBKC,,Capital,Capital,,BT Global Services ,1233001,,,,17/06/2021,2200177153,"6,043.00",,Design Consultant,,,,,,No
The Royal Borough of Kensington and Chelsea,RBKC,,Capital,Capital,,Redact Details,1263276,,,,02/06/2021,2200173891,"137,239.41",,Planned Maintenance (CM),,,,,,No
The Royal Borough of Kensington and Chelsea,RBKC,,Capital,Capital,,Bell Decorating & Building Ltd ,1232723,,,,01/04/2021,2200161197,"1,230.00",,Special Maintenance,,,,,,No
The Royal Borough of Kensington and Chelsea,RBKC,,Capital,Capital,,Bell Decorating & Building Ltd ,1232723,,,,01/04/2021,2200161474,"9,860.00",,Romanse Expenses,,,,,,No
The Royal Borough of Kensington and Chelsea,RBKC,,Capital,Capital,,Bell Decorating & Building Ltd ,1232723,,,,01/04/2021,2200161582,"3,965.00",,Romanse Expenses,,,,,,No
The Royal Borough of Kensington and Chelsea,RBKC,,Capital,Capital,,Bell Decorating & Building Ltd ,1232723,,,,01/04/2021,2200161585,"24,816.00",,Romanse Expenses,,,,,,No
The Royal Borough of Kensington and Chelsea,RBKC,,Capital,Capital,,Bell Decorating & Building Ltd ,1232723,,,,01/04/2021,2200162849,"1,475.44",,Romanse Expenses,,,,,,No
The Royal Borough of Kensington and Chelsea,RBKC,,Capital,Capital,,Bell Decorating & Building Ltd ,1232723,,,,10/05/2021,2200169038,"11,365.00",,Romanse Expenses,,,,,,No
The Royal Borough of Kensington and Chelsea,RBKC,,Capital,Capital,,Bell Decorating & Building Ltd ,1232723,,,,10/05/2021,2200169046,"4,817.80",,Romanse Expenses,,,,,,No
The Royal Borough of Kensington and Chelsea,RBKC,,Capital,Capital,,Bell Decorating & Building Ltd ,1232723,,,,10/05/2021,2200169048,975.00,,Romanse Expenses,,,,,,No
The Royal Borough of Kensington and Chelsea,RBKC,,Capital,Capital,,Bell Decorating & Building Ltd ,1232723,,,,12/05/2021,2200169645,550.00,,Payments to main contractor,,,,,,No
The Royal Borough of Kensington and Chelsea,RBKC,,Capital,Capital,,Bell Decorating & Building Ltd ,1232723,,,,12/05/2021,2200169647,"1,020.00",,Payments to main contractor,,,,,,No
The Royal Borough of Kensington and Chelsea,RBKC,,Capital,Capital,,Bell Decorating & Building Ltd ,1232723,,,,27/05/2021,2200173206,"1,980.00",,Romanse Expenses,,,,,,No
The Royal Borough of Kensington and Chelsea,RBKC,,Capital,Capital,,Bell Decorating & Building Ltd ,1232723,,,,27/05/2021,2200173207,"9,385.00",,Romanse Expenses,,,,,,No
The Royal Borough of Kensington and Chelsea,RBKC,,Capital,Capital,,Bell Decorating & Building Ltd ,1232723,,,,28/05/2021,2200173471,"11,836.00",,Romanse Expenses,,,,,,No
The Royal Borough of Kensington and Chelsea,RBKC,,Capital,Capital,,Bell Decorating & Building Ltd ,1232723,,,,02/06/2021,2200173895,"1,489.00",,Romanse Expenses,,,,,,No
The Royal Borough of Kensington and Chelsea,RBKC,,Capital,Capital,,Bell Decorating & Building Ltd ,1232723,,,,07/06/2021,2200175069,"13,850.00",,Romanse Expenses,,,,,,No
The Royal Borough of Kensington and Chelsea,RBKC,,Capital,Capital,,Bell Decorating & Building Ltd ,1232723,,,,07/06/2021,2200175072,"11,299.00",,Romanse Expenses,,,,,,No
The Royal Borough of Kensington and Chelsea,RBKC,,Capital,Capital,,Bell Decorating & Building Ltd ,1232723,,,,07/06/2021,2200175074,"8,120.00",,Romanse Expenses,,,,,,No
The Royal Borough of Kensington and Chelsea,RBKC,,Capital,Capital,,Bell Decorating & Building Ltd ,1232723,,,,15/06/2021,2200176458,"68,925.00",,Payments to sub contractor,,,,,,No
The Royal Borough of Kensington and Chelsea,RBKC,,Capital,Capital,,Bell Decorating & Building Ltd ,1232723,,,,23/06/2021,2200178474,"13,518.00",,Payments to main contractor,,,,,,No
The Royal Borough of Kensington and Chelsea,RBKC,,Capital,Capital,,Bell Decorating & Building Ltd ,1232723,,,,24/06/2021,2200178576,"4,937.00",,Romanse Expenses,,,,,,No
The Royal Borough of Kensington and Chelsea,RBKC,,Capital,Capital,,Bell Decorating & Building Ltd ,1232723,,,,24/06/2021,2200178577,"6,520.00",,Romanse Expenses,,,,,,No
The Royal Borough of Kensington and Chelsea,RBKC,,Capital,Capital,,Bell Decorating & Building Ltd ,1232723,,,,24/06/2021,2200178682,"8,420.00",,Romanse Expenses,,,,,,No
The Royal Borough of Kensington and Chelsea,RBKC,,Capital,Capital,,Bell Decorating & Building Ltd ,1232723,,,,25/06/2021,2200178964,"1,100.00",,Romanse Expenses,,,,,,No
The Royal Borough of Kensington and Chelsea,RBKC,,Capital,Capital,,Bellrock Property & Facilities Man ,1255450,,,,12/04/2021,2200163240,"3,792.00",,Planned Maintenance (CM),,,,,,No
The Royal Borough of Kensington and Chelsea,RBKC,,Capital,Capital,,Bellrock Property & Facilities Man ,1255450,,,,28/04/2021,2200166838,"53,707.50",,Planned Maintenance (CM),,,,,,No
The Royal Borough of Kensington and Chelsea,RBKC,,Capital,Capital,,Bellrock Property & Facilities Man ,1255450,,,,29/04/2021,2200166929,"5,967.50",,Planned Maintenance (CM),,,,,,No
The Royal Borough of Kensington and Chelsea,RBKC,,Capital,Capital,,Bellrock Property & Facilities Man ,1255450,,,,29/04/2021,2200166930,"2,447.50",,Planned Maintenance (CM),,,,,,No
The Royal Borough of Kensington and Chelsea,RBKC,,Capital,Capital,,Bellrock Property & Facilities Man ,1255450,,,,29/04/2021,2200166931,"3,217.50",,Planned Maintenance (CM),,,,,,No
The Royal Borough of Kensington and Chelsea,RBKC,,Capital,Capital,,Bellrock Property & Facilities Man ,1255450,,,,29/04/2021,2200166932,"10,807.50",,Planned Maintenance (CM),,,,,,No
The Royal Borough of Kensington and Chelsea,RBKC,,Capital,Capital,,Bellrock Property & Facilities Man ,1255450,,,,29/04/2021,2200166933,"4,900.50",,Planned Maintenance (CM),,,,,,No
The Royal Borough of Kensington and Chelsea,RBKC,,Capital,Capital,,Bellrock Property & Facilities Man ,1255450,,,,29/04/2021,2200166934,"7,848.50",,Planned Maintenance (CM),,,,,,No
The Royal Borough of Kensington and Chelsea,RBKC,,Capital,Capital,,Bellrock Property & Facilities Man ,1255450,,,,29/04/2021,2200166935,"4,587.00",,Planned Maintenance (CM),,,,,,No
The Royal Borough of Kensington and Chelsea,RBKC,,Capital,Capital,,Bellrock Property & Facilities Man ,1255450,,,,29/04/2021,2200166936,"10,711.80",,Planned Maintenance (CM),,,,,,No
The Royal Borough of Kensington and Chelsea,RBKC,,Capital,Capital,,Bellrock Property & Facilities Man ,1255450,,,,29/04/2021,2200166937,"8,140.00",,Planned Maintenance (CM),,,,,,No
The Royal Borough of Kensington and Chelsea,RBKC,,Capital,Capital,,Bellrock Property & Facilities Man ,1255450,,,,29/04/2021,2200166940,"12,034.00",,Planned Maintenance (CM),,,,,,No
The Royal Borough of Kensington and Chelsea,RBKC,,Capital,Capital,,Bellrock Property & Facilities Man ,1255450,,,,29/04/2021,2200166952,"17,168.16",,Planned Maintenance (CM),,,,,,No
The Royal Borough of Kensington and Chelsea,RBKC,,Capital,Capital,,Bellrock Property & Facilities Man ,1255450,,,,29/04/2021,2200166960,"2,744.50",,Planned Maintenance (CM),,,,,,No
The Royal Borough of Kensington and Chelsea,RBKC,,Capital,Capital,,Bellrock Property & Facilities Man ,1255450,,,,29/04/2021,2200166961,"4,372.50",,Planned Maintenance (CM),,,,,,No
The Royal Borough of Kensington and Chelsea,RBKC,,Capital,Capital,,Bellrock Property & Facilities Man ,1255450,,,,29/04/2021,2200166963,"9,146.50",,Planned Maintenance (CM),,,,,,No
The Royal Borough of Kensington and Chelsea,RBKC,,Capital,Capital,,Bellrock Property & Facilities Man ,1255450,,,,29/04/2021,2200167105,"16,912.50",,Planned Maintenance (CM),,,,,,No
The Royal Borough of Kensington and Chelsea,RBKC,,Capital,Capital,,Bellrock Property & Facilities Man ,1255450,,,,29/04/2021,2200167106,"9,978.00",,Planned Maintenance (CM),,,,,,No
The Royal Borough of Kensington and Chelsea,RBKC,,Capital,Capital,,Bellrock Property & Facilities Man ,1255450,,,,29/04/2021,2200167108,"9,300.00",,Planned Maintenance (CM),,,,,,No
The Royal Borough of Kensington and Chelsea,RBKC,,Capital,Capital,,Bellrock Property & Facilities Man ,1255450,,,,04/05/2021,2200167649,"3,606.24",,Planned Maintenance (CM),,,,,,No
The Royal Borough of Kensington and Chelsea,RBKC,,Capital,Capital,,Bellrock Property & Facilities Man ,1255450,,,,19/05/2021,2200171294,"60,632.00",,Planned Maintenance (CM),,,,,,No
The Royal Borough of Kensington and Chelsea,RBKC,,Capital,Capital,,Bellrock Property & Facilities Man ,1255450,,,,19/05/2021,2200171300,"53,146.00",,Planned Maintenance (CM),,,,,,No
The Royal Borough of Kensington and Chelsea,RBKC,,Capital,Capital,,Bellrock Property & Facilities Man ,1255450,,,,19/05/2021,2200171305,"43,243.92",,Planned Maintenance (CM),,,,,,No
The Royal Borough of Kensington and Chelsea,RBKC,,Capital,Capital,,Bellrock Property & Facilities Man ,1255450,,,,19/05/2021,2200171306,"35,752.50",,Planned Maintenance (CM),,,,,,No
The Royal Borough of Kensington and Chelsea,RBKC,,Capital,Capital,,Bellrock Property & Facilities Man ,1255450,,,,19/05/2021,2200171307,"1,540.00",,Planned Maintenance (CM),,,,,,No
The Royal Borough of Kensington and Chelsea,RBKC,,Capital,Capital,,Bellrock Property & Facilities Man ,1255450,,,,20/05/2021,2200171377,"17,058.16",,Planned Maintenance (CM),,,,,,No
The Royal Borough of Kensington and Chelsea,RBKC,,Capital,Capital,,Bellrock Property & Facilities Man ,1255450,,,,20/05/2021,2200171379,"4,387.08",,Planned Maintenance (CM),,,,,,No
The Royal Borough of Kensington and Chelsea,RBKC,,Capital,Capital,,Bellrock Property & Facilities Man ,1255450,,,,20/05/2021,2200171381,"29,920.76",,Planned Maintenance (CM),,,,,,No
The Royal Borough of Kensington and Chelsea,RBKC,,Capital,Capital,,Bellrock Property & Facilities Man ,1255450,,,,20/05/2021,2200171382,"12,774.58",,Planned Maintenance (CM),,,,,,No
The Royal Borough of Kensington and Chelsea,RBKC,,Capital,Capital,,Bellrock Property & Facilities Man ,1255450,,,,20/05/2021,2200171383,"4,194.17",,Planned Maintenance (CM),,,,,,No
The Royal Borough of Kensington and Chelsea,RBKC,,Capital,Capital,,Bellrock Property & Facilities Man ,1255450,,,,20/05/2021,2200171384,"1,798.63",,Planned Maintenance (CM),,,,,,No
The Royal Borough of Kensington and Chelsea,RBKC,,Capital,Capital,,Bellrock Property & Facilities Man ,1255450,,,,20/05/2021,2200171385,"2,079.00",,Planned Maintenance (CM),,,,,,No
The Royal Borough of Kensington and Chelsea,RBKC,,Capital,Capital,,Bellrock Property & Facilities Man ,1255450,,,,20/05/2021,2200171386,"10,348.11",,Planned Maintenance (CM),,,,,,No
The Royal Borough of Kensington and Chelsea,RBKC,,Capital,Capital,,Bellrock Property & Facilities Man ,1255450,,,,20/05/2021,2200171387,"8,875.90",,Planned Maintenance (CM),,,,,,No
The Royal Borough of Kensington and Chelsea,RBKC,,Capital,Capital,,Bellrock Property & Facilities Man ,1255450,,,,20/05/2021,2200171388,"2,483.80",,Planned Maintenance (CM),,,,,,No
The Royal Borough of Kensington and Chelsea,RBKC,,Capital,Capital,,Bellrock Property & Facilities Man ,1255450,,,,20/05/2021,2200171389,"4,252.48",,Planned Maintenance (CM),,,,,,No
The Royal Borough of Kensington and Chelsea,RBKC,,Capital,Capital,,Bellrock Property & Facilities Man ,1255450,,,,20/05/2021,2200171390,"5,500.00",,Planned Maintenance (CM),,,,,,No
The Royal Borough of Kensington and Chelsea,RBKC,,Capital,Capital,,Bellrock Property & Facilities Man ,1255450,,,,20/05/2021,2200171391,"4,109.88",,Planned Maintenance (CM),,,,,,No
The Royal Borough of Kensington and Chelsea,RBKC,,Capital,Capital,,Bellrock Property & Facilities Man ,1255450,,,,20/05/2021,2200171392,"11,188.85",,Planned Maintenance (CM),,,,,,No
The Royal Borough of Kensington and Chelsea,RBKC,,Capital,Capital,,Bellrock Property & Facilities Man ,1255450,,,,20/05/2021,2200171393,"77,454.86",,Planned Maintenance (CM),,,,,,No
The Royal Borough of Kensington and Chelsea,RBKC,,Capital,Capital,,Bellrock Property & Facilities Man ,1255450,,,,20/05/2021,2200171394,"14,449.55",,Planned Maintenance (CM),,,,,,No
The Royal Borough of Kensington and Chelsea,RBKC,,Capital,Capital,,Bellrock Property & Facilities Man ,1255450,,,,20/05/2021,2200171395,"31,282.89",,Planned Maintenance (CM),,,,,,No
The Royal Borough of Kensington and Chelsea,RBKC,,Capital,Capital,,Bellrock Property & Facilities Man ,1255450,,,,20/05/2021,2200171396,"5,907.83",,Planned Maintenance (CM),,,,,,No
The Royal Borough of Kensington and Chelsea,RBKC,,Capital,Capital,,Bellrock Property & Facilities Man ,1255450,,,,10/06/2021,2200175804,"10,230.00",,Planned Maintenance (CM),,,,,,No
The Royal Borough of Kensington and Chelsea,RBKC,,Capital,Capital,,London Letterbox Marketing ,1234938,,,,01/04/2021,2200161984,954.00,,Other Consultants,,,,,,No
The Royal Borough of Kensington and Chelsea,RBKC,,Capital,Capital,,London Letterbox Marketing ,1234938,,,,22/06/2021,2200178093,953.06,,Payments to sub contractor,,,,,,No
The Royal Borough of Kensington and Chelsea,RBKC,,Capital,Capital,,London Letterbox Marketing ,1234938,,,,22/06/2021,2200178096,"1,116.94",,Payments to main contractor,,,,,,No
The Royal Borough of Kensington and Chelsea,RBKC,,Capital,Capital,,Bevan Brittan Llp ,1232737,,,,26/05/2021,2200172852,"5,214.00",,Payments to main contractor,,,,,,No
The Royal Borough of Kensington and Chelsea,RBKC,,Capital,Capital,,Bevan Brittan Llp ,1232737,,,,26/05/2021,2200172853,"12,129.50",,Payments to main contractor,,,,,,No
The Royal Borough of Kensington and Chelsea,RBKC,,Capital,Capital,,Bibliotheca Ltd ,1232743,,,,18/05/2021,2200170943,"3,750.00",,Computer Equipment,,,,,,No
The Royal Borough of Kensington and Chelsea,RBKC,,Capital,Capital,,Bibliotheca Ltd ,1232743,,,,18/05/2021,2200170951,"4,750.00",,Computer Equipment,,,,,,No
The Royal Borough of Kensington and Chelsea,RBKC,,Capital,Capital,,Bibliotheca Ltd ,1232743,,,,18/05/2021,2200170953,750.00,,Computer Equipment,,,,,,No
The Royal Borough of Kensington and Chelsea,RBKC,,Capital,Capital,,Bibliotheca Ltd ,1232743,,,,18/05/2021,2200170957,500.00,,Computer Equipment,,,,,,No
The Royal Borough of Kensington and Chelsea,RBKC,,Capital,Capital,,Bibliotheca Ltd ,1232743,,,,18/05/2021,2200170959,"14,250.00",,Computer Equipment,,,,,,No
The Royal Borough of Kensington and Chelsea,RBKC,,Capital,Capital,,Bibliotheca Ltd ,1232743,,,,18/05/2021,2200170962,"4,750.00",,Computer Equipment,,,,,,No
The Royal Borough of Kensington and Chelsea,RBKC,,Capital,Capital,,Bibliotheca Ltd ,1232743,,,,21/05/2021,2200171799,"10,500.00",,Computer Equipment,,,,,,No
The Royal Borough of Kensington and Chelsea,RBKC,,Capital,Capital,,Bibliotheca Ltd ,1232743,,,,11/06/2021,2200176131,"2,995.00",,Computer Equipment,,,,,,No
The Royal Borough of Kensington and Chelsea,RBKC,,Capital,Capital,,Bishop Creighton House Care & Repair Clients Account,1232751,,,,01/04/2021,2200160951,845.67,,Payments to main contractor,,,,,,No
The Royal Borough of Kensington and Chelsea,RBKC,,Capital,Capital,,Bishop Creighton House Care & Repair Clients Account,1232751,,,,01/04/2021,2200160952,"1,015.50",,Payments to main contractor,,,,,,No
The Royal Borough of Kensington and Chelsea,RBKC,,Capital,Capital,,Bishop Creighton House Care & Repair Clients Account,1232751,,,,01/04/2021,2200162073,"7,495.00",,Payments to main contractor,,,,,,No
The Royal Borough of Kensington and Chelsea,RBKC,,Capital,Capital,,Bishop Creighton House Care & Repair Clients Account,1232751,,,,01/04/2021,2200162074,"8,702.00",,Payments to main contractor,,,,,,No
The Royal Borough of Kensington and Chelsea,RBKC,,Capital,Capital,,Bishop Creighton House Care & Repair Clients Account,1232751,,,,01/04/2021,2200162251,"11,050.00",,Payments to main contractor,,,,,,No
The Royal Borough of Kensington and Chelsea,RBKC,,Capital,Capital,,Bishop Creighton House Care & Repair Clients Account,1232751,,,,01/04/2021,2200162258,"6,065.00",,Payments to main contractor,,,,,,No
The Royal Borough of Kensington and Chelsea,RBKC,,Capital,Capital,,Bishop Creighton House Care & Repair Clients Account,1232751,,,,08/04/2021,2200162270,"13,000.00",,Payments to main contractor,,,,,,No
The Royal Borough of Kensington and Chelsea,RBKC,,Capital,Capital,,Bishop Creighton House Care & Repair Clients Account,1232751,,,,06/05/2021,2200168336,"6,317.00",,Payments to main contractor,,,,,,No
The Royal Borough of Kensington and Chelsea,RBKC,,Capital,Capital,,Bishop Creighton House Care & Repair Clients Account,1232751,,,,26/05/2021,2200173003,"2,623.25",,Payments to main contractor,,,,,,No
The Royal Borough of Kensington and Chelsea,RBKC,,Capital,Capital,,Bishop Creighton House Care & Repair Clients Account,1232751,,,,26/05/2021,2200173007,"2,008.75",,Payments to main contractor,,,,,,No
The Royal Borough of Kensington and Chelsea,RBKC,,Capital,Capital,,Bishop Creighton House Care & Repair Clients Account,1232751,,,,26/05/2021,2200173008,"1,992.00",,Payments to main contractor,,,,,,No
The Royal Borough of Kensington and Chelsea,RBKC,,Capital,Capital,,Bishop Creighton House Care & Repair Clients Account,1232751,,,,27/05/2021,2200173233,947.55,,Payments to main contractor,,,,,,No
The Royal Borough of Kensington and Chelsea,RBKC,,Capital,Capital,,Bishop Creighton House Care & Repair Clients Account,1232751,,,,27/05/2021,2200173234,"1,212.00",,Payments to main contractor,,,,,,No
The Royal Borough of Kensington and Chelsea,RBKC,,Capital,Capital,,Bishop Creighton House Care & Repair Clients Account,1232751,,,,28/05/2021,2200173441,"1,499.00",,Payments to main contractor,,,,,,No
The Royal Borough of Kensington and Chelsea,RBKC,,Capital,Capital,,Bishop Creighton House Care & Repair Clients Account,1232751,,,,28/05/2021,2200173475,"1,500.00",,Payments to main contractor,,,,,,No
The Royal Borough of Kensington and Chelsea,RBKC,,Capital,Capital,,Bishop Creighton House Care & Repair Clients Account,1232751,,,,07/06/2021,2200174980,"1,099.00",,Payments to main contractor,,,,,,No
The Royal Borough of Kensington and Chelsea,RBKC,,Capital,Capital,,Bishop Creighton House Care & Repair Clients Account,1232751,,,,08/06/2021,2200175192,"1,100.00",,Payments to main contractor,,,,,,No
The Royal Borough of Kensington and Chelsea,RBKC,,Capital,Capital,,Bishop Creighton House Care & Repair Clients Account,1232751,,,,17/06/2021,2200177172,"5,933.00",,Payments to main contractor,,,,,,No
The Royal Borough of Kensington and Chelsea,RBKC,,Capital,Capital,,Bishop Creighton House Care & Repair Clients Account,1232751,,,,17/06/2021,2200177175,889.95,,Payments to main contractor,,,,,,No
The Royal Borough of Kensington and Chelsea,RBKC,,Capital,Capital,,Bishop Creighton House Care & Repair Clients Account,1232751,,,,18/06/2021,2200177354,"1,500.00",,Payments to main contractor,,,,,,No
The Royal Borough of Kensington and Chelsea,RBKC,,Capital,Capital,,Bishop Creighton House Care & Repair Clients Account,1232751,,,,23/06/2021,2200178438,"12,632.00",,Payments to main contractor,,,,,,No
The Royal Borough of Kensington and Chelsea,RBKC,,Capital,Capital,,Black Box Network Services ,1231180,,,,15/04/2021,2200163939,"18,922.12",,Other Consultants,,,,,,No
The Royal Borough of Kensington and Chelsea,RBKC,,Capital,Capital,,Blakedown Landscapes (SE) Ltd,1231181,,,,09/06/2021,2200175491,"27,255.00",,Payments to main contractor,,,,,,No
The Royal Borough of Kensington and Chelsea,RBKC,,Capital,Capital,,Blakedown Sport & Play Ltd,1278673,,,,21/04/2021,2200165283,"45,159.00",,Romanse Expenses,,,,,,No
The Royal Borough of Kensington and Chelsea,RBKC,,Capital,Capital,,Bloom Procurement Services Ltd,1269893,,,,08/04/2021,2200162256,"18,075.00",,Payments to main contractor,,,,,,No
The Royal Borough of Kensington and Chelsea,RBKC,,Capital,Capital,,Bloom Procurement Services Ltd,1269893,,,,08/04/2021,2200162261,"10,000.00",,Romanse Expenses,,,,,,No
The Royal Borough of Kensington and Chelsea,RBKC,,Capital,Capital,,Bloom Procurement Services Ltd,1269893,,,,11/04/2021,2200163051,"22,440.00",,,,,,,,No
The Royal Borough of Kensington and Chelsea,RBKC,,Capital,Capital,,Bloom Procurement Services Ltd,1269893,,,,22/04/2021,2200165481,"53,225.00",,Legal Fees & expenses,,,,,,No
The Royal Borough of Kensington and Chelsea,RBKC,,Capital,Capital,,Bloom Procurement Services Ltd,1269893,,,,22/04/2021,2200165534,"45,474.00",,Payments to main contractor,,,,,,No
The Royal Borough of Kensington and Chelsea,RBKC,,Capital,Capital,,Bloom Procurement Services Ltd,1269893,,,,11/05/2021,2200169459,"34,825.00",,Romanse Expenses,,,,,,No
The Royal Borough of Kensington and Chelsea,RBKC,,Capital,Capital,,Bloom Procurement Services Ltd,1269893,,,,24/05/2021,2200172208,"38,805.00",,,,,,,,No
The Royal Borough of Kensington and Chelsea,RBKC,,Capital,Capital,,Bloom Procurement Services Ltd,1269893,,,,25/05/2021,2200172364,"19,650.00",,Legal Fees & expenses,,,,,,No
The Royal Borough of Kensington and Chelsea,RBKC,,Capital,Capital,,Bloom Procurement Services Ltd,1269893,,,,17/06/2021,2200177146,"13,600.00",,,,,,,,No
The Royal Borough of Kensington and Chelsea,RBKC,,Capital,Capital,,Bloom Procurement Services Ltd,1269893,,,,17/06/2021,2200177147,"18,543.60",,,,,,,,No
The Royal Borough of Kensington and Chelsea,RBKC,,Capital,Capital,,Bob Products Limited,1278265,,,,06/04/2021,2200161441,"2,450.00",,Landscaping - SCA,,,,,,No
The Royal Borough of Kensington and Chelsea,RBKC,,Capital,Capital,,Borras Construction Ltd,1275543,,,,01/04/2021,2200163829,"100,916.67",,Payments to main contractor,,,,,,No
The Royal Borough of Kensington and Chelsea,RBKC,,Capital,Capital,,Borras Construction Ltd,1275543,,,,20/04/2021,2200164831,"115,979.11",,Payments to main contractor,,,,,,No
The Royal Borough of Kensington and Chelsea,RBKC,,Capital,Capital,,Borras Construction Ltd,1275543,,,,20/05/2021,2200171416,"95,439.98",,Payments to main contractor,,,,,,No
The Royal Borough of Kensington and Chelsea,RBKC,,Capital,Capital,,Borras Construction Ltd,1275543,,,,21/06/2021,2200177818,"136,455.71",,Payments to main contractor,,,,,,No
The Royal Borough of Kensington and Chelsea,RBKC,,Capital,Capital,,Borras Construction Ltd,1275543,,,,22/06/2021,2200177910,"57,320.06",,Payments to main contractor,,,,,,No
The Royal Borough of Kensington and Chelsea,RBKC,,Capital,Capital,,Bow Tie Construction Ltd,1279931,,,,04/06/2021,2200174448,"3,795.80",,Design Consultant,,,,,,No
The Royal Borough of Kensington and Chelsea,RBKC,,Capital,Capital,,Redact Details,1260368,,,,01/04/2021,2200160825,"3,260.00",,Planned Maintenance (CM),,,,,,No
The Royal Borough of Kensington and Chelsea,RBKC,,Capital,Capital,,Redact Details,1260368,,,,09/06/2021,2200175498,940.00,,Planned Maintenance (CM),,,,,,No
The Royal Borough of Kensington and Chelsea,RBKC,,Capital,Capital,,Build Test Solutions Ltd,1271506,,,,12/05/2021,2200169847,"6,060.00",,Other Consultants,,,,,,No
The Royal Borough of Kensington and Chelsea,RBKC,,Capital,Capital,,Build Test Solutions Ltd,1271506,,,,12/05/2021,2200169848,"6,000.00",,Other Consultants,,,,,,No
The Royal Borough of Kensington and Chelsea,RBKC,,Capital,Capital,,Build Test Solutions Ltd,1271506,,,,12/05/2021,2200169851,"3,600.00",,Other Consultants,,,,,,No
The Royal Borough of Kensington and Chelsea,RBKC,,Capital,Capital,,Build Test Solutions Ltd,1271506,,,,12/05/2021,2200169854,"2,000.00",,Other Consultants,,,,,,No
The Royal Borough of Kensington and Chelsea,RBKC,,Capital,Capital,,Build Test Solutions Ltd,1271506,,,,12/05/2021,2200169857,545.52,,Other capital equipment,,,,,,No
The Royal Borough of Kensington and Chelsea,RBKC,,Capital,Capital,,Build Test Solutions Ltd,1271506,,,,14/06/2021,2200176320,"8,370.00",,Landscaping - SCA,,,,,,No
The Royal Borough of Kensington and Chelsea,RBKC,,Capital,Capital,,Building Design Partnership Ltd ,1233009,,,,03/06/2021,2200174228,"27,000.00",,Other Consultants,,,,,,No
The Royal Borough of Kensington and Chelsea,RBKC,,Capital,Capital,,C&C Builders Ltd,1274385,,,,01/04/2021,2200161236,"13,708.78",,Payments to main contractor,,,,,,No
The Royal Borough of Kensington and Chelsea,RBKC,,Capital,Capital,,C&C Builders Ltd,1274385,,,,06/04/2021,2200161652,"6,435.00",,Payments to main contractor,,,,,,No
The Royal Borough of Kensington and Chelsea,RBKC,,Capital,Capital,,C&C Builders Ltd,1274385,,,,06/04/2021,2200161653,"7,915.00",,Payments to main contractor,,,,,,No
The Royal Borough of Kensington and Chelsea,RBKC,,Capital,Capital,,CBS Maintenance Ltd ,1256122,,,,10/06/2021,2200175931,"10,941.00",,Payments to main contractor,,,,,,No
The Royal Borough of Kensington and Chelsea,RBKC,,Capital,Capital,,CBS Maintenance Ltd ,1256122,,,,10/06/2021,2200175932,"1,520.00",,Payments to main contractor,,,,,,No
The Royal Borough of Kensington and Chelsea,RBKC,,Capital,Capital,,CBS Maintenance Ltd ,1256122,,,,10/06/2021,2200175933,"4,900.00",,Payments to main contractor,,,,,,No
The Royal Borough of Kensington and Chelsea,RBKC,,Capital,Capital,,CBS Maintenance Ltd ,1256122,,,,10/06/2021,2200175934,"9,071.30",,Payments to main contractor,,,,,,No
The Royal Borough of Kensington and Chelsea,RBKC,,Capital,Capital,,CIS Street Furniture Ltd ,1256606,,,,21/04/2021,2200165081,"10,030.00",,HCC - Architects,,,,,,No
The Royal Borough of Kensington and Chelsea,RBKC,,Capital,Capital,,CIS Street Furniture Ltd ,1256606,,,,21/04/2021,2200165082,"4,706.00",,HCC - Architects,,,,,,No
The Royal Borough of Kensington and Chelsea,RBKC,,Capital,Capital,,Clm Fireproofing Limited,1268719,,,,25/05/2021,2200172560,"3,161.52",,Payments to main contractor,,,,,,No
The Royal Borough of Kensington and Chelsea,RBKC,,Capital,Capital,,Clm Fireproofing Limited,1268719,,,,07/06/2021,2200174967,"15,121.28",,Payments to main contractor,,,,,,No
The Royal Borough of Kensington and Chelsea,RBKC,,Capital,Capital,,Clm Fireproofing Limited,1268719,,,,16/06/2021,2200177045,"1,610.00",,Payments to main contractor,,,,,,No
The Royal Borough of Kensington and Chelsea,RBKC,,Capital,Capital,,Clm Fireproofing Limited,1268719,,,,23/06/2021,2200178374,"3,305.79",,Payments to main contractor,,,,,,No
The Royal Borough of Kensington and Chelsea,RBKC,,Capital,Capital,,Calford Seadon (Health & Safety) Ltd,1233044,,,,30/04/2021,2200167236,"1,007.94",,,,,,,,No
The Royal Borough of Kensington and Chelsea,RBKC,,Capital,Capital,,Calford Seadon (Health & Safety) Ltd,1233044,,,,30/04/2021,2200167237,800.00,,,,,,,,No
The Royal Borough of Kensington and Chelsea,RBKC,,Capital,Capital,,Calford Seadon (Health & Safety) Ltd,1233044,,,,26/05/2021,2200173036,720.00,,,,,,,,No
The Royal Borough of Kensington and Chelsea,RBKC,,Capital,Capital,,Calford Seadon (Health & Safety) Ltd,1233044,,,,02/06/2021,2200173884,"1,800.00",,,,,,,,No
The Royal Borough of Kensington and Chelsea,RBKC,,Capital,Capital,,Calford Seadon (Health & Safety) Ltd,1233044,,,,08/06/2021,2200175318,"1,830.20",,,,,,,,No
The Royal Borough of Kensington and Chelsea,RBKC,,Capital,Capital,,Capita Business Services Ltd ,1233075,,,,14/04/2021,2200163727,"6,672.00",,Payments to main contractor,,,,,,No
The Royal Borough of Kensington and Chelsea,RBKC,,Capital,Capital,,Cavendish Construction LTD,1267193,,,,20/04/2021,2200164801,"5,802.59",,Payments to main contractor,,,,,,No
The Royal Borough of Kensington and Chelsea,RBKC,,Capital,Capital,,Cavendish Construction LTD,1267193,,,,20/05/2021,2200171475,"28,236.05",,Special Maintenance,,,,,,No
The Royal Borough of Kensington and Chelsea,RBKC,,Capital,Capital,,Cavendish Construction LTD,1267193,,,,20/05/2021,2200171478,"34,597.60",,Special Maintenance,,,,,,No
The Royal Borough of Kensington and Chelsea,RBKC,,Capital,Capital,,Cavendish Construction LTD,1267193,,,,20/05/2021,2200171479,"29,707.88",,Special Maintenance,,,,,,No
The Royal Borough of Kensington and Chelsea,RBKC,,Capital,Capital,,Cavendish Construction LTD,1267193,,,,11/06/2021,2200176015,"15,453.48",,Special Maintenance,,,,,,No
The Royal Borough of Kensington and Chelsea,RBKC,,Capital,Capital,,Cavendish Construction LTD,1267193,,,,11/06/2021,2200176016,"29,010.16",,Special Maintenance,,,,,,No
The Royal Borough of Kensington and Chelsea,RBKC,,Capital,Capital,,Cavendish Construction LTD,1267193,,,,11/06/2021,2200176020,"25,678.54",,Special Maintenance,,,,,,No
The Royal Borough of Kensington and Chelsea,RBKC,,Capital,Capital,,Cavendish Construction LTD,1267193,,,,17/06/2021,2200177201,"40,674.44",,Special Maintenance,,,,,,No
The Royal Borough of Kensington and Chelsea,RBKC,,Capital,Capital,,Cavendish Construction LTD,1267193,,,,17/06/2021,2200177203,"40,646.25",,Special Maintenance,,,,,,No
The Royal Borough of Kensington and Chelsea,RBKC,,Capital,Capital,,Centurian Surfacing Ltd,1265770,,,,25/05/2021,2200172532,"20,638.00",,Payments to main contractor,,,,,,No
The Royal Borough of Kensington and Chelsea,RBKC,,Capital,Capital,,Chapmanbdsp Limited,1270766,,,,16/04/2021,2200164033,500.00,,Payments to main contractor,,,,,,No
The Royal Borough of Kensington and Chelsea,RBKC,,Capital,Capital,,Chapmanbdsp Limited,1270766,,,,20/05/2021,2200171400,500.00,,Payments to main contractor,,,,,,No
The Royal Borough of Kensington and Chelsea,RBKC,,Capital,Capital,,Chapmanbdsp Limited,1270766,,,,07/06/2021,2200174930,500.00,,Payments to main contractor,,,,,,No
The Royal Borough of Kensington and Chelsea,RBKC,,Capital,Capital,,Chris Edge Tree Care Ltd ,1233369,,,,01/04/2021,2200160926,"3,396.00",,Payments to main contractor,,,,,,No
The Royal Borough of Kensington and Chelsea,RBKC,,Capital,Capital,,City Electrical Factors,1263373,,,,01/04/2021,2200160941,"12,665.00",,Payments to main contractor,,,,,,No
The Royal Borough of Kensington and Chelsea,RBKC,,Capital,Capital,,City Electrical Factors,1263373,,,,11/06/2021,2200176118,848.80,,Special Maintenance,,,,,,No
The Royal Borough of Kensington and Chelsea,RBKC,,Capital,Capital,,City Electrical Factors,1263373,,,,23/06/2021,2200178437,551.20,,Special Maintenance,,,,,,No
The Royal Borough of Kensington and Chelsea,RBKC,,Capital,Capital,,City Electrical Factors,1263373,,,,23/06/2021,2200178457,"1,905.20",,Special Maintenance,,,,,,No
The Royal Borough of Kensington and Chelsea,RBKC,,Capital,Capital,,City Of Westminster ,1231771,,,,07/04/2021,2200161842,"4,548.00",,Other capital equipment,,,,,,No
The Royal Borough of Kensington and Chelsea,RBKC,,Capital,Capital,,CoMMET Ltd,1277041,,,,26/04/2021,2200166136,"11,150.00",,Payments to main contractor,,,,,,No
The Royal Borough of Kensington and Chelsea,RBKC,,Capital,Capital,,CoMMET Ltd,1277041,,,,17/06/2021,2200177199,"10,850.00",,Payments to main contractor,,,,,,No
The Royal Borough of Kensington and Chelsea,RBKC,,Capital,Capital,,Conisbee ,1233655,,,,12/04/2021,2200163160,"1,575.00",,Payments to main contractor,,,,,,No
The Royal Borough of Kensington and Chelsea,RBKC,,Capital,Capital,,Connect Survey Services Ltd ,1233656,,,,13/04/2021,2200163569,500.00,,Payments to main contractor,,,,,,No
The Royal Borough of Kensington and Chelsea,RBKC,,Capital,Capital,,Conservation By Design Ltd,1274012,,,,19/05/2021,2200171113,"17,871.25",,Payments to sub contractor,,,,,,No
The Royal Borough of Kensington and Chelsea,RBKC,,Capital,Capital,,Contour Planning Services Limited,1274959,,,,01/04/2021,2200160975,"2,103.75",,Payments to main contractor,,,,,,No
The Royal Borough of Kensington and Chelsea,RBKC,,Capital,Capital,,Contour Planning Services Limited,1274959,,,,23/04/2021,2200165777,"1,773.75",,Payments to main contractor,,,,,,No
The Royal Borough of Kensington and Chelsea,RBKC,,Capital,Capital,,Contour Planning Services Limited,1274959,,,,04/06/2021,2200174593,"2,663.33",,Payments to main contractor,,,,,,No
The Royal Borough of Kensington and Chelsea,RBKC,,Capital,Capital,,Cupaz ,1233737,,,,25/05/2021,2200172432,660.00,,Payments to main contractor,,,,,,No
The Royal Borough of Kensington and Chelsea,RBKC,,Capital,Capital,,Currie & Brown UK Ltd ,1233738,,,,08/04/2021,2200162301,"2,850.00",,Payments to main contractor,,,,,,No
The Royal Borough of Kensington and Chelsea,RBKC,,Capital,Capital,,Currie & Brown UK Ltd ,1233738,,,,22/04/2021,2200165450,"2,137.25",,Site Works,,,,,,No
The Royal Borough of Kensington and Chelsea,RBKC,,Capital,Capital,,Currie & Brown UK Ltd ,1233738,,,,22/04/2021,2200165453,"1,465.00",,Payments to main contractor,,,,,,No
The Royal Borough of Kensington and Chelsea,RBKC,,Capital,Capital,,Currie & Brown UK Ltd ,1233738,,,,25/05/2021,2200172566,"1,465.00",,Payments to main contractor,,,,,,No
The Royal Borough of Kensington and Chelsea,RBKC,,Capital,Capital,,Currie & Brown UK Ltd ,1233738,,,,25/05/2021,2200172568,979.00,,Site Works,,,,,,No
The Royal Borough of Kensington and Chelsea,RBKC,,Capital,Capital,,Currie & Brown UK Ltd ,1233738,,,,21/06/2021,2200177709,"1,552.50",,Payments to main contractor,,,,,,No
The Royal Borough of Kensington and Chelsea,RBKC,,Capital,Capital,,Currie & Brown UK Ltd ,1233738,,,,22/06/2021,2200177907,979.00,,Site Works,,,,,,No
The Royal Borough of Kensington and Chelsea,RBKC,,Capital,Capital,,Currie & Brown UK Ltd ,1233738,,,,22/06/2021,2200178012,"1,465.00",,Payments to main contractor,,,,,,No
The Royal Borough of Kensington and Chelsea,RBKC,,Capital,Capital,,Cushman & Wakefield LLP ,1233739,,,,09/04/2021,2200162619,"5,513.00",,Payments to main contractor,,,,,,No
The Royal Borough of Kensington and Chelsea,RBKC,,Capital,Capital,,Cushman & Wakefield LLP ,1233739,,,,15/04/2021,2200163845,"5,513.00",,Payments to main contractor,,,,,,No
The Royal Borough of Kensington and Chelsea,RBKC,,Capital,Capital,,Cushman & Wakefield LLP ,1233739,,,,20/05/2021,2200171420,"5,513.00",,Payments to main contractor,,,,,,No
The Royal Borough of Kensington and Chelsea,RBKC,,Capital,Capital,,DBR & Associates Ltd ,1233969,,,,19/05/2021,2200171210,"4,872.50",,Planned Maintenance (CM),,,,,,No
The Royal Borough of Kensington and Chelsea,RBKC,,Capital,Capital,,Danacom Ltd,1262818,,,,07/05/2021,2200168422,"24,711.62",,Special Maintenance,,,,,,No
The Royal Borough of Kensington and Chelsea,RBKC,,Capital,Capital,,Danacom Ltd,1262818,,,,07/05/2021,2200168423,"19,465.28",,Special Maintenance,,,,,,No
The Royal Borough of Kensington and Chelsea,RBKC,,Capital,Capital,,Delva Patman Redler LLP,1271465,,,,16/06/2021,2200176748,"1,614.00",,Payments to main contractor,,,,,,No
The Royal Borough of Kensington and Chelsea,RBKC,,Capital,Capital,,Derisk (UK) Limited ,1233980,,,,01/04/2021,2200161572,"1,619.51",,,,,,,,No
The Royal Borough of Kensington and Chelsea,RBKC,,Capital,Capital,,Derisk (UK) Limited ,1233980,,,,27/04/2021,2200166340,558.73,,Payments to main contractor,,,,,,No
The Royal Borough of Kensington and Chelsea,RBKC,,Capital,Capital,,Derisk (UK) Limited ,1233980,,,,27/04/2021,2200166343,"2,300.00",,Payments to main contractor,,,,,,No
The Royal Borough of Kensington and Chelsea,RBKC,,Capital,Capital,,Derisk (UK) Limited ,1233980,,,,27/04/2021,2200166345,876.19,,Payments to main contractor,,,,,,No
The Royal Borough of Kensington and Chelsea,RBKC,,Capital,Capital,,Derisk (UK) Limited ,1233980,,,,29/04/2021,2200167102,760.00,,Other Consultants,,,,,,No
The Royal Borough of Kensington and Chelsea,RBKC,,Capital,Capital,,Derisk (UK) Limited ,1233980,,,,04/05/2021,2200167570,910.47,,,,,,,,No
The Royal Borough of Kensington and Chelsea,RBKC,,Capital,Capital,,Derisk (UK) Limited ,1233980,,,,04/05/2021,2200167641,"3,998.00",,Payments to main contractor,,,,,,No
The Royal Borough of Kensington and Chelsea,RBKC,,Capital,Capital,,Derisk (UK) Limited ,1233980,,,,07/05/2021,2200168407,520.00,,Payments to main contractor,,,,,,No
The Royal Borough of Kensington and Chelsea,RBKC,,Capital,Capital,,Derisk (UK) Limited ,1233980,,,,20/05/2021,2200171401,"2,300.00",,Payments to main contractor,,,,,,No
The Royal Borough of Kensington and Chelsea,RBKC,,Capital,Capital,,Derisk (UK) Limited ,1233980,,,,20/05/2021,2200171402,876.19,,Payments to main contractor,,,,,,No
The Royal Borough of Kensington and Chelsea,RBKC,,Capital,Capital,,Derisk (UK) Limited ,1233980,,,,20/05/2021,2200171404,558.73,,Payments to main contractor,,,,,,No
The Royal Borough of Kensington and Chelsea,RBKC,,Capital,Capital,,Derisk (UK) Limited ,1233980,,,,10/06/2021,2200175699,876.19,,Payments to main contractor,,,,,,No
The Royal Borough of Kensington and Chelsea,RBKC,,Capital,Capital,,Derisk (UK) Limited ,1233980,,,,10/06/2021,2200175700,558.73,,Payments to main contractor,,,,,,No
The Royal Borough of Kensington and Chelsea,RBKC,,Capital,Capital,,Derisk (UK) Limited ,1233980,,,,15/06/2021,2200176603,"2,300.00",,Payments to main contractor,,,,,,No
The Royal Borough of Kensington and Chelsea,RBKC,,Capital,Capital,,District Energy Development Ltd,1275886,,,,07/04/2021,2200161762,"5,200.00",,Design Consultant,,,,,,No
The Royal Borough of Kensington and Chelsea,RBKC,,Capital,Capital,,District Energy Development Ltd,1275886,,,,28/05/2021,2200173481,"5,400.00",,Design Consultant,,,,,,No
The Royal Borough of Kensington and Chelsea,RBKC,,Capital,Capital,,District Energy Development Ltd,1275886,,,,30/06/2021,2200179622,"5,400.00",,Design Consultant,,,,,,No
The Royal Borough of Kensington and Chelsea,RBKC,,Capital,Capital,,ECD Architects Ltd,1234067,,,,13/04/2021,2200163480,"4,900.00",,Payments to main contractor,,,,,,No
The Royal Borough of Kensington and Chelsea,RBKC,,Capital,Capital,,ECD Architects Ltd,1234067,,,,13/04/2021,2200163483,"4,293.33",,Payments to main contractor,,,,,,No
The Royal Borough of Kensington and Chelsea,RBKC,,Capital,Capital,,ECD Architects Ltd,1234067,,,,13/04/2021,2200163485,"4,620.00",,Payments to main contractor,,,,,,No
The Royal Borough of Kensington and Chelsea,RBKC,,Capital,Capital,,ECD Architects Ltd,1234067,,,,14/04/2021,2200163688,"5,898.00",,Payments to main contractor,,,,,,No
The Royal Borough of Kensington and Chelsea,RBKC,,Capital,Capital,,ECD Architects Ltd,1234067,,,,14/04/2021,2200163689,"4,801.34",,Payments to main contractor,,,,,,No
The Royal Borough of Kensington and Chelsea,RBKC,,Capital,Capital,,ECD Architects Ltd,1234067,,,,14/04/2021,2200163691,"6,875.00",,Payments to main contractor,,,,,,No
The Royal Borough of Kensington and Chelsea,RBKC,,Capital,Capital,,ECD Architects Ltd,1234067,,,,07/05/2021,2200168581,"37,474.99",,,,,,,,No
The Royal Borough of Kensington and Chelsea,RBKC,,Capital,Capital,,ECD Architects Ltd,1234067,,,,24/05/2021,2200172164,"7,451.47",,Payments to main contractor,,,,,,No
The Royal Borough of Kensington and Chelsea,RBKC,,Capital,Capital,,ECD Architects Ltd,1234067,,,,24/05/2021,2200172165,"2,415.00",,Payments to main contractor,,,,,,No
The Royal Borough of Kensington and Chelsea,RBKC,,Capital,Capital,,ECD Architects Ltd,1234067,,,,24/05/2021,2200172221,"4,900.00",,Payments to main contractor,,,,,,No
The Royal Borough of Kensington and Chelsea,RBKC,,Capital,Capital,,ECD Architects Ltd,1234067,,,,25/05/2021,2200172412,"3,177.00",,Payments to main contractor,,,,,,No
The Royal Borough of Kensington and Chelsea,RBKC,,Capital,Capital,,ECD Architects Ltd,1234067,,,,25/05/2021,2200172414,"6,875.00",,Payments to main contractor,,,,,,No
The Royal Borough of Kensington and Chelsea,RBKC,,Capital,Capital,,ECD Architects Ltd,1234067,,,,25/05/2021,2200172504,"4,801.33",,Payments to main contractor,,,,,,No
The Royal Borough of Kensington and Chelsea,RBKC,,Capital,Capital,,ECD Architects Ltd,1234067,,,,07/06/2021,2200174928,"35,458.40",,Payments to main contractor,,,,,,No
The Royal Borough of Kensington and Chelsea,RBKC,,Capital,Capital,,ECD Architects Ltd,1234067,,,,07/06/2021,2200174949,"2,493.00",,Payments to main contractor,,,,,,No
The Royal Borough of Kensington and Chelsea,RBKC,,Capital,Capital,,ECD Architects Ltd,1234067,,,,07/06/2021,2200174950,"4,986.00",,Payments to main contractor,,,,,,No
The Royal Borough of Kensington and Chelsea,RBKC,,Capital,Capital,,ECD Architects Ltd,1234067,,,,07/06/2021,2200174965,"2,596.00",,Payments to main contractor,,,,,,No
The Royal Borough of Kensington and Chelsea,RBKC,,Capital,Capital,,ECD Architects Ltd,1234067,,,,07/06/2021,2200174968,"2,959.00",,Payments to main contractor,,,,,,No
The Royal Borough of Kensington and Chelsea,RBKC,,Capital,Capital,,ECD Architects Ltd,1234067,,,,07/06/2021,2200174973,"1,633.50",,Other Consultants,,,,,,No
The Royal Borough of Kensington and Chelsea,RBKC,,Capital,Capital,,ECD Architects Ltd,1234067,,,,07/06/2021,2200174979,"2,293.50",,Other Consultants,,,,,,No
The Royal Borough of Kensington and Chelsea,RBKC,,Capital,Capital,,ECD Architects Ltd,1234067,,,,07/06/2021,2200174996,"55,624.99",,,,,,,,No
The Royal Borough of Kensington and Chelsea,RBKC,,Capital,Capital,,ECD Architects Ltd,1234067,,,,11/06/2021,2200176079,"4,801.33",,Payments to main contractor,,,,,,No
The Royal Borough of Kensington and Chelsea,RBKC,,Capital,Capital,,ECD Architects Ltd,1234067,,,,14/06/2021,2200176318,"3,939.83",,Payments to main contractor,,,,,,No
The Royal Borough of Kensington and Chelsea,RBKC,,Capital,Capital,,ECD Architects Ltd,1234067,,,,14/06/2021,2200176319,"19,699.11",,Payments to main contractor,,,,,,No
The Royal Borough of Kensington and Chelsea,RBKC,,Capital,Capital,,ECD Architects Ltd,1234067,,,,18/06/2021,2200177393,"103,152.98",,,,,,,,No
The Royal Borough of Kensington and Chelsea,RBKC,,Capital,Capital,,EDF Energy Customer Field Services (Metering) Ltd,1234077,,,,12/05/2021,2200169783,"19,000.00",,Payments to main contractor,,,,,,No
The Royal Borough of Kensington and Chelsea,RBKC,,Capital,Capital,,ETEC Associates LTD,1269170,,,,01/04/2021,2200160955,"1,210.00",,Romanse Expenses,,,,,,No
The Royal Borough of Kensington and Chelsea,RBKC,,Capital,Capital,,ETEC Associates LTD,1269170,,,,07/04/2021,2200162075,"5,000.00",,Payments to main contractor,,,,,,No
The Royal Borough of Kensington and Chelsea,RBKC,,Capital,Capital,,ETEC Associates LTD,1269170,,,,09/04/2021,2200162614,"2,225.00",,Romanse Expenses,,,,,,No
The Royal Borough of Kensington and Chelsea,RBKC,,Capital,Capital,,ETEC Associates LTD,1269170,,,,09/04/2021,2200162615,"3,115.00",,Romanse Expenses,,,,,,No
The Royal Borough of Kensington and Chelsea,RBKC,,Capital,Capital,,ETEC Associates LTD,1269170,,,,09/04/2021,2200162617,"3,425.00",,Romanse Expenses,,,,,,No
The Royal Borough of Kensington and Chelsea,RBKC,,Capital,Capital,,ETEC Associates LTD,1269170,,,,14/04/2021,2200163700,"4,235.00",,Romanse Expenses,,,,,,No
The Royal Borough of Kensington and Chelsea,RBKC,,Capital,Capital,,ETEC Associates LTD,1269170,,,,28/05/2021,2200173523,"1,800.00",,Payments to main contractor,,,,,,No
The Royal Borough of Kensington and Chelsea,RBKC,,Capital,Capital,,ETEC Associates LTD,1269170,,,,28/05/2021,2200173525,"1,875.00",,Payments to main contractor,,,,,,No
The Royal Borough of Kensington and Chelsea,RBKC,,Capital,Capital,,ETEC Associates LTD,1269170,,,,28/05/2021,2200173526,"5,250.00",,Payments to main contractor,,,,,,No
The Royal Borough of Kensington and Chelsea,RBKC,,Capital,Capital,,ETEC Associates LTD,1269170,,,,28/05/2021,2200173527,"2,250.00",,Payments to main contractor,,,,,,No
The Royal Borough of Kensington and Chelsea,RBKC,,Capital,Capital,,ETEC Associates LTD,1269170,,,,28/05/2021,2200173528,"3,375.00",,Payments to main contractor,,,,,,No
The Royal Borough of Kensington and Chelsea,RBKC,,Capital,Capital,,ETEC Associates LTD,1269170,,,,28/05/2021,2200173529,"2,250.00",,Payments to main contractor,,,,,,No
The Royal Borough of Kensington and Chelsea,RBKC,,Capital,Capital,,ETEC Associates LTD,1269170,,,,28/05/2021,2200173530,"1,250.00",,Payments to main contractor,,,,,,No
The Royal Borough of Kensington and Chelsea,RBKC,,Capital,Capital,,Effectable Construction Services Lt,1280790,,,,29/06/2021,2200179351,"3,662.79",,Payments to main contractor,,,,,,No
The Royal Borough of Kensington and Chelsea,RBKC,,Capital,Capital,,Enviro Technology Services Plc,1234322,,,,07/06/2021,2200174954,"15,720.00",,Other capital equipment,,,,,,No
The Royal Borough of Kensington and Chelsea,RBKC,,Capital,Capital,,Evans Jones Ltd,1279683,,,,14/06/2021,2200176310,"1,710.00",,Other Consultants,,,,,,No
The Royal Borough of Kensington and Chelsea,RBKC,,Capital,Capital,,Exclusive Leisure Ltd,1278378,,,,22/04/2021,2200165447,"36,100.00",,Romanse Expenses,,,,,,No
The Royal Borough of Kensington and Chelsea,RBKC,,Capital,Capital,,Express Environmental ,1256411,,,,01/04/2021,2200161003,"3,485.76",,Special Maintenance,,,,,,No
The Royal Borough of Kensington and Chelsea,RBKC,,Capital,Capital,,Express Environmental ,1256411,,,,01/04/2021,2200161005,"4,641.60",,Special Maintenance,,,,,,No
The Royal Borough of Kensington and Chelsea,RBKC,,Capital,Capital,,Express Environmental ,1256411,,,,01/04/2021,2200161007,"4,906.00",,Special Maintenance,,,,,,No
The Royal Borough of Kensington and Chelsea,RBKC,,Capital,Capital,,Express Environmental ,1256411,,,,01/04/2021,2200161008,"3,902.40",,Special Maintenance,,,,,,No
The Royal Borough of Kensington and Chelsea,RBKC,,Capital,Capital,,Express Environmental ,1256411,,,,01/04/2021,2200161012,"4,982.40",,Special Maintenance,,,,,,No
The Royal Borough of Kensington and Chelsea,RBKC,,Capital,Capital,,Express Environmental ,1256411,,,,01/04/2021,2200162613,"3,129.60",,Special Maintenance,,,,,,No
The Royal Borough of Kensington and Chelsea,RBKC,,Capital,Capital,,Express Environmental ,1256411,,,,01/04/2021,2200162656,"1,315.20",,Special Maintenance,,,,,,No
The Royal Borough of Kensington and Chelsea,RBKC,,Capital,Capital,,Express Environmental ,1256411,,,,01/04/2021,2200163368,"5,217.60",,Special Maintenance,,,,,,No
The Royal Borough of Kensington and Chelsea,RBKC,,Capital,Capital,,Express Environmental ,1256411,,,,09/04/2021,2200162608,"1,766.40",,Special Maintenance,,,,,,No
The Royal Borough of Kensington and Chelsea,RBKC,,Capital,Capital,,Express Environmental ,1256411,,,,20/04/2021,2200164863,"2,833.92",,Payments to main contractor,,,,,,No
The Royal Borough of Kensington and Chelsea,RBKC,,Capital,Capital,,Express Environmental ,1256411,,,,20/04/2021,2200164869,"4,413.12",,Payments to main contractor,,,,,,No
The Royal Borough of Kensington and Chelsea,RBKC,,Capital,Capital,,Express Environmental ,1256411,,,,20/04/2021,2200164871,"1,554.58",,Payments to main contractor,,,,,,No
The Royal Borough of Kensington and Chelsea,RBKC,,Capital,Capital,,Express Environmental ,1256411,,,,20/04/2021,2200164872,"1,912.00",,Payments to main contractor,,,,,,No
The Royal Borough of Kensington and Chelsea,RBKC,,Capital,Capital,,Express Environmental ,1256411,,,,20/04/2021,2200164873,"1,221.38",,Payments to main contractor,,,,,,No
The Royal Borough of Kensington and Chelsea,RBKC,,Capital,Capital,,Express Environmental ,1256411,,,,20/04/2021,2200164874,"4,540.80",,Payments to main contractor,,,,,,No
The Royal Borough of Kensington and Chelsea,RBKC,,Capital,Capital,,Express Environmental ,1256411,,,,20/04/2021,2200164875,"6,484.80",,Payments to main contractor,,,,,,No
The Royal Borough of Kensington and Chelsea,RBKC,,Capital,Capital,,Express Environmental ,1256411,,,,20/04/2021,2200164876,"3,700.80",,Payments to main contractor,,,,,,No
The Royal Borough of Kensington and Chelsea,RBKC,,Capital,Capital,,Express Environmental ,1256411,,,,20/04/2021,2200164877,"3,476.48",,Payments to main contractor,,,,,,No
The Royal Borough of Kensington and Chelsea,RBKC,,Capital,Capital,,Express Environmental ,1256411,,,,20/04/2021,2200164879,"7,840.96",,Payments to main contractor,,,,,,No
The Royal Borough of Kensington and Chelsea,RBKC,,Capital,Capital,,Express Environmental ,1256411,,,,22/04/2021,2200165606,691.20,,Payments to main contractor,,,,,,No
The Royal Borough of Kensington and Chelsea,RBKC,,Capital,Capital,,Express Environmental ,1256411,,,,22/04/2021,2200165620,"5,280.00",,Payments to main contractor,,,,,,No
The Royal Borough of Kensington and Chelsea,RBKC,,Capital,Capital,,Express Environmental ,1256411,,,,22/04/2021,2200165623,"5,049.60",,Payments to main contractor,,,,,,No
The Royal Borough of Kensington and Chelsea,RBKC,,Capital,Capital,,Express Environmental ,1256411,,,,22/04/2021,2200165627,"3,519.36",,Payments to main contractor,,,,,,No
The Royal Borough of Kensington and Chelsea,RBKC,,Capital,Capital,,Express Environmental ,1256411,,,,28/04/2021,2200166784,"2,169.60",,Payments to main contractor,,,,,,No
The Royal Borough of Kensington and Chelsea,RBKC,,Capital,Capital,,Express Environmental ,1256411,,,,28/04/2021,2200166785,"2,753.28",,Payments to main contractor,,,,,,No
The Royal Borough of Kensington and Chelsea,RBKC,,Capital,Capital,,Express Environmental ,1256411,,,,28/04/2021,2200166786,"4,712.80",,Payments to main contractor,,,,,,No
The Royal Borough of Kensington and Chelsea,RBKC,,Capital,Capital,,Express Environmental ,1256411,,,,07/05/2021,2200168421,"5,768.64",,Payments to main contractor,,,,,,No
The Royal Borough of Kensington and Chelsea,RBKC,,Capital,Capital,,Express Environmental ,1256411,,,,12/05/2021,2200169687,"3,600.00",,Payments to main contractor,,,,,,No
The Royal Borough of Kensington and Chelsea,RBKC,,Capital,Capital,,Express Environmental ,1256411,,,,12/05/2021,2200169688,"2,081.28",,Payments to main contractor,,,,,,No
The Royal Borough of Kensington and Chelsea,RBKC,,Capital,Capital,,Express Environmental ,1256411,,,,12/05/2021,2200169689,"3,825.20",,Payments to main contractor,,,,,,No
The Royal Borough of Kensington and Chelsea,RBKC,,Capital,Capital,,Express Environmental ,1256411,,,,12/05/2021,2200169690,523.20,,Payments to main contractor,,,,,,No
The Royal Borough of Kensington and Chelsea,RBKC,,Capital,Capital,,Express Environmental ,1256411,,,,12/05/2021,2200169691,"5,580.48",,Payments to main contractor,,,,,,No
The Royal Borough of Kensington and Chelsea,RBKC,,Capital,Capital,,Express Environmental ,1256411,,,,12/05/2021,2200169692,"2,340.32",,Payments to main contractor,,,,,,No
The Royal Borough of Kensington and Chelsea,RBKC,,Capital,Capital,,Express Environmental ,1256411,,,,12/05/2021,2200169693,"3,398.40",,Payments to main contractor,,,,,,No
The Royal Borough of Kensington and Chelsea,RBKC,,Capital,Capital,,Express Environmental ,1256411,,,,12/05/2021,2200169694,691.20,,Payments to main contractor,,,,,,No
The Royal Borough of Kensington and Chelsea,RBKC,,Capital,Capital,,Express Environmental ,1256411,,,,12/05/2021,2200169695,"1,872.96",,Payments to main contractor,,,,,,No
The Royal Borough of Kensington and Chelsea,RBKC,,Capital,Capital,,Express Environmental ,1256411,,,,12/05/2021,2200169696,576.96,,Payments to main contractor,,,,,,No
The Royal Borough of Kensington and Chelsea,RBKC,,Capital,Capital,,Express Environmental ,1256411,,,,12/05/2021,2200169697,"1,775.12",,Payments to main contractor,,,,,,No
The Royal Borough of Kensington and Chelsea,RBKC,,Capital,Capital,,Express Environmental ,1256411,,,,12/05/2021,2200169698,"2,633.68",,Payments to main contractor,,,,,,No
The Royal Borough of Kensington and Chelsea,RBKC,,Capital,Capital,,Express Environmental ,1256411,,,,12/05/2021,2200169699,"1,800.00",,Payments to main contractor,,,,,,No
The Royal Borough of Kensington and Chelsea,RBKC,,Capital,Capital,,Express Environmental ,1256411,,,,12/05/2021,2200169700,866.92,,Payments to main contractor,,,,,,No
The Royal Borough of Kensington and Chelsea,RBKC,,Capital,Capital,,Express Environmental ,1256411,,,,20/05/2021,2200171374,"1,766.40",,Special Maintenance,,,,,,No
The Royal Borough of Kensington and Chelsea,RBKC,,Capital,Capital,,F.M Conway Ltd ,1231208,,,,01/04/2021,2200161756,"12,870.00",,Romanse Expenses,,,,,,No
The Royal Borough of Kensington and Chelsea,RBKC,,Capital,Capital,,F.M Conway Ltd ,1231208,,,,06/04/2021,2200161539,"38,564.69",,Romanse Expenses,,,,,,No
The Royal Borough of Kensington and Chelsea,RBKC,,Capital,Capital,,F.M Conway Ltd ,1231208,,,,06/04/2021,2200161543,"20,067.40",,Romanse Expenses,,,,,,No
The Royal Borough of Kensington and Chelsea,RBKC,,Capital,Capital,,F.M Conway Ltd ,1231208,,,,06/04/2021,2200161544,"7,962.00",,Romanse Expenses,,,,,,No
The Royal Borough of Kensington and Chelsea,RBKC,,Capital,Capital,,F.M Conway Ltd ,1231208,,,,06/04/2021,2200161546,"2,835.11",,Romanse Expenses,,,,,,No
The Royal Borough of Kensington and Chelsea,RBKC,,Capital,Capital,,F.M Conway Ltd ,1231208,,,,06/04/2021,2200161548,"11,321.80",,Romanse Expenses,,,,,,No
The Royal Borough of Kensington and Chelsea,RBKC,,Capital,Capital,,F.M Conway Ltd ,1231208,,,,21/04/2021,2200165269,"4,368.00",,Romanse Expenses,,,,,,No
The Royal Borough of Kensington and Chelsea,RBKC,,Capital,Capital,,F.M Conway Ltd ,1231208,,,,26/04/2021,2200166126,"13,726.63",,Payments to main contractor,,,,,,No
The Royal Borough of Kensington and Chelsea,RBKC,,Capital,Capital,,F.M Conway Ltd ,1231208,,,,26/04/2021,2200166129,"12,647.25",,Payments to main contractor,,,,,,No
The Royal Borough of Kensington and Chelsea,RBKC,,Capital,Capital,,F.M Conway Ltd ,1231208,,,,29/04/2021,2200167053,"2,530.42",,Romanse Expenses,,,,,,No
The Royal Borough of Kensington and Chelsea,RBKC,,Capital,Capital,,F.M Conway Ltd ,1231208,,,,29/04/2021,2200167060,"48,691.00",,Romanse Expenses,,,,,,No
The Royal Borough of Kensington and Chelsea,RBKC,,Capital,Capital,,F.M Conway Ltd ,1231208,,,,30/04/2021,2200167342,"13,477.65",,Romanse Expenses,,,,,,No
The Royal Borough of Kensington and Chelsea,RBKC,,Capital,Capital,,F.M Conway Ltd ,1231208,,,,05/05/2021,2200167989,610.00,,Romanse Expenses,,,,,,No
The Royal Borough of Kensington and Chelsea,RBKC,,Capital,Capital,,F.M Conway Ltd ,1231208,,,,13/05/2021,2200169938,591.82,,Romanse Expenses,,,,,,No
The Royal Borough of Kensington and Chelsea,RBKC,,Capital,Capital,,F.M Conway Ltd ,1231208,,,,18/05/2021,2200170880,"4,633.51",,Payments to main contractor,,,,,,No
The Royal Borough of Kensington and Chelsea,RBKC,,Capital,Capital,,F.M Conway Ltd ,1231208,,,,25/05/2021,2200172584,"53,493.00",,Design Consultant,,,,,,No
The Royal Borough of Kensington and Chelsea,RBKC,,Capital,Capital,,F.M Conway Ltd ,1231208,,,,25/05/2021,2200172586,"72,262.00",,Payments to main contractor,,,,,,No
The Royal Borough of Kensington and Chelsea,RBKC,,Capital,Capital,,F.M Conway Ltd ,1231208,,,,27/05/2021,2200173202,"10,000.00",,Romanse Expenses,,,,,,No
The Royal Borough of Kensington and Chelsea,RBKC,,Capital,Capital,,F.M Conway Ltd ,1231208,,,,28/05/2021,2200173517,"250,467.14",,Romanse Expenses,,,,,,No
The Royal Borough of Kensington and Chelsea,RBKC,,Capital,Capital,,F.M Conway Ltd ,1231208,,,,04/06/2021,2200174471,"7,469.58",,Romanse Expenses,,,,,,No
The Royal Borough of Kensington and Chelsea,RBKC,,Capital,Capital,,F.M Conway Ltd ,1231208,,,,04/06/2021,2200174475,"4,995.00",,Romanse Expenses,,,,,,No
The Royal Borough of Kensington and Chelsea,RBKC,,Capital,Capital,,F.M Conway Ltd ,1231208,,,,07/06/2021,2200175001,"2,110.76",,Romanse Expenses,,,,,,No
The Royal Borough of Kensington and Chelsea,RBKC,,Capital,Capital,,F.M Conway Ltd ,1231208,,,,18/06/2021,2200177422,"14,459.21",,Other capital equipment,,,,,,No
The Royal Borough of Kensington and Chelsea,RBKC,,Capital,Capital,,F.M Conway Ltd ,1231208,,,,21/06/2021,2200177712,"20,747.51",,Romanse Expenses,,,,,,No
The Royal Borough of Kensington and Chelsea,RBKC,,Capital,Capital,,F.M Conway Ltd ,1231208,,,,23/06/2021,2200178311,"1,500.54",,Romanse Expenses,,,,,,No
The Royal Borough of Kensington and Chelsea,RBKC,,Capital,Capital,,Faithful and Gould Limited,1234387,,,,29/04/2021,2200167070,"2,810.00",,,,,,,,No
The Royal Borough of Kensington and Chelsea,RBKC,,Capital,Capital,,Faithful and Gould Limited,1234387,,,,21/06/2021,2200177719,"2,810.00",,,,,,,,No
The Royal Borough of Kensington and Chelsea,RBKC,,Capital,Capital,,Faithful and Gould Limited,1234387,,,,29/06/2021,2200179293,"38,210.00",,,,,,,,No
The Royal Borough of Kensington and Chelsea,RBKC,,Capital,Capital,,Fisk Fire Protection LTD,1277295,,,,24/06/2021,2200178624,"28,030.00",,Payments to main contractor,,,,,,No
The Royal Borough of Kensington and Chelsea,RBKC,,Capital,Capital,,Frame Projects Ltd,1269840,,,,07/04/2021,2200161959,"4,500.00",,Payments to main contractor,,,,,,No
The Royal Borough of Kensington and Chelsea,RBKC,,Capital,Capital,,Frame Projects Ltd,1269840,,,,21/06/2021,2200177700,"2,500.00",,Payments to sub contractor,,,,,,No
The Royal Borough of Kensington and Chelsea,RBKC,,Capital,Capital,,Frankham Consultancy Group Ltd ,1234583,,,,01/04/2021,2200162618,"1,710.00",,Payments to main contractor,,,,,,No
The Royal Borough of Kensington and Chelsea,RBKC,,Capital,Capital,,Frankham Consultancy Group Ltd ,1234583,,,,01/04/2021,2200165092,770.00,,Payments to main contractor,,,,,,No
The Royal Borough of Kensington and Chelsea,RBKC,,Capital,Capital,,Frankham Consultancy Group Ltd ,1234583,,,,26/05/2021,2200172965,972.00,,Payments to main contractor,,,,,,No
The Royal Borough of Kensington and Chelsea,RBKC,,Capital,Capital,,Fusion Project Management Ltd,1268369,,,,04/05/2021,2200167743,"2,000.00",,,,,,,,No
The Royal Borough of Kensington and Chelsea,RBKC,,Capital,Capital,,Fusion Project Management Ltd,1268369,,,,04/05/2021,2200167745,"2,000.00",,,,,,,,No
The Royal Borough of Kensington and Chelsea,RBKC,,Capital,Capital,,Fusion Project Management Ltd,1268369,,,,04/05/2021,2200167746,"4,150.00",,,,,,,,No
The Royal Borough of Kensington and Chelsea,RBKC,,Capital,Capital,,Fusion Project Management Ltd,1268369,,,,05/05/2021,2200168007,"3,000.00",,Payments to main contractor,,,,,,No
The Royal Borough of Kensington and Chelsea,RBKC,,Capital,Capital,,Fusion Project Management Ltd,1268369,,,,12/05/2021,2200169666,"9,750.00",,Creditors GR/IR -,,,,,,No
The Royal Borough of Kensington and Chelsea,RBKC,,Capital,Capital,,Fusion Project Management Ltd,1268369,,,,18/05/2021,2200171005,"3,000.00",,Payments to main contractor,,,,,,No
The Royal Borough of Kensington and Chelsea,RBKC,,Capital,Capital,,Fusion Project Management Ltd,1268369,,,,26/05/2021,2200173024,"4,000.00",,Payments to main contractor,,,,,,No
The Royal Borough of Kensington and Chelsea,RBKC,,Capital,Capital,,Fusion Project Management Ltd,1268369,,,,17/06/2021,2200177232,"8,500.00",,Other Consultants,,,,,,No
The Royal Borough of Kensington and Chelsea,RBKC,,Capital,Capital,,Futurecity Limited,1274491,,,,01/04/2021,2200161796,"5,250.00",,Other Consultants,,,,,,No
The Royal Borough of Kensington and Chelsea,RBKC,,Capital,Capital,,Fidler Associates Ltd,D000000023,,,,08/04/2021,3110293778,"2,935.00",,,,,,,,No
The Royal Borough of Kensington and Chelsea,RBKC,,Capital,Capital,,Huntsman Eldridge Surveyors Ltd,D000000023,,,,21/04/2021,3110298794,990.00,,Payments to main contractor,,,,,,No
The Royal Borough of Kensington and Chelsea,RBKC,,Capital,Capital,,UK Timber Ltd,D000000023,,,,14/06/2021,3110317539,"7,470.00",,Romanse Expenses,,,,,,No
The Royal Borough of Kensington and Chelsea,RBKC,,Capital,Capital,,GGS Solutions Ltd ,1234644,,,,01/04/2021,2200161404,"11,760.00",,Payments to main contractor,,,,,,No
The Royal Borough of Kensington and Chelsea,RBKC,,Capital,Capital,,GGS Solutions Ltd ,1234644,,,,01/04/2021,2200161405,"11,088.00",,Payments to main contractor,,,,,,No
The Royal Borough of Kensington and Chelsea,RBKC,,Capital,Capital,,GGS Solutions Ltd ,1234644,,,,01/04/2021,2200161826,"11,088.00",,Payments to main contractor,,,,,,No
The Royal Borough of Kensington and Chelsea,RBKC,,Capital,Capital,,GGS Solutions Ltd ,1234644,,,,12/04/2021,2200163161,"10,416.00",,Payments to main contractor,,,,,,No
The Royal Borough of Kensington and Chelsea,RBKC,,Capital,Capital,,GGS Solutions Ltd ,1234644,,,,12/04/2021,2200163253,"10,416.00",,Payments to main contractor,,,,,,No
The Royal Borough of Kensington and Chelsea,RBKC,,Capital,Capital,,GGS Solutions Ltd ,1234644,,,,08/06/2021,2200175240,644.00,,Payments to main contractor,,,,,,No
The Royal Borough of Kensington and Chelsea,RBKC,,Capital,Capital,,GGS Solutions Ltd ,1234644,,,,08/06/2021,2200175244,"10,080.00",,Payments to main contractor,,,,,,No
The Royal Borough of Kensington and Chelsea,RBKC,,Capital,Capital,,GGS Solutions Ltd ,1234644,,,,08/06/2021,2200175245,"10,752.00",,Payments to main contractor,,,,,,No
The Royal Borough of Kensington and Chelsea,RBKC,,Capital,Capital,,GIA ,1234645,,,,07/06/2021,2200175059,"2,000.00",,Legal Fees & expenses,,,,,,No
The Royal Borough of Kensington and Chelsea,RBKC,,Capital,Capital,,Gardiner & Theobald LLP ,1234613,,,,01/04/2021,2200160958,"8,860.00",,Payments to main contractor,,,,,,No
The Royal Borough of Kensington and Chelsea,RBKC,,Capital,Capital,,Gardiner & Theobald LLP ,1234613,,,,01/04/2021,2200161603,"4,500.00",,Other Consultants,,,,,,No
The Royal Borough of Kensington and Chelsea,RBKC,,Capital,Capital,,Gardiner & Theobald LLP ,1234613,,,,28/04/2021,2200166810,"8,860.00",,Payments to main contractor,,,,,,No
The Royal Borough of Kensington and Chelsea,RBKC,,Capital,Capital,,Gardiner & Theobald LLP ,1234613,,,,11/06/2021,2200176060,"8,860.00",,Payments to main contractor,,,,,,No
The Royal Borough of Kensington and Chelsea,RBKC,,Capital,Capital,,Gardiner & Theobald LLP ,1234613,,,,22/06/2021,2200177913,"4,500.00",,Other Consultants,,,,,,No
The Royal Borough of Kensington and Chelsea,RBKC,,Capital,Capital,,Garvey Bros Builders ,1234614,,,,01/04/2021,2200161660,"7,585.00",,Payments to main contractor,,,,,,No
The Royal Borough of Kensington and Chelsea,RBKC,,Capital,Capital,,Gas Contract Services Ltd ,1234618,,,,06/04/2021,2200161578,"4,425.00",,,,,,,,No
The Royal Borough of Kensington and Chelsea,RBKC,,Capital,Capital,,Geotechnical and Environmental,1234639,,,,11/05/2021,2200169363,591.25,,Payments to main contractor,,,,,,No
The Royal Borough of Kensington and Chelsea,RBKC,,Capital,Capital,,Geotechnical and Environmental,1234639,,,,12/05/2021,2200169601,"1,425.00",,Payments to sub contractor,,,,,,No
The Royal Borough of Kensington and Chelsea,RBKC,,Capital,Capital,,Gerda Security Products Ltd ,1234642,,,,01/04/2021,2200161187,"6,530.51",,Payments to main contractor,,,,,,No
The Royal Borough of Kensington and Chelsea,RBKC,,Capital,Capital,,Gerda Security Products Ltd ,1234642,,,,01/04/2021,2200161218,"87,061.84",,Payments to main contractor,,,,,,No
The Royal Borough of Kensington and Chelsea,RBKC,,Capital,Capital,,Gerda Security Products Ltd ,1234642,,,,01/04/2021,2200163351,"1,649.89",,Payments to main contractor,,,,,,No
The Royal Borough of Kensington and Chelsea,RBKC,,Capital,Capital,,Gerda Security Products Ltd ,1234642,,,,09/04/2021,2200162828,"6,300.00",,Payments to main contractor,,,,,,No
The Royal Borough of Kensington and Chelsea,RBKC,,Capital,Capital,,Gerda Security Products Ltd ,1234642,,,,09/04/2021,2200162829,"7,000.00",,Payments to main contractor,,,,,,No
The Royal Borough of Kensington and Chelsea,RBKC,,Capital,Capital,,Gerda Security Products Ltd ,1234642,,,,09/04/2021,2200162847,700.00,,Payments to main contractor,,,,,,No
The Royal Borough of Kensington and Chelsea,RBKC,,Capital,Capital,,Gerda Security Products Ltd ,1234642,,,,12/04/2021,2200163273,"14,700.00",,Payments to main contractor,,,,,,No
The Royal Borough of Kensington and Chelsea,RBKC,,Capital,Capital,,Gerda Security Products Ltd ,1234642,,,,16/04/2021,2200164185,"9,044.64",,Payments to main contractor,,,,,,No
The Royal Borough of Kensington and Chelsea,RBKC,,Capital,Capital,,Gerda Security Products Ltd ,1234642,,,,06/05/2021,2200168221,"7,240.95",,Payments to main contractor,,,,,,No
The Royal Borough of Kensington and Chelsea,RBKC,,Capital,Capital,,Gerda Security Products Ltd ,1234642,,,,06/05/2021,2200168223,"3,567.80",,Payments to main contractor,,,,,,No
The Royal Borough of Kensington and Chelsea,RBKC,,Capital,Capital,,Gerda Security Products Ltd ,1234642,,,,06/05/2021,2200168224,"4,134.18",,Payments to main contractor,,,,,,No
The Royal Borough of Kensington and Chelsea,RBKC,,Capital,Capital,,Gerda Security Products Ltd ,1234642,,,,06/05/2021,2200168226,735.52,,Payments to main contractor,,,,,,No
The Royal Borough of Kensington and Chelsea,RBKC,,Capital,Capital,,Gerda Security Products Ltd ,1234642,,,,06/05/2021,2200168227,"5,950.00",,Payments to main contractor,,,,,,No
The Royal Borough of Kensington and Chelsea,RBKC,,Capital,Capital,,Gerda Security Products Ltd ,1234642,,,,06/05/2021,2200168230,"2,800.00",,Payments to main contractor,,,,,,No
The Royal Borough of Kensington and Chelsea,RBKC,,Capital,Capital,,Gerda Security Products Ltd ,1234642,,,,06/05/2021,2200168231,"3,500.00",,Payments to main contractor,,,,,,No
The Royal Borough of Kensington and Chelsea,RBKC,,Capital,Capital,,Gerda Security Products Ltd ,1234642,,,,06/05/2021,2200168232,"3,850.00",,Payments to main contractor,,,,,,No
The Royal Borough of Kensington and Chelsea,RBKC,,Capital,Capital,,Gerda Security Products Ltd ,1234642,,,,07/05/2021,2200168577,"1,750.00",,Payments to main contractor,,,,,,No
The Royal Borough of Kensington and Chelsea,RBKC,,Capital,Capital,,Gerda Security Products Ltd ,1234642,,,,07/05/2021,2200168579,"13,483.47",,Payments to main contractor,,,,,,No
The Royal Borough of Kensington and Chelsea,RBKC,,Capital,Capital,,Gerda Security Products Ltd ,1234642,,,,07/05/2021,2200168580,"17,583.12",,Payments to main contractor,,,,,,No
The Royal Borough of Kensington and Chelsea,RBKC,,Capital,Capital,,Gerda Security Products Ltd ,1234642,,,,14/05/2021,2200170382,"12,195.97",,Payments to main contractor,,,,,,No
The Royal Borough of Kensington and Chelsea,RBKC,,Capital,Capital,,Gerda Security Products Ltd ,1234642,,,,20/05/2021,2200171480,756.73,,Payments to main contractor,,,,,,No
The Royal Borough of Kensington and Chelsea,RBKC,,Capital,Capital,,Gerda Security Products Ltd ,1234642,,,,03/06/2021,2200174135,"19,410.11",,Payments to main contractor,,,,,,No
The Royal Borough of Kensington and Chelsea,RBKC,,Capital,Capital,,Gerda Security Products Ltd ,1234642,,,,03/06/2021,2200174136,"5,769.89",,Payments to main contractor,,,,,,No
The Royal Borough of Kensington and Chelsea,RBKC,,Capital,Capital,,Gerda Security Products Ltd ,1234642,,,,03/06/2021,2200174137,"11,593.98",,Payments to main contractor,,,,,,No
The Royal Borough of Kensington and Chelsea,RBKC,,Capital,Capital,,Gerda Security Products Ltd ,1234642,,,,03/06/2021,2200174138,"3,653.38",,Payments to main contractor,,,,,,No
The Royal Borough of Kensington and Chelsea,RBKC,,Capital,Capital,,Gerda Security Products Ltd ,1234642,,,,04/06/2021,2200174416,687.45,,Payments to main contractor,,,,,,No
The Royal Borough of Kensington and Chelsea,RBKC,,Capital,Capital,,Gerda Security Products Ltd ,1234642,,,,07/06/2021,2200174956,"4,550.00",,Payments to main contractor,,,,,,No
The Royal Borough of Kensington and Chelsea,RBKC,,Capital,Capital,,Gerda Security Products Ltd ,1234642,,,,07/06/2021,2200174957,"2,100.00",,Payments to main contractor,,,,,,No
The Royal Borough of Kensington and Chelsea,RBKC,,Capital,Capital,,Gerda Security Products Ltd ,1234642,,,,07/06/2021,2200174958,"3,150.00",,Payments to main contractor,,,,,,No
The Royal Borough of Kensington and Chelsea,RBKC,,Capital,Capital,,Gerda Security Products Ltd ,1234642,,,,07/06/2021,2200174959,"4,200.00",,Payments to main contractor,,,,,,No
The Royal Borough of Kensington and Chelsea,RBKC,,Capital,Capital,,Gerda Security Products Ltd ,1234642,,,,07/06/2021,2200174960,"8,050.00",,Payments to main contractor,,,,,,No
The Royal Borough of Kensington and Chelsea,RBKC,,Capital,Capital,,Gerda Security Products Ltd ,1234642,,,,07/06/2021,2200174961,"4,200.00",,Payments to main contractor,,,,,,No
The Royal Borough of Kensington and Chelsea,RBKC,,Capital,Capital,,Gerda Security Products Ltd ,1234642,,,,07/06/2021,2200174962,"1,050.00",,Payments to main contractor,,,,,,No
The Royal Borough of Kensington and Chelsea,RBKC,,Capital,Capital,,Gerda Security Products Ltd ,1234642,,,,07/06/2021,2200174988,"1,750.00",,Payments to main contractor,,,,,,No
The Royal Borough of Kensington and Chelsea,RBKC,,Capital,Capital,,Gerda Security Products Ltd ,1234642,,,,09/06/2021,2200175525,"39,942.34",,Planned Maintenance (CM),,,,,,No
The Royal Borough of Kensington and Chelsea,RBKC,,Capital,Capital,,Gerda Security Products Ltd ,1234642,,,,11/06/2021,2200176154,"1,205.71",,Payments to main contractor,,,,,,No
The Royal Borough of Kensington and Chelsea,RBKC,,Capital,Capital,,Gerda Security Products Ltd ,1234642,,,,16/06/2021,2200176972,682.57,,Payments to main contractor,,,,,,No
The Royal Borough of Kensington and Chelsea,RBKC,,Capital,Capital,,Gerda Security Products Ltd ,1234642,,,,16/06/2021,2200176991,"3,171.30",,Payments to main contractor,,,,,,No
The Royal Borough of Kensington and Chelsea,RBKC,,Capital,Capital,,Gerda Security Products Ltd ,1234642,,,,16/06/2021,2200176994,"3,171.30",,Payments to main contractor,,,,,,No
The Royal Borough of Kensington and Chelsea,RBKC,,Capital,Capital,,Gerda Security Products Ltd ,1234642,,,,18/06/2021,2200177396,"16,928.51",,Payments to main contractor,,,,,,No
The Royal Borough of Kensington and Chelsea,RBKC,,Capital,Capital,,Gerda Security Products Ltd ,1234642,,,,30/06/2021,2200179518,"2,797.54",,Payments to main contractor,,,,,,No
The Royal Borough of Kensington and Chelsea,RBKC,,Capital,Capital,,Green Building Design Consultants L,1256002,,,,15/06/2021,2200176680,"5,080.00",,Planned Maintenance (CM),,,,,,No
The Royal Borough of Kensington and Chelsea,RBKC,,Capital,Capital,,Greenacre Recruitment,1258089,,,,01/04/2021,2200163215,"2,625.00",,B*Strategic Building Maintenance,,,,,,No
The Royal Borough of Kensington and Chelsea,RBKC,,Capital,Capital,,Greenacre Recruitment,1258089,,,,12/04/2021,2200163209,"2,625.00",,B*Strategic Building Maintenance,,,,,,No
The Royal Borough of Kensington and Chelsea,RBKC,,Capital,Capital,,Greenacre Recruitment,1258089,,,,13/04/2021,2200163442,"2,625.00",,B*Strategic Building Maintenance,,,,,,No
The Royal Borough of Kensington and Chelsea,RBKC,,Capital,Capital,,Greenacre Recruitment,1258089,,,,13/04/2021,2200163443,"2,100.00",,B*Strategic Building Maintenance,,,,,,No
The Royal Borough of Kensington and Chelsea,RBKC,,Capital,Capital,,Greenacre Recruitment,1258089,,,,20/04/2021,2200164795,"2,100.00",,B*Strategic Building Maintenance,,,,,,No
The Royal Borough of Kensington and Chelsea,RBKC,,Capital,Capital,,Greenacre Recruitment,1258089,,,,23/04/2021,2200165756,"2,625.00",,B*Strategic Building Maintenance,,,,,,No
The Royal Borough of Kensington and Chelsea,RBKC,,Capital,Capital,,Greenacre Recruitment,1258089,,,,04/05/2021,2200167694,"2,362.50",,B*Strategic Building Maintenance,,,,,,No
The Royal Borough of Kensington and Chelsea,RBKC,,Capital,Capital,,Greenacre Recruitment,1258089,,,,19/05/2021,2200171125,"2,625.00",,B*Strategic Building Maintenance,,,,,,No
The Royal Borough of Kensington and Chelsea,RBKC,,Capital,Capital,,Greenacre Recruitment,1258089,,,,19/05/2021,2200171130,"2,100.00",,B*Strategic Building Maintenance,,,,,,No
The Royal Borough of Kensington and Chelsea,RBKC,,Capital,Capital,,Greenacre Recruitment,1258089,,,,25/05/2021,2200172351,"2,625.00",,B*Strategic Building Maintenance,,,,,,No
The Royal Borough of Kensington and Chelsea,RBKC,,Capital,Capital,,Greenacre Recruitment,1258089,,,,28/05/2021,2200173501,"2,625.00",,B*Strategic Building Maintenance,,,,,,No
The Royal Borough of Kensington and Chelsea,RBKC,,Capital,Capital,,Greenacre Recruitment,1258089,,,,07/06/2021,2200174929,"2,625.00",,B*Strategic Building Maintenance,,,,,,No
The Royal Borough of Kensington and Chelsea,RBKC,,Capital,Capital,,Greenacre Recruitment,1258089,,,,10/06/2021,2200175692,"2,100.00",,B*Strategic Building Maintenance,,,,,,No
The Royal Borough of Kensington and Chelsea,RBKC,,Capital,Capital,,Greenwich Leisure Ltd (Gll) ,1234678,,,,14/04/2021,2200163754,"149,130.00",,Romanse Expenses,,,,,,No
The Royal Borough of Kensington and Chelsea,RBKC,,Capital,Capital,,Guarding UK Ltd ,1230372,,,,09/04/2021,2200162555,"2,834.00",,Payments to main contractor,,,,,,No
The Royal Borough of Kensington and Chelsea,RBKC,,Capital,Capital,,Guarding UK Ltd ,1230372,,,,09/04/2021,2200162556,"2,834.00",,Payments to main contractor,,,,,,No
The Royal Borough of Kensington and Chelsea,RBKC,,Capital,Capital,,Guarding UK Ltd ,1230372,,,,15/04/2021,2200163893,"2,834.00",,Site Works,,,,,,No
The Royal Borough of Kensington and Chelsea,RBKC,,Capital,Capital,,Guarding UK Ltd ,1230372,,,,15/04/2021,2200163943,"3,503.97",,Payments to main contractor,,,,,,No
The Royal Borough of Kensington and Chelsea,RBKC,,Capital,Capital,,Guarding UK Ltd ,1230372,,,,10/05/2021,2200168719,"2,834.00",,Payments to main contractor,,,,,,No
The Royal Borough of Kensington and Chelsea,RBKC,,Capital,Capital,,Guarding UK Ltd ,1230372,,,,10/05/2021,2200168720,"3,503.97",,Payments to main contractor,,,,,,No
The Royal Borough of Kensington and Chelsea,RBKC,,Capital,Capital,,Guideline Lift Services Ltd ,1231219,,,,06/04/2021,2200161567,"20,149.80",,Payments to main contractor,,,,,,No
The Royal Borough of Kensington and Chelsea,RBKC,,Capital,Capital,,Guideline Lift Services Ltd ,1231219,,,,06/04/2021,2200161568,"29,378.35",,Payments to main contractor,,,,,,No
The Royal Borough of Kensington and Chelsea,RBKC,,Capital,Capital,,Guideline Lift Services Ltd ,1231219,,,,06/04/2021,2200161569,"16,419.80",,Payments to main contractor,,,,,,No
The Royal Borough of Kensington and Chelsea,RBKC,,Capital,Capital,,Guideline Lift Services Ltd ,1231219,,,,06/04/2021,2200161570,"24,119.92",,Payments to main contractor,,,,,,No
The Royal Borough of Kensington and Chelsea,RBKC,,Capital,Capital,,Guideline Lift Services Ltd ,1231219,,,,12/05/2021,2200169825,"27,727.40",,Payments to main contractor,,,,,,No
The Royal Borough of Kensington and Chelsea,RBKC,,Capital,Capital,,Guideline Lift Services Ltd ,1231219,,,,12/05/2021,2200169826,"30,247.00",,Payments to main contractor,,,,,,No
The Royal Borough of Kensington and Chelsea,RBKC,,Capital,Capital,,Guideline Lift Services Ltd ,1231219,,,,12/05/2021,2200169828,"19,295.94",,Payments to main contractor,,,,,,No
The Royal Borough of Kensington and Chelsea,RBKC,,Capital,Capital,,Guideline Lift Services Ltd ,1231219,,,,12/05/2021,2200169832,"35,262.15",,Payments to main contractor,,,,,,No
The Royal Borough of Kensington and Chelsea,RBKC,,Capital,Capital,,Guideline Lift Services Ltd ,1231219,,,,10/06/2021,2200175936,"28,518.60",,Payments to main contractor,,,,,,No
The Royal Borough of Kensington and Chelsea,RBKC,,Capital,Capital,,Guideline Lift Services Ltd ,1231219,,,,10/06/2021,2200175937,"31,410.35",,Payments to main contractor,,,,,,No
The Royal Borough of Kensington and Chelsea,RBKC,,Capital,Capital,,Guideline Lift Services Ltd ,1231219,,,,11/06/2021,2200176072,"2,284.00",,Payments to main contractor,,,,,,No
The Royal Borough of Kensington and Chelsea,RBKC,,Capital,Capital,,Guideline Lift Services Ltd ,1231219,,,,11/06/2021,2200176073,"5,037.45",,Payments to main contractor,,,,,,No
The Royal Borough of Kensington and Chelsea,RBKC,,Capital,Capital,,Guideline Lift Services Ltd ,1231219,,,,15/06/2021,2200176632,"11,787.00",,Payments to main contractor,,,,,,No
The Royal Borough of Kensington and Chelsea,RBKC,,Capital,Capital,,Guideline Lift Services Ltd ,1231219,,,,15/06/2021,2200176666,"24,583.98",,Payments to main contractor,,,,,,No
The Royal Borough of Kensington and Chelsea,RBKC,,Capital,Capital,,HULLABALOO VISUAL COMMUNICATIONS LT,1276452,,,,21/04/2021,2200165276,"4,200.00",,Design Consultant,,,,,,No
The Royal Borough of Kensington and Chelsea,RBKC,,Capital,Capital,,Hays Specialist Recruitment Ltd ,1234704,,,,01/04/2021,2200161015,"1,040.05",,B*Strategic Building Maintenance,,,,,,No
The Royal Borough of Kensington and Chelsea,RBKC,,Capital,Capital,,Hays Specialist Recruitment Ltd ,1234704,,,,01/04/2021,2200161226,"1,040.05",,B*Strategic Building Maintenance,,,,,,No
The Royal Borough of Kensington and Chelsea,RBKC,,Capital,Capital,,Hays Specialist Recruitment Ltd ,1234704,,,,13/04/2021,2200163459,"1,040.05",,B*Strategic Building Maintenance,,,,,,No
The Royal Borough of Kensington and Chelsea,RBKC,,Capital,Capital,,Hays Specialist Recruitment Ltd ,1234704,,,,05/05/2021,2200168000,750.00,,,,,,,,No
The Royal Borough of Kensington and Chelsea,RBKC,,Capital,Capital,,Hays Specialist Recruitment Ltd ,1234704,,,,05/05/2021,2200168001,"1,500.00",,,,,,,,No
The Royal Borough of Kensington and Chelsea,RBKC,,Capital,Capital,,Hays Specialist Recruitment Ltd ,1234704,,,,05/05/2021,2200168002,750.00,,,,,,,,No
The Royal Borough of Kensington and Chelsea,RBKC,,Capital,Capital,,Hays Specialist Recruitment Ltd ,1234704,,,,05/05/2021,2200168003,750.00,,,,,,,,No
The Royal Borough of Kensington and Chelsea,RBKC,,Capital,Capital,,Hays Specialist Recruitment Ltd ,1234704,,,,18/05/2021,2200170999,750.00,,,,,,,,No
The Royal Borough of Kensington and Chelsea,RBKC,,Capital,Capital,,Helix Construct Limited,1270811,,,,09/04/2021,2200162553,"91,411.73",,Payments to main contractor,,,,,,No
The Royal Borough of Kensington and Chelsea,RBKC,,Capital,Capital,,Helix Construct Limited,1270811,,,,28/05/2021,2200173521,"2,847.74",,Payments to main contractor,,,,,,No
The Royal Borough of Kensington and Chelsea,RBKC,,Capital,Capital,,Helix Construct Limited,1270811,,,,04/06/2021,2200174464,"15,860.95",,Payments to main contractor,,,,,,No
The Royal Borough of Kensington and Chelsea,RBKC,,Capital,Capital,,Henry Riley LLP ,1230402,,,,01/04/2021,2200162600,"10,050.00",,Payments to main contractor,,,,,,No
The Royal Borough of Kensington and Chelsea,RBKC,,Capital,Capital,,Henry Riley LLP ,1230402,,,,29/04/2021,2200166991,"6,600.00",,Payments to main contractor,,,,,,No
The Royal Borough of Kensington and Chelsea,RBKC,,Capital,Capital,,Henry Riley LLP ,1230402,,,,28/05/2021,2200173520,"6,600.00",,Payments to main contractor,,,,,,No
The Royal Borough of Kensington and Chelsea,RBKC,,Capital,Capital,,INSITE ENERGY LIMITED,1273497,,,,09/04/2021,2200162586,"13,566.00",,Special Maintenance,,,,,,No
The Royal Borough of Kensington and Chelsea,RBKC,,Capital,Capital,,IP Fire & Security Ltd ,1230487,,,,23/06/2021,2200178312,"2,800.00",,Payments to main contractor,,,,,,No
The Royal Borough of Kensington and Chelsea,RBKC,,Capital,Capital,,Idverde Ltd ,1231380,,,,07/04/2021,2200161841,"2,500.00",,Site Works,,,,,,No
The Royal Borough of Kensington and Chelsea,RBKC,,Capital,Capital,,Idverde Ltd ,1231380,,,,08/04/2021,2200162424,"12,468.00",,Romanse Expenses,,,,,,No
The Royal Borough of Kensington and Chelsea,RBKC,,Capital,Capital,,Idverde Ltd ,1231380,,,,21/04/2021,2200165067,"1,261.02",,Arboriculture/landscaping,,,,,,No
The Royal Borough of Kensington and Chelsea,RBKC,,Capital,Capital,,Ignas Ltd,1275887,,,,01/04/2021,2200160811,"11,725.00",,Romanse Expenses,,,,,,No
The Royal Borough of Kensington and Chelsea,RBKC,,Capital,Capital,,Ignas Ltd,1275887,,,,01/04/2021,2200161637,"8,434.00",,Site Works,,,,,,No
The Royal Borough of Kensington and Chelsea,RBKC,,Capital,Capital,,Ignas Ltd,1275887,,,,01/04/2021,2200161638,"3,995.00",,Site Works,,,,,,No
The Royal Borough of Kensington and Chelsea,RBKC,,Capital,Capital,,Ignas Ltd,1275887,,,,19/04/2021,2200164442,"1,765.00",,Romanse Expenses,,,,,,No
The Royal Borough of Kensington and Chelsea,RBKC,,Capital,Capital,,Ignas Ltd,1275887,,,,16/06/2021,2200176996,"6,249.00",,Romanse Expenses,,,,,,No
The Royal Borough of Kensington and Chelsea,RBKC,,Capital,Capital,,Indigo Lodge Limited T/A Drayton Fencing,1231381,,,,01/04/2021,2200160823,656.00,,Romanse Expenses,,,,,,No
The Royal Borough of Kensington and Chelsea,RBKC,,Capital,Capital,,Ingleton Wood ,1234783,,,,19/04/2021,2200164441,"2,850.00",,Design Consultant,,,,,,No
The Royal Borough of Kensington and Chelsea,RBKC,,Capital,Capital,,Invicta Building Services Ltd,1231382,,,,02/06/2021,2200173890,"25,158.00",,Payments to main contractor,,,,,,No
The Royal Borough of Kensington and Chelsea,RBKC,,Capital,Capital,,Invicta Building Services Ltd,1231382,,,,11/06/2021,2200176011,939.00,,Payments to main contractor,,,,,,No
The Royal Borough of Kensington and Chelsea,RBKC,,Capital,Capital,,Isle Utilities Ltd.,1278802,,,,24/05/2021,2200172222,"9,247.50",,Other Consultants,,,,,,No
The Royal Borough of Kensington and Chelsea,RBKC,,Capital,Capital,,JH Crawford Security Ltd ,1234817,,,,09/06/2021,2200175497,"3,839.65",,Payments to main contractor,,,,,,No
The Royal Borough of Kensington and Chelsea,RBKC,,Capital,Capital,,JH Crawford Security Ltd ,1234817,,,,10/06/2021,2200175731,"2,597.90",,Payments to main contractor,,,,,,No
The Royal Borough of Kensington and Chelsea,RBKC,,Capital,Capital,,JH Crawford Security Ltd ,1234817,,,,16/06/2021,2200177030,904.00,,Payments to main contractor,,,,,,No
The Royal Borough of Kensington and Chelsea,RBKC,,Capital,Capital,,JH Crawford Security Ltd ,1234817,,,,16/06/2021,2200177031,"3,455.90",,Payments to main contractor,,,,,,No
The Royal Borough of Kensington and Chelsea,RBKC,,Capital,Capital,,Jackson Coles LLP ,1230491,,,,01/04/2021,2200160944,785.07,,Other Consultants,,,,,,No
The Royal Borough of Kensington and Chelsea,RBKC,,Capital,Capital,,Jackson Coles LLP ,1230491,,,,22/04/2021,2200165633,"3,189.00",,Other Consultants,,,,,,No
The Royal Borough of Kensington and Chelsea,RBKC,,Capital,Capital,,Jackson Coles LLP ,1230491,,,,25/05/2021,2200172428,"3,189.00",,Other Consultants,,,,,,No
The Royal Borough of Kensington and Chelsea,RBKC,,Capital,Capital,,Jackson Coles LLP ,1230491,,,,03/06/2021,2200174200,"1,570.00",,Other Consultants,,,,,,No
The Royal Borough of Kensington and Chelsea,RBKC,,Capital,Capital,,Redact Details,1277228,,,,27/04/2021,2200166347,"5,862.50",,Design Consultant,,,,,,No
The Royal Borough of Kensington and Chelsea,RBKC,,Capital,Capital,,John McAslan & Partners Limited ,1254281,,,,07/05/2021,2200168549,"5,500.00",,,,,,,,No
The Royal Borough of Kensington and Chelsea,RBKC,,Capital,Capital,,John McAslan & Partners Limited ,1254281,,,,07/05/2021,2200168552,"3,960.00",,,,,,,,No
The Royal Borough of Kensington and Chelsea,RBKC,,Capital,Capital,,John McAslan & Partners Limited ,1254281,,,,07/05/2021,2200168576,"12,500.00",,,,,,,,No
The Royal Borough of Kensington and Chelsea,RBKC,,Capital,Capital,,K & T Heating Services Ltd ,1231384,,,,01/04/2021,2200162592,"20,112.00",,Payments to main contractor,,,,,,No
The Royal Borough of Kensington and Chelsea,RBKC,,Capital,Capital,,K & T Heating Services Ltd ,1231384,,,,06/04/2021,2200161665,"7,025.95",,Payments to main contractor,,,,,,No
The Royal Borough of Kensington and Chelsea,RBKC,,Capital,Capital,,K & T Heating Services Ltd ,1231384,,,,06/04/2021,2200161667,"7,465.60",,Payments to main contractor,,,,,,No
The Royal Borough of Kensington and Chelsea,RBKC,,Capital,Capital,,K & T Heating Services Ltd ,1231384,,,,06/04/2021,2200161668,"7,329.43",,Payments to main contractor,,,,,,No
The Royal Borough of Kensington and Chelsea,RBKC,,Capital,Capital,,K & T Heating Services Ltd ,1231384,,,,08/04/2021,2200162255,"1,658.00",,Payments to main contractor,,,,,,No
The Royal Borough of Kensington and Chelsea,RBKC,,Capital,Capital,,K & T Heating Services Ltd ,1231384,,,,09/04/2021,2200162827,"74,534.25",,Payments to main contractor,,,,,,No
The Royal Borough of Kensington and Chelsea,RBKC,,Capital,Capital,,K & T Heating Services Ltd ,1231384,,,,13/04/2021,2200163573,"11,102.00",,Payments to main contractor,,,,,,No
The Royal Borough of Kensington and Chelsea,RBKC,,Capital,Capital,,K & T Heating Services Ltd ,1231384,,,,20/04/2021,2200164967,"2,915.39",,Payments to main contractor,,,,,,No
The Royal Borough of Kensington and Chelsea,RBKC,,Capital,Capital,,K & T Heating Services Ltd ,1231384,,,,13/05/2021,2200170255,"7,329.43",,Payments to main contractor,,,,,,No
The Royal Borough of Kensington and Chelsea,RBKC,,Capital,Capital,,K & T Heating Services Ltd ,1231384,,,,24/05/2021,2200172236,"17,322.10",,Payments to main contractor,,,,,,No
The Royal Borough of Kensington and Chelsea,RBKC,,Capital,Capital,,K & T Heating Services Ltd ,1231384,,,,27/05/2021,2200173296,"7,465.60",,Payments to main contractor,,,,,,No
The Royal Borough of Kensington and Chelsea,RBKC,,Capital,Capital,,K & T Heating Services Ltd ,1231384,,,,01/06/2021,2200173736,"4,311.29",,Heating System Replacement - CM,,,,,,No
The Royal Borough of Kensington and Chelsea,RBKC,,Capital,Capital,,K & T Heating Services Ltd ,1231384,,,,02/06/2021,2200173889,"44,692.82",,Payments to main contractor,,,,,,No
The Royal Borough of Kensington and Chelsea,RBKC,,Capital,Capital,,K & T Heating Services Ltd ,1231384,,,,03/06/2021,2200174170,"30,105.00",,Payments to main contractor,,,,,,No
The Royal Borough of Kensington and Chelsea,RBKC,,Capital,Capital,,K & T Heating Services Ltd ,1231384,,,,18/06/2021,2200177373,"7,465.60",,Payments to main contractor,,,,,,No
The Royal Borough of Kensington and Chelsea,RBKC,,Capital,Capital,,K & T Heating Services Ltd ,1231384,,,,18/06/2021,2200177374,"7,329.43",,Payments to main contractor,,,,,,No
The Royal Borough of Kensington and Chelsea,RBKC,,Capital,Capital,,K & T Heating Services Ltd ,1231384,,,,29/06/2021,2200179259,"3,901.00",,Payments to main contractor,,,,,,No
The Royal Borough of Kensington and Chelsea,RBKC,,Capital,Capital,,KBH Building Services Ltd,1276614,,,,25/05/2021,2200172653,"55,522.70",,Special Maintenance,,,,,,No
The Royal Borough of Kensington and Chelsea,RBKC,,Capital,Capital,,KBH Building Services Ltd,1276614,,,,11/06/2021,2200176014,"46,545.92",,Special Maintenance,,,,,,No
The Royal Borough of Kensington and Chelsea,RBKC,,Capital,Capital,,KBH Building Services Ltd,1276614,,,,11/06/2021,2200176019,"66,111.69",,Special Maintenance,,,,,,No
The Royal Borough of Kensington and Chelsea,RBKC,,Capital,Capital,,Karakusevic Carson Architects LLP,1273973,,,,13/04/2021,2200163481,"115,000.00",,Payments to main contractor,,,,,,No
The Royal Borough of Kensington and Chelsea,RBKC,,Capital,Capital,,Karakusevic Carson Architects LLP,1273973,,,,14/04/2021,2200163709,"19,368.00",,Payments to main contractor,,,,,,No
The Royal Borough of Kensington and Chelsea,RBKC,,Capital,Capital,,Karakusevic Carson Architects LLP,1273973,,,,24/05/2021,2200172219,"115,000.00",,Payments to main contractor,,,,,,No
The Royal Borough of Kensington and Chelsea,RBKC,,Capital,Capital,,Karakusevic Carson Architects LLP,1273973,,,,07/06/2021,2200174947,"115,000.00",,Payments to main contractor,,,,,,No
The Royal Borough of Kensington and Chelsea,RBKC,,Capital,Capital,,Keegans Ltd,1234845,,,,30/06/2021,2200179654,800.00,,Design Consultant,,,,,,No
The Royal Borough of Kensington and Chelsea,RBKC,,Capital,Capital,,Keel Surveyors Partnership (KSP),1234846,,,,08/06/2021,2200175275,"1,515.00",,Payments to main contractor,,,,,,No
The Royal Borough of Kensington and Chelsea,RBKC,,Capital,Capital,,Keel Surveyors Partnership (KSP),1234846,,,,10/06/2021,2200175675,"1,015.00",,Payments to main contractor,,,,,,No
The Royal Borough of Kensington and Chelsea,RBKC,,Capital,Capital,,Kelleher Utility Solutions Ltd,1276893,,,,22/04/2021,2200165537,"29,655.00",,Special Maintenance,,,,,,No
The Royal Borough of Kensington and Chelsea,RBKC,,Capital,Capital,,Kelleher Utility Solutions Ltd,1276893,,,,11/06/2021,2200176013,"18,350.00",,Special Maintenance,,,,,,No
The Royal Borough of Kensington and Chelsea,RBKC,,Capital,Capital,,Kelleher Utility Solutions Ltd,1276893,,,,11/06/2021,2200176135,"4,389.81",,Special Maintenance,,,,,,No
The Royal Borough of Kensington and Chelsea,RBKC,,Capital,Capital,,Kelleher Utility Solutions Ltd,1276893,,,,11/06/2021,2200176141,"22,936.00",,Special Maintenance,,,,,,No
The Royal Borough of Kensington and Chelsea,RBKC,,Capital,Capital,,Khipu Networks ,1230544,,,,04/05/2021,2200167676,"5,988.48",,Other capital equipment,,,,,,No
The Royal Borough of Kensington and Chelsea,RBKC,,Capital,Capital,,Kilburn Nightingale Architects Ltd,1262316,,,,19/05/2021,2200171188,"2,236.25",,Planned Maintenance (CM),,,,,,No
The Royal Borough of Kensington and Chelsea,RBKC,,Capital,Capital,,Kilburn Nightingale Architects Ltd,1262316,,,,19/05/2021,2200171189,"4,552.50",,Planned Maintenance (CM),,,,,,No
The Royal Borough of Kensington and Chelsea,RBKC,,Capital,Capital,,Kilburn Nightingale Architects Ltd,1262316,,,,19/05/2021,2200171190,975.00,,Planned Maintenance (CM),,,,,,No
The Royal Borough of Kensington and Chelsea,RBKC,,Capital,Capital,,Kilburn Nightingale Architects Ltd,1262316,,,,26/05/2021,2200173032,"6,404.80",,Planned Maintenance (CM),,,,,,No
The Royal Borough of Kensington and Chelsea,RBKC,,Capital,Capital,,Kilburn Nightingale Architects Ltd,1262316,,,,26/05/2021,2200173033,"4,407.09",,Planned Maintenance (CM),,,,,,No
The Royal Borough of Kensington and Chelsea,RBKC,,Capital,Capital,,Kilburn Nightingale Architects Ltd,1262316,,,,26/05/2021,2200173034,990.12,,Planned Maintenance (CM),,,,,,No
The Royal Borough of Kensington and Chelsea,RBKC,,Capital,Capital,,Kilburn Nightingale Architects Ltd,1262316,,,,03/06/2021,2200174157,"5,850.60",,Planned Maintenance (CM),,,,,,No
The Royal Borough of Kensington and Chelsea,RBKC,,Capital,Capital,,Kilburn Nightingale Architects Ltd,1262316,,,,03/06/2021,2200174217,"3,200.00",,Planned Maintenance (CM),,,,,,No
The Royal Borough of Kensington and Chelsea,RBKC,,Capital,Capital,,Kilburn Nightingale Architects Ltd,1262316,,,,03/06/2021,2200174218,"1,750.00",,Planned Maintenance (CM),,,,,,No
The Royal Borough of Kensington and Chelsea,RBKC,,Capital,Capital,,Kilburn Nightingale Architects Ltd,1262316,,,,10/06/2021,2200175717,"4,612.50",,Planned Maintenance (CM),,,,,,No
The Royal Borough of Kensington and Chelsea,RBKC,,Capital,Capital,,Kilburn Nightingale Architects Ltd,1262316,,,,10/06/2021,2200175719,"1,200.00",,Planned Maintenance (CM),,,,,,No
The Royal Borough of Kensington and Chelsea,RBKC,,Capital,Capital,,Kilburn Nightingale Architects Ltd,1262316,,,,21/06/2021,2200177597,"1,913.75",,Planned Maintenance (CM),,,,,,No
The Royal Borough of Kensington and Chelsea,RBKC,,Capital,Capital,,Kilburn Nightingale Architects Ltd,1262316,,,,29/06/2021,2200179378,"1,818.33",,Planned Maintenance (CM),,,,,,No
The Royal Borough of Kensington and Chelsea,RBKC,,Capital,Capital,,Kilburn Nightingale Architects Ltd,1262316,,,,29/06/2021,2200179385,"2,721.25",,Planned Maintenance (CM),,,,,,No
The Royal Borough of Kensington and Chelsea,RBKC,,Capital,Capital,,Kilburn Nightingale Architects Ltd,1262316,,,,29/06/2021,2200179387,"1,000.00",,Planned Maintenance (CM),,,,,,No
The Royal Borough of Kensington and Chelsea,RBKC,,Capital,Capital,,Land Survey Solutions Ltd,1274810,,,,16/04/2021,2200164261,"10,750.00",,Payments to main contractor,,,,,,No
The Royal Borough of Kensington and Chelsea,RBKC,,Capital,Capital,,Land Survey Solutions Ltd,1274810,,,,14/06/2021,2200176268,"28,950.00",,Payments to main contractor,,,,,,No
The Royal Borough of Kensington and Chelsea,RBKC,,Capital,Capital,,Landmark Environmental Ltd,1272305,,,,14/04/2021,2200163743,"3,814.00",,Other Consultants,,,,,,No
The Royal Borough of Kensington and Chelsea,RBKC,,Capital,Capital,,Landmark Environmental Ltd,1272305,,,,14/04/2021,2200163764,"3,393.00",,Other Consultants,,,,,,No
The Royal Borough of Kensington and Chelsea,RBKC,,Capital,Capital,,Landmark Environmental Ltd,1272305,,,,28/05/2021,2200173476,"12,302.00",,Other Consultants,,,,,,No
The Royal Borough of Kensington and Chelsea,RBKC,,Capital,Capital,,Landmark Environmental Ltd,1272305,,,,28/05/2021,2200173479,"2,079.00",,Other Consultants,,,,,,No
The Royal Borough of Kensington and Chelsea,RBKC,,Capital,Capital,,Landmark Environmental Ltd,1272305,,,,17/06/2021,2200177202,"2,854.00",,Other Consultants,,,,,,No
The Royal Borough of Kensington and Chelsea,RBKC,,Capital,Capital,,Landrock Phillips Ltd ,1230566,,,,07/04/2021,2200161877,"1,125.00",,Romanse Expenses,,,,,,No
The Royal Borough of Kensington and Chelsea,RBKC,,Capital,Capital,,Landrock Phillips Ltd ,1230566,,,,17/05/2021,2200170664,950.00,,Romanse Expenses,,,,,,No
The Royal Borough of Kensington and Chelsea,RBKC,,Capital,Capital,,Landrock Phillips Ltd ,1230566,,,,14/06/2021,2200176309,500.00,,Site Works,,,,,,No
The Royal Borough of Kensington and Chelsea,RBKC,,Capital,Capital,,Learning Tree International Ltd,1277994,,,,13/05/2021,2200169980,500.00,,Computer Equipment,,,,,,No
The Royal Borough of Kensington and Chelsea,RBKC,,Capital,Capital,,Lend Lease Consulting (Emea) Ltd ,1234899,,,,07/05/2021,2200168535,"8,687.00",,Romanse Expenses,,,,,,No
The Royal Borough of Kensington and Chelsea,RBKC,,Capital,Capital,,Lend Lease Consulting (Emea) Ltd ,1234899,,,,07/05/2021,2200168537,"8,687.00",,Romanse Expenses,,,,,,No
The Royal Borough of Kensington and Chelsea,RBKC,,Capital,Capital,,Lend Lease Consulting (Emea) Ltd ,1234899,,,,03/06/2021,2200174229,"8,687.00",,Romanse Expenses,,,,,,No
The Royal Borough of Kensington and Chelsea,RBKC,,Capital,Capital,,Lend Lease Consulting (Emea) Ltd ,1234899,,,,22/06/2021,2200178029,"8,687.00",,Romanse Expenses,,,,,,No
The Royal Borough of Kensington and Chelsea,RBKC,,Capital,Capital,,London Borough Of Haringey (General Account),1231804,,,,14/05/2021,2200170487,"14,686.27",,Payments to sub contractor,,,,,,No
The Royal Borough of Kensington and Chelsea,RBKC,,Capital,Capital,,London Fire Solutions LLP ,1231392,,,,13/04/2021,2200163401,"1,696.00",,Payments to main contractor,,,,,,No
The Royal Borough of Kensington and Chelsea,RBKC,,Capital,Capital,,London Fire Solutions LLP ,1231392,,,,13/04/2021,2200163568,"21,364.80",,Payments to main contractor,,,,,,No
The Royal Borough of Kensington and Chelsea,RBKC,,Capital,Capital,,London Fire Solutions LLP ,1231392,,,,14/04/2021,2200163695,"2,669.00",,Accommodation,,,,,,No
The Royal Borough of Kensington and Chelsea,RBKC,,Capital,Capital,,London Fire Solutions LLP ,1231392,,,,08/06/2021,2200175288,"7,804.50",,Payments to main contractor,,,,,,No
The Royal Borough of Kensington and Chelsea,RBKC,,Capital,Capital,,London Fire Solutions LLP ,1231392,,,,08/06/2021,2200175289,"14,504.21",,Payments to main contractor,,,,,,No
The Royal Borough of Kensington and Chelsea,RBKC,,Capital,Capital,,London Fire Solutions LLP ,1231392,,,,08/06/2021,2200175290,"8,330.06",,Payments to main contractor,,,,,,No
The Royal Borough of Kensington and Chelsea,RBKC,,Capital,Capital,,London Grid For Learning Trust ,1234932,,,,23/06/2021,2200178373,"6,995.00",,Payments to main contractor,,,,,,No
The Royal Borough of Kensington and Chelsea,RBKC,,Capital,Capital,,London Grid For Learning Trust ,1234932,,,,23/06/2021,2200178434,"9,077.56",,Romanse Expenses,,,,,,No
The Royal Borough of Kensington and Chelsea,RBKC,,Capital,Capital,,Lones UK Limited t/a Direct 2U,1277775,,,,04/05/2021,2200167760,701.46,,,,,,,,No
The Royal Borough of Kensington and Chelsea,RBKC,,Capital,Capital,,Lones UK Limited t/a Direct 2U,1277775,,,,04/05/2021,2200167762,"2,016.14",,,,,,,,No
The Royal Borough of Kensington and Chelsea,RBKC,,Capital,Capital,,MDA Consulting Limited ,1234989,,,,06/04/2021,2200161605,"1,760.00",,,,,,,,No
The Royal Borough of Kensington and Chelsea,RBKC,,Capital,Capital,,MDA Consulting Limited ,1234989,,,,28/04/2021,2200166826,"1,100.00",,Other Consultants,,,,,,No
The Royal Borough of Kensington and Chelsea,RBKC,,Capital,Capital,,MDA Consulting Limited ,1234989,,,,04/05/2021,2200167789,"1,958.00",,,,,,,,No
The Royal Borough of Kensington and Chelsea,RBKC,,Capital,Capital,,MDA Consulting Limited ,1234989,,,,06/05/2021,2200168326,946.00,,Payments to main contractor,,,,,,No
The Royal Borough of Kensington and Chelsea,RBKC,,Capital,Capital,,MDA Consulting Limited ,1234989,,,,26/05/2021,2200173017,880.00,,Other Consultants,,,,,,No
The Royal Borough of Kensington and Chelsea,RBKC,,Capital,Capital,,MDA Consulting Limited ,1234989,,,,02/06/2021,2200174034,600.00,,Payments to main contractor,,,,,,No
The Royal Borough of Kensington and Chelsea,RBKC,,Capital,Capital,,MDA Consulting Limited ,1234989,,,,03/06/2021,2200174168,600.00,,Payments to main contractor,,,,,,No
The Royal Borough of Kensington and Chelsea,RBKC,,Capital,Capital,,MDA Consulting Limited ,1234989,,,,04/06/2021,2200174541,"1,980.00",,,,,,,,No
The Royal Borough of Kensington and Chelsea,RBKC,,Capital,Capital,,MDA Consulting Limited ,1234989,,,,22/06/2021,2200177970,990.00,,Payments to main contractor,,,,,,No
The Royal Borough of Kensington and Chelsea,RBKC,,Capital,Capital,,MEC London Ltd ,1231398,,,,29/04/2021,2200167110,"20,000.00",,Planned Maintenance (CM),,,,,,No
The Royal Borough of Kensington and Chelsea,RBKC,,Capital,Capital,,MEC London Ltd ,1231398,,,,25/05/2021,2200172423,"20,151.88",,Planned Maintenance (CM),,,,,,No
The Royal Borough of Kensington and Chelsea,RBKC,,Capital,Capital,,MEC London Ltd ,1231398,,,,25/05/2021,2200172424,"20,000.00",,Planned Maintenance (CM),,,,,,No
The Royal Borough of Kensington and Chelsea,RBKC,,Capital,Capital,,MEC London Ltd ,1231398,,,,25/05/2021,2200172489,"20,140.00",,Planned Maintenance (CM),,,,,,No
The Royal Borough of Kensington and Chelsea,RBKC,,Capital,Capital,,MEC London Ltd ,1231398,,,,22/06/2021,2200178078,"44,000.00",,Planned Maintenance (CM),,,,,,No
The Royal Borough of Kensington and Chelsea,RBKC,,Capital,Capital,,MMM Architects Ltd,1259041,,,,01/04/2021,2200161407,"1,500.00",,Payments to main contractor,,,,,,No
The Royal Borough of Kensington and Chelsea,RBKC,,Capital,Capital,,MMM Architects Ltd,1259041,,,,06/05/2021,2200168234,"1,500.00",,Payments to main contractor,,,,,,No
The Royal Borough of Kensington and Chelsea,RBKC,,Capital,Capital,,MMM Architects Ltd,1259041,,,,04/06/2021,2200174513,"1,500.00",,Payments to main contractor,,,,,,No
The Royal Borough of Kensington and Chelsea,RBKC,,Capital,Capital,,Mace Limited ,1230643,,,,12/04/2021,2200163176,"1,582,180.73",,Romanse Expenses,,,,,,No
The Royal Borough of Kensington and Chelsea,RBKC,,Capital,Capital,,Mace Limited ,1230643,,,,11/05/2021,2200169428,"1,186,664.83",,Romanse Expenses,,,,,,No
The Royal Borough of Kensington and Chelsea,RBKC,,Capital,Capital,,Mace Limited ,1230643,,,,08/06/2021,2200175348,"1,337,756.19",,Romanse Expenses,,,,,,No
The Royal Borough of Kensington and Chelsea,RBKC,,Capital,Capital,,Malcolm Hollis LLP ,1230657,,,,23/04/2021,2200165915,"7,792.05",,Payments to main contractor,,,,,,No
The Royal Borough of Kensington and Chelsea,RBKC,,Capital,Capital,,Maracom Limited ,1255577,,,,20/05/2021,2200171370,"1,025.00",,Planned Maintenance (CM),,,,,,No
The Royal Borough of Kensington and Chelsea,RBKC,,Capital,Capital,,Marks Consulting Partners Limited,1274728,,,,09/04/2021,2200162805,960.00,,B*Strategic Building Maintenance,,,,,,No
The Royal Borough of Kensington and Chelsea,RBKC,,Capital,Capital,,Marks Consulting Partners Limited,1274728,,,,16/04/2021,2200164244,960.00,,B*Strategic Building Maintenance,,,,,,No
The Royal Borough of Kensington and Chelsea,RBKC,,Capital,Capital,,Marks Consulting Partners Limited,1274728,,,,22/04/2021,2200165636,"1,200.00",,B*Strategic Building Maintenance,,,,,,No
The Royal Borough of Kensington and Chelsea,RBKC,,Capital,Capital,,Marks Consulting Partners Limited,1274728,,,,28/04/2021,2200166795,720.00,,B*Strategic Building Maintenance,,,,,,No
The Royal Borough of Kensington and Chelsea,RBKC,,Capital,Capital,,Marks Consulting Partners Limited,1274728,,,,07/05/2021,2200168593,"1,200.00",,B*Strategic Building Maintenance,,,,,,No
The Royal Borough of Kensington and Chelsea,RBKC,,Capital,Capital,,Marks Consulting Partners Limited,1274728,,,,20/05/2021,2200171469,630.00,,B*Strategic Building Maintenance,,,,,,No
The Royal Borough of Kensington and Chelsea,RBKC,,Capital,Capital,,Marlborough Primary School ,1232813,,,,29/06/2021,2200179305,"2,218.00",,Payments to main contractor,,,,,,No
The Royal Borough of Kensington and Chelsea,RBKC,,Capital,Capital,,Marlborough Primary School ,1232813,,,,29/06/2021,2200179306,"12,000.00",,Payments to main contractor,,,,,,No
The Royal Borough of Kensington and Chelsea,RBKC,,Capital,Capital,,Master Locking Systems Ltd,1262396,,,,01/04/2021,2200161557,865.49,,Payments to main contractor,,,,,,No
The Royal Borough of Kensington and Chelsea,RBKC,,Capital,Capital,,Master Locking Systems Ltd,1262396,,,,07/06/2021,2200175071,633.39,,Payments to main contractor,,,,,,No
The Royal Borough of Kensington and Chelsea,RBKC,,Capital,Capital,,Master Locking Systems Ltd,1262396,,,,07/06/2021,2200175073,799.26,,Payments to main contractor,,,,,,No
The Royal Borough of Kensington and Chelsea,RBKC,,Capital,Capital,,Master Locking Systems Ltd,1262396,,,,07/06/2021,2200175075,"1,013.04",,Payments to main contractor,,,,,,No
The Royal Borough of Kensington and Chelsea,RBKC,,Capital,Capital,,Meristem Design Limited,1259153,,,,04/05/2021,2200167628,"2,760.00",,Safety Fence & Barriers,,,,,,No
The Royal Borough of Kensington and Chelsea,RBKC,,Capital,Capital,,Meristem Design Limited,1259153,,,,11/06/2021,2200175985,"1,630.00",,Safety Fence & Barriers,,,,,,No
The Royal Borough of Kensington and Chelsea,RBKC,,Capital,Capital,,Michael Dyson Associates Ltd ,1253270,,,,10/05/2021,2200169055,"9,826.13",,,,,,,,No
The Royal Borough of Kensington and Chelsea,RBKC,,Capital,Capital,,Michael Dyson Associates Ltd ,1253270,,,,10/06/2021,2200175736,"9,826.13",,,,,,,,No
The Royal Borough of Kensington and Chelsea,RBKC,,Capital,Capital,,Michael Dyson Associates Ltd ,1253270,,,,28/06/2021,2200179138,"9,826.13",,,,,,,,No
The Royal Borough of Kensington and Chelsea,RBKC,,Capital,Capital,,Montagu Evans LLP ,1230713,,,,13/04/2021,2200163475,"2,400.00",,Payments to main contractor,,,,,,No
The Royal Borough of Kensington and Chelsea,RBKC,,Capital,Capital,,Montagu Evans LLP ,1230713,,,,01/06/2021,2200173756,956.00,,,,,,,,No
The Royal Borough of Kensington and Chelsea,RBKC,,Capital,Capital,,Morgan Sindall Construction,1260362,,,,19/05/2021,2200171115,"27,085.93",,Payments to main contractor,,,,,,No
The Royal Borough of Kensington and Chelsea,RBKC,,Capital,Capital,,Morgan Sindall Construction,1260362,,,,20/05/2021,2200171419,"28,032.86",,Payments to main contractor,,,,,,No
The Royal Borough of Kensington and Chelsea,RBKC,,Capital,Capital,,Morgan Sindall Construction,1260362,,,,20/05/2021,2200171428,"32,021.83",,Payments to main contractor,,,,,,No
The Royal Borough of Kensington and Chelsea,RBKC,,Capital,Capital,,CCTV Advisory,1230718,,,,08/06/2021,2200175228,600.00,,Romanse Expenses,,,,,,No
The Royal Borough of Kensington and Chelsea,RBKC,,Capital,Capital,,Mulalley & Company Ltd ,1231403,,,,01/04/2021,2200163119,"42,814.36",,Payments to main contractor,,,,,,No
The Royal Borough of Kensington and Chelsea,RBKC,,Capital,Capital,,Mulalley & Company Ltd ,1231403,,,,19/05/2021,2200171140,"70,697.85",,Payments to main contractor,,,,,,No
The Royal Borough of Kensington and Chelsea,RBKC,,Capital,Capital,,Mulalley & Company Ltd ,1231403,,,,08/06/2021,2200175283,"93,769.84",,Payments to main contractor,,,,,,No
The Royal Borough of Kensington and Chelsea,RBKC,,Capital,Capital,,Mulalley & Company Ltd ,1231403,,,,29/06/2021,2200179294,"108,013.94",,Payments to main contractor,,,,,,No
The Royal Borough of Kensington and Chelsea,RBKC,,Capital,Capital,,Munns Ltd,1231404,,,,12/05/2021,2200169796,"1,445.00",,Romanse Expenses,,,,,,No
The Royal Borough of Kensington and Chelsea,RBKC,,Capital,Capital,,NAL Ltd ,1235045,,,,18/05/2021,2200170881,"11,552.42",,Payments to main contractor,,,,,,No
The Royal Borough of Kensington and Chelsea,RBKC,,Capital,Capital,,NORTH SV LIMITED,1271756,,,,27/04/2021,2200166428,"21,066.00",,Other capital equipment,,,,,,No
The Royal Borough of Kensington and Chelsea,RBKC,,Capital,Capital,,NORTH SV LIMITED,1271756,,,,11/05/2021,2200169220,"140,000.00",,Other capital equipment,,,,,,No
The Royal Borough of Kensington and Chelsea,RBKC,,Capital,Capital,,NORTH SV LIMITED,1271756,,,,18/06/2021,2200177420,"30,000.00",,Other capital equipment,,,,,,No
The Royal Borough of Kensington and Chelsea,RBKC,,Capital,Capital,,NPS Property Consultants Ltd ,1235087,,,,05/05/2021,2200167977,"3,090.00",,Site Works,,,,,,No
The Royal Borough of Kensington and Chelsea,RBKC,,Capital,Capital,,Nathaniel Lichfields and Partners,1265397,,,,12/04/2021,2200163169,585.00,,,,,,,,No
The Royal Borough of Kensington and Chelsea,RBKC,,Capital,Capital,,Network Rail Infrastructure Ltd ,1231408,,,,26/04/2021,2200166160,"1,274.34",,Payments to main contractor,,,,,,No
The Royal Borough of Kensington and Chelsea,RBKC,,Capital,Capital,,Network Rail Infrastructure Ltd ,1231408,,,,30/06/2021,2200179533,"2,631.42",,Payments to main contractor,,,,,,No
The Royal Borough of Kensington and Chelsea,RBKC,,Capital,Capital,,New Square Chambers Ltd ,1252408,,,,23/04/2021,2200165928,"1,340.00",,Legal Fees & expenses,,,,,,No
The Royal Borough of Kensington and Chelsea,RBKC,,Capital,Capital,,New Square Chambers Ltd ,1252408,,,,04/05/2021,2200167599,"2,900.00",,Legal Fees & expenses,,,,,,No
The Royal Borough of Kensington and Chelsea,RBKC,,Capital,Capital,,Norman Rourke Pryme Limited ,1230778,,,,06/04/2021,2200161554,750.00,,Romanse Expenses,,,,,,No
The Royal Borough of Kensington and Chelsea,RBKC,,Capital,Capital,,Oakland Building Services Ltd ,1231410,,,,15/04/2021,2200163873,"10,660.00",,Payments to main contractor,,,,,,No
The Royal Borough of Kensington and Chelsea,RBKC,,Capital,Capital,,Oakleaf Surveying Ltd ,1230946,,,,29/04/2021,2200167112,"1,200.00",,Planned Maintenance (CM),,,,,,No
The Royal Borough of Kensington and Chelsea,RBKC,,Capital,Capital,,Oakleaf Surveying Ltd ,1230946,,,,02/06/2021,2200173908,"1,200.00",,Planned Maintenance (CM),,,,,,No
The Royal Borough of Kensington and Chelsea,RBKC,,Capital,Capital,,Octavia Housing (Main Account) ,1230955,,,,20/05/2021,2200171513,"8,890.00",,Payments to main contractor,,,,,,No
The Royal Borough of Kensington and Chelsea,RBKC,,Capital,Capital,,Onsite Central Ltd,1269811,,,,25/05/2021,2200172418,900.00,,Payments to main contractor,,,,,,No
The Royal Borough of Kensington and Chelsea,RBKC,,Capital,Capital,,Oracle Security Services Ltd ,1258033,,,,06/04/2021,2200161661,"3,527.56",,Site Sup'n ( HCC consultant ),,,,,,No
The Royal Borough of Kensington and Chelsea,RBKC,,Capital,Capital,,Oracle Security Services Ltd ,1258033,,,,19/04/2021,2200164539,"2,804.32",,Site Sup'n ( HCC consultant ),,,,,,No
The Royal Borough of Kensington and Chelsea,RBKC,,Capital,Capital,,Oracle Security Services Ltd ,1258033,,,,04/05/2021,2200167752,"2,578.92",,Site Sup'n ( HCC consultant ),,,,,,No
The Royal Borough of Kensington and Chelsea,RBKC,,Capital,Capital,,Oracle Security Services Ltd ,1258033,,,,11/05/2021,2200169442,"2,578.92",,Site Sup'n ( HCC consultant ),,,,,,No
The Royal Borough of Kensington and Chelsea,RBKC,,Capital,Capital,,Oracle Security Services Ltd ,1258033,,,,11/05/2021,2200169460,"2,621.92",,Site Sup'n ( HCC consultant ),,,,,,No
The Royal Borough of Kensington and Chelsea,RBKC,,Capital,Capital,,Oracle Security Services Ltd ,1258033,,,,16/05/2021,2200170608,"2,506.56",,Site Sup'n ( HCC consultant ),,,,,,No
The Royal Borough of Kensington and Chelsea,RBKC,,Capital,Capital,,Oracle Security Services Ltd ,1258033,,,,16/05/2021,2200170609,"2,506.56",,Site Sup'n ( HCC consultant ),,,,,,No
The Royal Borough of Kensington and Chelsea,RBKC,,Capital,Capital,,Oracle Security Services Ltd ,1258033,,,,16/05/2021,2200170610,"2,506.56",,Site Sup'n ( HCC consultant ),,,,,,No
The Royal Borough of Kensington and Chelsea,RBKC,,Capital,Capital,,Oracle Security Services Ltd ,1258033,,,,16/05/2021,2200170611,"2,506.56",,Site Sup'n ( HCC consultant ),,,,,,No
The Royal Borough of Kensington and Chelsea,RBKC,,Capital,Capital,,Oracle Security Services Ltd ,1258033,,,,16/05/2021,2200170612,"2,506.56",,Site Sup'n ( HCC consultant ),,,,,,No
The Royal Borough of Kensington and Chelsea,RBKC,,Capital,Capital,,Orchard Building Solutions Ltd,1276458,,,,01/04/2021,2200161009,"7,890.00",,Site Works,,,,,,No
The Royal Borough of Kensington and Chelsea,RBKC,,Capital,Capital,,Osborn Associates Ltd,1262963,,,,01/04/2021,2200162595,"2,100.00",,Payments to main contractor,,,,,,No
The Royal Borough of Kensington and Chelsea,RBKC,,Capital,Capital,,Osborn Associates Ltd,1262963,,,,12/04/2021,2200163094,800.00,,Payments to main contractor,,,,,,No
The Royal Borough of Kensington and Chelsea,RBKC,,Capital,Capital,,Osborn Associates Ltd,1262963,,,,13/04/2021,2200163461,"2,000.00",,Payments to main contractor,,,,,,No
The Royal Borough of Kensington and Chelsea,RBKC,,Capital,Capital,,Osborn Associates Ltd,1262963,,,,23/04/2021,2200165760,"6,300.00",,Payments to main contractor,,,,,,No
The Royal Borough of Kensington and Chelsea,RBKC,,Capital,Capital,,Osborn Associates Ltd,1262963,,,,26/04/2021,2200166116,"4,820.00",,Payments to main contractor,,,,,,No
The Royal Borough of Kensington and Chelsea,RBKC,,Capital,Capital,,Osborn Associates Ltd,1262963,,,,26/04/2021,2200166117,"1,060.80",,Payments to main contractor,,,,,,No
The Royal Borough of Kensington and Chelsea,RBKC,,Capital,Capital,,Osborn Associates Ltd,1262963,,,,26/04/2021,2200166131,"14,700.25",,Payments to main contractor,,,,,,No
The Royal Borough of Kensington and Chelsea,RBKC,,Capital,Capital,,Osborn Associates Ltd,1262963,,,,26/04/2021,2200166135,"8,200.00",,Payments to main contractor,,,,,,No
The Royal Borough of Kensington and Chelsea,RBKC,,Capital,Capital,,Osborn Associates Ltd,1262963,,,,04/05/2021,2200167627,"1,675.00",,Payments to main contractor,,,,,,No
The Royal Borough of Kensington and Chelsea,RBKC,,Capital,Capital,,Osborn Associates Ltd,1262963,,,,11/05/2021,2200169450,"5,600.00",,Engineering Consultancy Fees,,,,,,No
The Royal Borough of Kensington and Chelsea,RBKC,,Capital,Capital,,Osborn Associates Ltd,1262963,,,,11/05/2021,2200169458,"4,550.00",,Engineering Consultancy Fees,,,,,,No
The Royal Borough of Kensington and Chelsea,RBKC,,Capital,Capital,,Osborn Associates Ltd,1262963,,,,13/05/2021,2200170224,"18,500.00",,Engineering Consultancy Fees,,,,,,No
The Royal Borough of Kensington and Chelsea,RBKC,,Capital,Capital,,Osborn Associates Ltd,1262963,,,,18/05/2021,2200170983,"1,800.00",,Payments to main contractor,,,,,,No
The Royal Borough of Kensington and Chelsea,RBKC,,Capital,Capital,,Osborn Associates Ltd,1262963,,,,18/05/2021,2200170984,"27,764.00",,Payments to main contractor,,,,,,No
The Royal Borough of Kensington and Chelsea,RBKC,,Capital,Capital,,Osborn Associates Ltd,1262963,,,,18/05/2021,2200170985,"3,289.75",,Payments to main contractor,,,,,,No
The Royal Borough of Kensington and Chelsea,RBKC,,Capital,Capital,,Osborn Associates Ltd,1262963,,,,19/05/2021,2200171114,"2,100.00",,Payments to main contractor,,,,,,No
The Royal Borough of Kensington and Chelsea,RBKC,,Capital,Capital,,Osborn Associates Ltd,1262963,,,,25/05/2021,2200172419,"7,000.00",,Romanse Expenses,,,,,,No
The Royal Borough of Kensington and Chelsea,RBKC,,Capital,Capital,,Osborn Associates Ltd,1262963,,,,03/06/2021,2200174231,"9,385.00",,Payments to main contractor,,,,,,No
The Royal Borough of Kensington and Chelsea,RBKC,,Capital,Capital,,Osborn Associates Ltd,1262963,,,,04/06/2021,2200174594,"3,650.00",,Payments to main contractor,,,,,,No
The Royal Borough of Kensington and Chelsea,RBKC,,Capital,Capital,,Osborn Associates Ltd,1262963,,,,04/06/2021,2200174595,932.00,,Payments to main contractor,,,,,,No
The Royal Borough of Kensington and Chelsea,RBKC,,Capital,Capital,,Osborn Associates Ltd,1262963,,,,09/06/2021,2200175526,"4,200.00",,B*Surveyors,,,,,,No
The Royal Borough of Kensington and Chelsea,RBKC,,Capital,Capital,,Osborn Associates Ltd,1262963,,,,21/06/2021,2200177817,"12,900.00",,Engineering Consultancy Fees,,,,,,No
The Royal Borough of Kensington and Chelsea,RBKC,,Capital,Capital,,Osborn Associates Ltd,1262963,,,,30/06/2021,2200179617,"2,700.00",,B*Surveyors,,,,,,No
The Royal Borough of Kensington and Chelsea,RBKC,,Capital,Capital,,Osborne Thomas Ltd,1261917,,,,01/04/2021,2200164027,"12,101.46",,Payments to main contractor,,,,,,No
The Royal Borough of Kensington and Chelsea,RBKC,,Capital,Capital,,Osborne Thomas Ltd,1261917,,,,01/04/2021,2200165786,"3,413.23",,Payments to main contractor,,,,,,No
The Royal Borough of Kensington and Chelsea,RBKC,,Capital,Capital,,Osborne Thomas Ltd,1261917,,,,16/04/2021,2200164011,"8,734.81",,Payments to main contractor,,,,,,No
The Royal Borough of Kensington and Chelsea,RBKC,,Capital,Capital,,Osborne Thomas Ltd,1261917,,,,23/04/2021,2200165753,"11,578.71",,Payments to main contractor,,,,,,No
The Royal Borough of Kensington and Chelsea,RBKC,,Capital,Capital,,Osborne Thomas Ltd,1261917,,,,28/06/2021,2200179120,"6,555.74",,Payments to main contractor,,,,,,No
The Royal Borough of Kensington and Chelsea,RBKC,,Capital,Capital,,Osborne Thomas Ltd,1261917,,,,28/06/2021,2200179124,"7,045.56",,Payments to main contractor,,,,,,No
The Royal Borough of Kensington and Chelsea,RBKC,,Capital,Capital,,Osborne Thomas Ltd,1261917,,,,28/06/2021,2200179161,"8,611.24",,Payments to main contractor,,,,,,No
The Royal Borough of Kensington and Chelsea,RBKC,,Capital,Capital,,Oxford Gardens Primary School ,1232822,,,,01/04/2021,2200165628,"11,670.59",,Payments to main contractor,,,,,,No
The Royal Borough of Kensington and Chelsea,RBKC,,Capital,Capital,,Oxford Gardens Primary School ,1232822,,,,12/05/2021,2200169746,"2,395.00",,Payments to main contractor,,,,,,No
The Royal Borough of Kensington and Chelsea,RBKC,,Capital,Capital,,Oxford Gardens Primary School ,1232822,,,,26/05/2021,2200172925,"9,645.11",,Payments to main contractor,,,,,,No
The Royal Borough of Kensington and Chelsea,RBKC,,Capital,Capital,,Oxford Gardens Primary School ,1232822,,,,10/06/2021,2200175702,"9,161.22",,Computer Equipment,,,,,,No
The Royal Borough of Kensington and Chelsea,RBKC,,Capital,Capital,,Oxford Gardens Primary School ,1232822,,,,10/06/2021,2200175706,"8,307.40",,Payments to main contractor,,,,,,No
The Royal Borough of Kensington and Chelsea,RBKC,,Capital,Capital,,PAYE Stonework & Restoration Ltd,1257732,,,,21/06/2021,2200177596,"11,515.88",,Planned Maintenance (CM),,,,,,No
The Royal Borough of Kensington and Chelsea,RBKC,,Capital,Capital,,Ppl Training Ltd,1266667,,,,12/04/2021,2200163099,900.00,,Planned Maintenance (CM),,,,,,No
The Royal Borough of Kensington and Chelsea,RBKC,,Capital,Capital,,Pders Key Lifts ,1231418,,,,20/05/2021,2200171429,"1,893.75",,Payments to main contractor,,,,,,No
The Royal Borough of Kensington and Chelsea,RBKC,,Capital,Capital,,Pders Key Lifts ,1231418,,,,15/06/2021,2200176629,"1,675.66",,Payments to main contractor,,,,,,No
The Royal Borough of Kensington and Chelsea,RBKC,,Capital,Capital,,Peabody Trust ,1253387,,,,22/06/2021,2200178083,"2,375.00",,Payments to main contractor,,,,,,No
The Royal Borough of Kensington and Chelsea,RBKC,,Capital,Capital,,Perega Limited,1264035,,,,06/05/2021,2200168214,"1,100.00",,Planned Maintenance (CM),,,,,,No
The Royal Borough of Kensington and Chelsea,RBKC,,Capital,Capital,,Perfect Circle JV Ltd ,1254748,,,,06/04/2021,2200161622,"108,263.00",,Payments to main contractor,,,,,,No
The Royal Borough of Kensington and Chelsea,RBKC,,Capital,Capital,,Perfect Circle JV Ltd ,1254748,,,,06/04/2021,2200161623,"33,779.00",,Payments to main contractor,,,,,,No
The Royal Borough of Kensington and Chelsea,RBKC,,Capital,Capital,,Perfect Circle JV Ltd ,1254748,,,,07/04/2021,2200161795,"86,690.00",,Payments to main contractor,,,,,,No
The Royal Borough of Kensington and Chelsea,RBKC,,Capital,Capital,,Perfect Circle JV Ltd ,1254748,,,,28/04/2021,2200166709,"79,712.00",,Payments to main contractor,,,,,,No
The Royal Borough of Kensington and Chelsea,RBKC,,Capital,Capital,,Perfect Circle JV Ltd ,1254748,,,,06/05/2021,2200168235,"22,000.00",,Payments to main contractor,,,,,,No
The Royal Borough of Kensington and Chelsea,RBKC,,Capital,Capital,,Perfect Circle JV Ltd ,1254748,,,,06/05/2021,2200168237,"23,000.00",,Payments to main contractor,,,,,,No
The Royal Borough of Kensington and Chelsea,RBKC,,Capital,Capital,,Perfect Circle JV Ltd ,1254748,,,,10/05/2021,2200169097,"88,338.00",,Payments to main contractor,,,,,,No
The Royal Borough of Kensington and Chelsea,RBKC,,Capital,Capital,,Perfect Circle JV Ltd ,1254748,,,,21/05/2021,2200171847,"73,922.00",,Payments to main contractor,,,,,,No
The Royal Borough of Kensington and Chelsea,RBKC,,Capital,Capital,,Perfect Circle JV Ltd ,1254748,,,,21/05/2021,2200171848,"128,732.00",,Payments to main contractor,,,,,,No
The Royal Borough of Kensington and Chelsea,RBKC,,Capital,Capital,,Perfect Circle JV Ltd ,1254748,,,,24/05/2021,2200172001,"39,000.00",,Payments to main contractor,,,,,,No
The Royal Borough of Kensington and Chelsea,RBKC,,Capital,Capital,,Perfect Circle JV Ltd ,1254748,,,,24/05/2021,2200172003,"32,750.00",,Payments to main contractor,,,,,,No
The Royal Borough of Kensington and Chelsea,RBKC,,Capital,Capital,,Perfect Circle JV Ltd ,1254748,,,,25/05/2021,2200172420,"37,115.00",,Payments to main contractor,,,,,,No
The Royal Borough of Kensington and Chelsea,RBKC,,Capital,Capital,,Perfect Circle JV Ltd ,1254748,,,,23/06/2021,2200178392,"119,690.00",,Payments to main contractor,,,,,,No
The Royal Borough of Kensington and Chelsea,RBKC,,Capital,Capital,,Perfect Circle JV Ltd ,1254748,,,,23/06/2021,2200178393,"85,650.00",,Payments to main contractor,,,,,,No
The Royal Borough of Kensington and Chelsea,RBKC,,Capital,Capital,,Perfect Circle JV Ltd ,1254748,,,,25/06/2021,2200178838,"41,677.00",,Payments to main contractor,,,,,,No
The Royal Borough of Kensington and Chelsea,RBKC,,Capital,Capital,,Perfect Circle JV Ltd ,1254748,,,,25/06/2021,2200178839,"47,625.38",,Payments to main contractor,,,,,,No
The Royal Borough of Kensington and Chelsea,RBKC,,Capital,Capital,,Perkins & Will UK Limited,1265496,,,,01/04/2021,2200160970,"11,087.00",,Payments to main contractor,,,,,,No
The Royal Borough of Kensington and Chelsea,RBKC,,Capital,Capital,,Perkins & Will UK Limited,1265496,,,,01/04/2021,2200160971,"5,000.00",,Payments to main contractor,,,,,,No
The Royal Borough of Kensington and Chelsea,RBKC,,Capital,Capital,,Perkins & Will UK Limited,1265496,,,,01/04/2021,2200160986,"3,793.00",,Payments to main contractor,,,,,,No
The Royal Borough of Kensington and Chelsea,RBKC,,Capital,Capital,,Perkins & Will UK Limited,1265496,,,,12/04/2021,2200163170,"37,800.00",,Payments to main contractor,,,,,,No
The Royal Borough of Kensington and Chelsea,RBKC,,Capital,Capital,,Perkins & Will UK Limited,1265496,,,,04/05/2021,2200167626,"14,181.00",,Payments to main contractor,,,,,,No
The Royal Borough of Kensington and Chelsea,RBKC,,Capital,Capital,,Perkins & Will UK Limited,1265496,,,,10/05/2021,2200169067,"5,000.00",,Payments to main contractor,,,,,,No
The Royal Borough of Kensington and Chelsea,RBKC,,Capital,Capital,,Perkins & Will UK Limited,1265496,,,,21/05/2021,2200171766,"37,800.00",,Payments to main contractor,,,,,,No
The Royal Borough of Kensington and Chelsea,RBKC,,Capital,Capital,,Perkins & Will UK Limited,1265496,,,,25/05/2021,2200172413,"2,500.00",,Payments to main contractor,,,,,,No
The Royal Borough of Kensington and Chelsea,RBKC,,Capital,Capital,,Perkins & Will UK Limited,1265496,,,,25/05/2021,2200172415,"3,998.80",,Payments to main contractor,,,,,,No
The Royal Borough of Kensington and Chelsea,RBKC,,Capital,Capital,,Perkins & Will UK Limited,1265496,,,,25/05/2021,2200172417,924.00,,Payments to main contractor,,,,,,No
The Royal Borough of Kensington and Chelsea,RBKC,,Capital,Capital,,Perkins & Will UK Limited,1265496,,,,01/06/2021,2200173670,"2,350.00",,Payments to main contractor,,,,,,No
The Royal Borough of Kensington and Chelsea,RBKC,,Capital,Capital,,Perkins & Will UK Limited,1265496,,,,08/06/2021,2200175241,"5,000.00",,Payments to main contractor,,,,,,No
The Royal Borough of Kensington and Chelsea,RBKC,,Capital,Capital,,Perkins & Will UK Limited,1265496,,,,08/06/2021,2200175242,"1,000.00",,Payments to main contractor,,,,,,No
The Royal Borough of Kensington and Chelsea,RBKC,,Capital,Capital,,Perkins & Will UK Limited,1265496,,,,08/06/2021,2200175243,"2,954.00",,Payments to main contractor,,,,,,No
The Royal Borough of Kensington and Chelsea,RBKC,,Capital,Capital,,Perkins & Will UK Limited,1265496,,,,08/06/2021,2200175246,"2,900.00",,Payments to main contractor,,,,,,No
The Royal Borough of Kensington and Chelsea,RBKC,,Capital,Capital,,Perkins & Will UK Limited,1265496,,,,08/06/2021,2200175248,"4,115.00",,Payments to main contractor,,,,,,No
The Royal Borough of Kensington and Chelsea,RBKC,,Capital,Capital,,Perkins & Will UK Limited,1265496,,,,08/06/2021,2200175332,"37,800.00",,Payments to main contractor,,,,,,No
The Royal Borough of Kensington and Chelsea,RBKC,,Capital,Capital,,PingLockker LTD ,1257077,,,,20/05/2021,2200171409,"6,000.00",,Computer Software,,,,,,No
The Royal Borough of Kensington and Chelsea,RBKC,,Capital,Capital,,PingLockker LTD ,1257077,,,,20/05/2021,2200171410,"2,900.00",,Computer Equipment,,,,,,No
The Royal Borough of Kensington and Chelsea,RBKC,,Capital,Capital,,Pinsent Masons LLP ,1235160,,,,27/04/2021,2200166371,"12,048.00",,Legal Fees & expenses,,,,,,No
The Royal Borough of Kensington and Chelsea,RBKC,,Capital,Capital,,Pinsent Masons LLP ,1235160,,,,23/06/2021,2200178431,"7,680.00",,Legal Fees & expenses,,,,,,No
The Royal Borough of Kensington and Chelsea,RBKC,,Capital,Capital,,Pioneer Site Services Lim,1266411,,,,06/04/2021,2200161571,"8,731.65",,Payments to main contractor,,,,,,No
The Royal Borough of Kensington and Chelsea,RBKC,,Capital,Capital,,Pioneer Site Services Lim,1266411,,,,16/06/2021,2200176993,"6,729.95",,Payments to main contractor,,,,,,No
The Royal Borough of Kensington and Chelsea,RBKC,,Capital,Capital,,Point 2 Surveyors,1235179,,,,21/04/2021,2200165238,"1,443.95",,Romanse Expenses,,,,,,No
The Royal Borough of Kensington and Chelsea,RBKC,,Capital,Capital,,Point 2 Surveyors,1235179,,,,20/05/2021,2200171422,"3,082.75",,Payments to main contractor,,,,,,No
The Royal Borough of Kensington and Chelsea,RBKC,,Capital,Capital,,Point 2 Surveyors,1235179,,,,27/05/2021,2200173238,"4,512.00",,Legal Fees & expenses,,,,,,No
The Royal Borough of Kensington and Chelsea,RBKC,,Capital,Capital,,Point 2 Surveyors,1235179,,,,23/06/2021,2200178354,"2,048.75",,Payments to main contractor,,,,,,No
The Royal Borough of Kensington and Chelsea,RBKC,,Capital,Capital,,Preferred Access Ramp Sys,1231420,,,,16/06/2021,2200177043,"1,717.00",,Payments to main contractor,,,,,,No
The Royal Borough of Kensington and Chelsea,RBKC,,Capital,Capital,,Premier Roofing and Construction lt,1277074,,,,11/05/2021,2200169211,"31,543.04",,Planned Maintenance (CM),,,,,,No
The Royal Borough of Kensington and Chelsea,RBKC,,Capital,Capital,,Premier Roofing and Construction lt,1277074,,,,27/05/2021,2200173313,"48,243.66",,Planned Maintenance (CM),,,,,,No
The Royal Borough of Kensington and Chelsea,RBKC,,Capital,Capital,,Project Centre ,1235205,,,,01/04/2021,2200161475,"2,563.00",,Design Consultant,,,,,,No
The Royal Borough of Kensington and Chelsea,RBKC,,Capital,Capital,,Project Centre ,1235205,,,,08/04/2021,2200162481,"1,120.75",,Engineering Consultancy Fees,,,,,,No
The Royal Borough of Kensington and Chelsea,RBKC,,Capital,Capital,,Project Centre ,1235205,,,,20/04/2021,2200164991,"1,668.00",,Design Consultant,,,,,,No
The Royal Borough of Kensington and Chelsea,RBKC,,Capital,Capital,,Project Centre ,1235205,,,,04/05/2021,2200167772,950.00,,Engineering Consultancy Fees,,,,,,No
The Royal Borough of Kensington and Chelsea,RBKC,,Capital,Capital,,Project Centre ,1235205,,,,07/05/2021,2200168588,"2,255.00",,Payments to main contractor,,,,,,No
The Royal Borough of Kensington and Chelsea,RBKC,,Capital,Capital,,Project Centre ,1235205,,,,12/05/2021,2200169630,"16,100.00",,Payments to main contractor,,,,,,No
The Royal Borough of Kensington and Chelsea,RBKC,,Capital,Capital,,Project Centre ,1235205,,,,20/05/2021,2200171663,"1,613.88",,Engineering Consultancy Fees,,,,,,No
The Royal Borough of Kensington and Chelsea,RBKC,,Capital,Capital,,Project Centre ,1235205,,,,15/06/2021,2200176468,"1,250.00",,Payments to main contractor,,,,,,No
The Royal Borough of Kensington and Chelsea,RBKC,,Capital,Capital,,Quadron Services Ltd T/A Idverde ,1231423,,,,07/04/2021,2200161798,"4,188.04",,Other capital equipment,,,,,,No
The Royal Borough of Kensington and Chelsea,RBKC,,Capital,Capital,,Quadron Services Ltd T/A Idverde ,1231423,,,,07/04/2021,2200161799,972.76,,Other capital equipment,,,,,,No
The Royal Borough of Kensington and Chelsea,RBKC,,Capital,Capital,,Quadron Services Ltd T/A Idverde ,1231423,,,,07/04/2021,2200161800,"2,638.36",,Other capital equipment,,,,,,No
The Royal Borough of Kensington and Chelsea,RBKC,,Capital,Capital,,Quadron Services Ltd T/A Idverde ,1231423,,,,07/04/2021,2200161801,"1,683.89",,Other capital equipment,,,,,,No
The Royal Borough of Kensington and Chelsea,RBKC,,Capital,Capital,,Quadron Services Ltd T/A Idverde ,1231423,,,,07/04/2021,2200162077,"1,316.84",,Other capital equipment,,,,,,No
The Royal Borough of Kensington and Chelsea,RBKC,,Capital,Capital,,Quaye Services Ltd,1276338,,,,01/04/2021,2200162612,"2,965.00",,Payments to main contractor,,,,,,No
The Royal Borough of Kensington and Chelsea,RBKC,,Capital,Capital,,Quinn London Ltd,1235230,,,,12/04/2021,2200163131,"2,723.40",,Payments to main contractor,,,,,,No
The Royal Borough of Kensington and Chelsea,RBKC,,Capital,Capital,,Quinn London Ltd,1235230,,,,15/04/2021,2200163860,"513,000.00",,Other Consultants,,,,,,No
The Royal Borough of Kensington and Chelsea,RBKC,,Capital,Capital,,Quinn London Ltd,1235230,,,,12/05/2021,2200169817,"318,250.00",,Other Consultants,,,,,,No
The Royal Borough of Kensington and Chelsea,RBKC,,Capital,Capital,,Quinn London Ltd,1235230,,,,13/05/2021,2200170056,"9,331.36",,Other Consultants,,,,,,No
The Royal Borough of Kensington and Chelsea,RBKC,,Capital,Capital,,Quinn London Ltd,1235230,,,,27/05/2021,2200173184,"30,578.78",,Payments to main contractor,,,,,,No
The Royal Borough of Kensington and Chelsea,RBKC,,Capital,Capital,,Quinn London Ltd,1235230,,,,18/06/2021,2200177394,"17,444.27",,Payments to main contractor,,,,,,No
The Royal Borough of Kensington and Chelsea,RBKC,,Capital,Capital,,Quinn London Ltd,1235230,,,,22/06/2021,2200177911,"214,700.00",,Other Consultants,,,,,,No
The Royal Borough of Kensington and Chelsea,RBKC,,Capital,Capital,,R & Ma Stewart Ltd ,1235232,,,,25/05/2021,2200172670,"1,215.67",,Special Maintenance,,,,,,No
The Royal Borough of Kensington and Chelsea,RBKC,,Capital,Capital,,R Benson Property Mainten,1266216,,,,10/06/2021,2200175807,"5,697.95",,Romanse Expenses,,,,,,No
The Royal Borough of Kensington and Chelsea,RBKC,,Capital,Capital,,R Benson Property Mainten,1266216,,,,11/06/2021,2200176010,"1,128.93",,Payments to main contractor,,,,,,No
The Royal Borough of Kensington and Chelsea,RBKC,,Capital,Capital,,R J Lift Services Ltd ,1257154,,,,29/06/2021,2200179381,"2,890.70",,Romanse Expenses,,,,,,No
The Royal Borough of Kensington and Chelsea,RBKC,,Capital,Capital,,Ram Building Consultancy Ltd,1270409,,,,05/05/2021,2200167975,"1,688.00",,Payments to sub contractor,,,,,,No
The Royal Borough of Kensington and Chelsea,RBKC,,Capital,Capital,,ROOFPRO LONDON LIMITED,1269812,,,,17/06/2021,2200177215,"12,600.00",,Major Roof Repairs - CM,,,,,,No
The Royal Borough of Kensington and Chelsea,RBKC,,Capital,Capital,,RUSSELL TREW LIMITED,1272150,,,,21/06/2021,2200177742,"129,467.97",,Planned Maintenance (CM),,,,,,No
The Royal Borough of Kensington and Chelsea,RBKC,,Capital,Capital,,Race Cottam Associates Limited,1269230,,,,06/04/2021,2200161626,"2,500.00",,Romanse Expenses,,,,,,No
The Royal Borough of Kensington and Chelsea,RBKC,,Capital,Capital,,Race Cottam Associates Limited,1269230,,,,12/04/2021,2200163213,"9,400.00",,Payments to main contractor,,,,,,No
The Royal Borough of Kensington and Chelsea,RBKC,,Capital,Capital,,Ramboll UK Ltd,1274051,,,,19/05/2021,2200171123,"94,842.00",,Payments to main contractor,,,,,,No
The Royal Borough of Kensington and Chelsea,RBKC,,Capital,Capital,,Ramboll UK Ltd,1274051,,,,25/06/2021,2200178963,"67,200.00",,Payments to main contractor,,,,,,No
The Royal Borough of Kensington and Chelsea,RBKC,,Capital,Capital,,Resourcing Group ,1235269,,,,09/04/2021,2200162678,853.56,,B*Strategic Building Maintenance,,,,,,No
The Royal Borough of Kensington and Chelsea,RBKC,,Capital,Capital,,Resourcing Group ,1235269,,,,09/04/2021,2200162681,"1,117.34",,B*Strategic Building Maintenance,,,,,,No
The Royal Borough of Kensington and Chelsea,RBKC,,Capital,Capital,,Resourcing Group ,1235269,,,,16/04/2021,2200164004,"1,030.40",,B*Strategic Building Maintenance,,,,,,No
The Royal Borough of Kensington and Chelsea,RBKC,,Capital,Capital,,Resourcing Group ,1235269,,,,16/04/2021,2200164007,824.32,,B*Strategic Building Maintenance,,,,,,No
The Royal Borough of Kensington and Chelsea,RBKC,,Capital,Capital,,Resourcing Group ,1235269,,,,16/04/2021,2200164008,888.32,,B*Strategic Building Maintenance,,,,,,No
The Royal Borough of Kensington and Chelsea,RBKC,,Capital,Capital,,Resourcing Group ,1235269,,,,16/04/2021,2200164009,948.40,,B*Strategic Building Maintenance,,,,,,No
The Royal Borough of Kensington and Chelsea,RBKC,,Capital,Capital,,Resourcing Group ,1235269,,,,20/04/2021,2200164776,888.32,,B*Strategic Building Maintenance,,,,,,No
The Royal Borough of Kensington and Chelsea,RBKC,,Capital,Capital,,Resourcing Group ,1235269,,,,28/04/2021,2200166788,"1,110.40",,B*Strategic Building Maintenance,,,,,,No
The Royal Borough of Kensington and Chelsea,RBKC,,Capital,Capital,,Resourcing Group ,1235269,,,,28/04/2021,2200166790,569.04,,B*Strategic Building Maintenance,,,,,,No
The Royal Borough of Kensington and Chelsea,RBKC,,Capital,Capital,,Resourcing Group ,1235269,,,,28/04/2021,2200166791,"1,030.40",,B*Strategic Building Maintenance,,,,,,No
The Royal Borough of Kensington and Chelsea,RBKC,,Capital,Capital,,Resourcing Group ,1235269,,,,28/04/2021,2200166821,569.04,,B*Strategic Building Maintenance,,,,,,No
The Royal Borough of Kensington and Chelsea,RBKC,,Capital,Capital,,Resourcing Group ,1235269,,,,07/05/2021,2200168589,"1,110.40",,B*Strategic Building Maintenance,,,,,,No
The Royal Borough of Kensington and Chelsea,RBKC,,Capital,Capital,,Resourcing Group ,1235269,,,,07/05/2021,2200168590,853.56,,B*Strategic Building Maintenance,,,,,,No
The Royal Borough of Kensington and Chelsea,RBKC,,Capital,Capital,,Resourcing Group ,1235269,,,,07/05/2021,2200168591,"1,030.40",,B*Strategic Building Maintenance,,,,,,No
The Royal Borough of Kensington and Chelsea,RBKC,,Capital,Capital,,Resourcing Group ,1235269,,,,07/05/2021,2200168597,"1,030.40",,B*Strategic Building Maintenance,,,,,,No
The Royal Borough of Kensington and Chelsea,RBKC,,Capital,Capital,,Resourcing Group ,1235269,,,,07/05/2021,2200168598,"1,110.40",,B*Strategic Building Maintenance,,,,,,No
The Royal Borough of Kensington and Chelsea,RBKC,,Capital,Capital,,Resourcing Group ,1235269,,,,07/05/2021,2200168599,853.56,,B*Strategic Building Maintenance,,,,,,No
The Royal Borough of Kensington and Chelsea,RBKC,,Capital,Capital,,Resourcing Group ,1235269,,,,14/05/2021,2200170377,687.59,,B*Strategic Building Maintenance,,,,,,No
The Royal Borough of Kensington and Chelsea,RBKC,,Capital,Capital,,Resourcing Group ,1235269,,,,14/05/2021,2200170378,824.32,,B*Strategic Building Maintenance,,,,,,No
The Royal Borough of Kensington and Chelsea,RBKC,,Capital,Capital,,Resourcing Group ,1235269,,,,14/05/2021,2200170379,888.32,,B*Strategic Building Maintenance,,,,,,No
The Royal Borough of Kensington and Chelsea,RBKC,,Capital,Capital,,Resourcing Group ,1235269,,,,20/05/2021,2200171466,"1,030.40",,B*Strategic Building Maintenance,,,,,,No
The Royal Borough of Kensington and Chelsea,RBKC,,Capital,Capital,,Resourcing Group ,1235269,,,,20/05/2021,2200171468,853.56,,B*Strategic Building Maintenance,,,,,,No
The Royal Borough of Kensington and Chelsea,RBKC,,Capital,Capital,,Resourcing Group ,1235269,,,,01/06/2021,2200173740,"1,030.40",,B*Strategic Building Maintenance,,,,,,No
The Royal Borough of Kensington and Chelsea,RBKC,,Capital,Capital,,Resourcing Group ,1235269,,,,01/06/2021,2200173741,853.56,,B*Strategic Building Maintenance,,,,,,No
The Royal Borough of Kensington and Chelsea,RBKC,,Capital,Capital,,Resourcing Group ,1235269,,,,11/06/2021,2200176123,853.56,,B*Strategic Building Maintenance,,,,,,No
The Royal Borough of Kensington and Chelsea,RBKC,,Capital,Capital,,Resourcing Group ,1235269,,,,11/06/2021,2200176125,824.96,,B*Strategic Building Maintenance,,,,,,No
The Royal Borough of Kensington and Chelsea,RBKC,,Capital,Capital,,Resourcing Group ,1235269,,,,11/06/2021,2200176126,618.72,,B*Strategic Building Maintenance,,,,,,No
The Royal Borough of Kensington and Chelsea,RBKC,,Capital,Capital,,Resourcing Group ,1235269,,,,11/06/2021,2200176136,"1,030.40",,B*Strategic Building Maintenance,,,,,,No
The Royal Borough of Kensington and Chelsea,RBKC,,Capital,Capital,,Resourcing Group ,1235269,,,,11/06/2021,2200176138,824.32,,B*Strategic Building Maintenance,,,,,,No
The Royal Borough of Kensington and Chelsea,RBKC,,Capital,Capital,,Resourcing Group ,1235269,,,,11/06/2021,2200176139,687.59,,B*Strategic Building Maintenance,,,,,,No
The Royal Borough of Kensington and Chelsea,RBKC,,Capital,Capital,,Resourcing Group ,1235269,,,,17/06/2021,2200177197,"1,030.40",,B*Strategic Building Maintenance,,,,,,No
The Royal Borough of Kensington and Chelsea,RBKC,,Capital,Capital,,Resourcing Group ,1235269,,,,22/06/2021,2200178048,853.56,,B*Strategic Building Maintenance,,,,,,No
The Royal Borough of Kensington and Chelsea,RBKC,,Capital,Capital,,Resourcing Group ,1235269,,,,25/06/2021,2200178850,"1,030.40",,B*Strategic Building Maintenance,,,,,,No
The Royal Borough of Kensington and Chelsea,RBKC,,Capital,Capital,,Resourcing Group ,1235269,,,,25/06/2021,2200178851,888.32,,B*Strategic Building Maintenance,,,,,,No
The Royal Borough of Kensington and Chelsea,RBKC,,Capital,Capital,,Resourcing Group ,1235269,,,,25/06/2021,2200178852,521.62,,B*Strategic Building Maintenance,,,,,,No
The Royal Borough of Kensington and Chelsea,RBKC,,Capital,Capital,,Restore Harrow Green Limi,1266104,,,,20/04/2021,2200164881,644.20,,Payments to main contractor,,,,,,No
The Royal Borough of Kensington and Chelsea,RBKC,,Capital,Capital,,Restore Harrow Green Limi,1266104,,,,21/05/2021,2200171845,"7,504.78",,Payments to main contractor,,,,,,No
The Royal Borough of Kensington and Chelsea,RBKC,,Capital,Capital,,Restore Harrow Green Limi,1266104,,,,28/06/2021,2200179107,"2,236.00",,Payments to sub contractor,,,,,,No
The Royal Borough of Kensington and Chelsea,RBKC,,Capital,Capital,,Restore Harrow Green Limi,1266104,,,,28/06/2021,2200179107,807.00,,Payments to sub contractor,,,,,,No
The Royal Borough of Kensington and Chelsea,RBKC,,Capital,Capital,,Rider Levett Bucknall UK Ltd,1274167,,,,06/04/2021,2200161511,"24,399.91",,,,,,,,No
The Royal Borough of Kensington and Chelsea,RBKC,,Capital,Capital,,Rider Levett Bucknall UK Ltd,1274167,,,,04/05/2021,2200167751,"15,612.00",,,,,,,,No
The Royal Borough of Kensington and Chelsea,RBKC,,Capital,Capital,,Rider Levett Bucknall UK Ltd,1274167,,,,08/06/2021,2200175284,"1,714.92",,,,,,,,No
The Royal Borough of Kensington and Chelsea,RBKC,,Capital,Capital,,Rider Levett Bucknall UK Ltd,1274167,,,,10/06/2021,2200175809,"4,249.00",,,,,,,,No
The Royal Borough of Kensington and Chelsea,RBKC,,Capital,Capital,,Ridge And Partners LLP ,1231273,,,,01/04/2021,2200160942,"2,392.50",,Payments to main contractor,,,,,,No
The Royal Borough of Kensington and Chelsea,RBKC,,Capital,Capital,,Ridge And Partners LLP ,1231273,,,,04/05/2021,2200167611,"3,705.00",,Payments to main contractor,,,,,,No
The Royal Borough of Kensington and Chelsea,RBKC,,Capital,Capital,,Ridge And Partners LLP ,1231273,,,,13/05/2021,2200170107,"1,600.00",,Payments to main contractor,,,,,,No
The Royal Borough of Kensington and Chelsea,RBKC,,Capital,Capital,,Ridge And Partners LLP ,1231273,,,,21/05/2021,2200171851,"1,200.00",,Payments to main contractor,,,,,,No
The Royal Borough of Kensington and Chelsea,RBKC,,Capital,Capital,,Ridge And Partners LLP ,1231273,,,,01/06/2021,2200173817,"2,640.00",,Payments to main contractor,,,,,,No
The Royal Borough of Kensington and Chelsea,RBKC,,Capital,Capital,,Ridge And Partners LLP ,1231273,,,,02/06/2021,2200173905,"1,200.00",,Payments to main contractor,,,,,,No
The Royal Borough of Kensington and Chelsea,RBKC,,Capital,Capital,,Redact Details,1265790,,,,05/05/2021,2200167953,"3,000.00",,Planned Maintenance (CM),,,,,,No
The Royal Borough of Kensington and Chelsea,RBKC,,Capital,Capital,,Redact Details,1265790,,,,09/06/2021,2200175538,"1,639.00",,Planned Maintenance (CM),,,,,,No
The Royal Borough of Kensington and Chelsea,RBKC,,Capital,Capital,,Redact Details,1265790,,,,10/06/2021,2200175801,"3,458.90",,Planned Maintenance (CM),,,,,,No
The Royal Borough of Kensington and Chelsea,RBKC,,Capital,Capital,,S W Security Ltd ,1235300,,,,01/04/2021,2200167815,"7,197.00",,Payments to main contractor,,,,,,No
The Royal Borough of Kensington and Chelsea,RBKC,,Capital,Capital,,S W Security Ltd ,1235300,,,,13/04/2021,2200163540,"20,046.90",,Payments to main contractor,,,,,,No
The Royal Borough of Kensington and Chelsea,RBKC,,Capital,Capital,,S W Security Ltd ,1235300,,,,30/04/2021,2200167264,840.00,,Payments to main contractor,,,,,,No
The Royal Borough of Kensington and Chelsea,RBKC,,Capital,Capital,,S W Security Ltd ,1235300,,,,18/05/2021,2200170945,"11,529.00",,Payments to main contractor,,,,,,No
The Royal Borough of Kensington and Chelsea,RBKC,,Capital,Capital,,Santia Asbestos Management Ltd ,1255345,,,,20/04/2021,2200164897,"27,542.55",,Planned Maintenance (CM),,,,,,No
The Royal Borough of Kensington and Chelsea,RBKC,,Capital,Capital,,Santia Asbestos Management Ltd ,1255345,,,,25/05/2021,2200172318,"4,518.84",,Planned Maintenance (CM),,,,,,No
The Royal Borough of Kensington and Chelsea,RBKC,,Capital,Capital,,Santia Asbestos Management Ltd ,1255345,,,,25/05/2021,2200172410,"13,028.75",,Planned Maintenance (CM),,,,,,No
The Royal Borough of Kensington and Chelsea,RBKC,,Capital,Capital,,Santia Asbestos Management Ltd ,1255345,,,,26/05/2021,2200172762,"16,038.25",,Planned Maintenance (CM),,,,,,No
The Royal Borough of Kensington and Chelsea,RBKC,,Capital,Capital,,Seth Stein Architects Ltd,1276379,,,,09/04/2021,2200162816,625.00,,Payments to main contractor,,,,,,No
The Royal Borough of Kensington and Chelsea,RBKC,,Capital,Capital,,Seth Stein Architects Ltd,1276379,,,,09/04/2021,2200162818,625.00,,Payments to main contractor,,,,,,No
The Royal Borough of Kensington and Chelsea,RBKC,,Capital,Capital,,Seth Stein Architects Ltd,1276379,,,,09/04/2021,2200162819,625.00,,Payments to main contractor,,,,,,No
The Royal Borough of Kensington and Chelsea,RBKC,,Capital,Capital,,Seth Stein Architects Ltd,1276379,,,,28/04/2021,2200166692,"2,000.00",,B*Surveyors,,,,,,No
The Royal Borough of Kensington and Chelsea,RBKC,,Capital,Capital,,Seth Stein Architects Ltd,1276379,,,,28/04/2021,2200166693,750.00,,B*Surveyors,,,,,,No
The Royal Borough of Kensington and Chelsea,RBKC,,Capital,Capital,,Seth Stein Architects Ltd,1276379,,,,28/04/2021,2200166694,"2,000.00",,B*Surveyors,,,,,,No
The Royal Borough of Kensington and Chelsea,RBKC,,Capital,Capital,,Seth Stein Architects Ltd,1276379,,,,20/05/2021,2200171412,"1,250.00",,Payments to main contractor,,,,,,No
The Royal Borough of Kensington and Chelsea,RBKC,,Capital,Capital,,Seth Stein Architects Ltd,1276379,,,,20/05/2021,2200171413,"2,995.00",,B*Surveyors,,,,,,No
The Royal Borough of Kensington and Chelsea,RBKC,,Capital,Capital,,Seth Stein Architects Ltd,1276379,,,,20/05/2021,2200171414,"3,990.00",,B*Surveyors,,,,,,No
The Royal Borough of Kensington and Chelsea,RBKC,,Capital,Capital,,Seth Stein Architects Ltd,1276379,,,,20/05/2021,2200171426,"6,385.00",,B*Surveyors,,,,,,No
The Royal Borough of Kensington and Chelsea,RBKC,,Capital,Capital,,Siemens Plc,1256361,,,,16/06/2021,2200176980,"30,586.00",,Payments to main contractor,,,,,,No
The Royal Borough of Kensington and Chelsea,RBKC,,Capital,Capital,,Siemens Plc,1256361,,,,16/06/2021,2200176987,"66,000.00",,Payments to main contractor,,,,,,No
The Royal Borough of Kensington and Chelsea,RBKC,,Capital,Capital,,Siemens Plc,1256361,,,,16/06/2021,2200176995,"45,719.00",,Payments to main contractor,,,,,,No
The Royal Borough of Kensington and Chelsea,RBKC,,Capital,Capital,,Skilled Careers Limited,1265647,,,,01/04/2021,2200160992,"1,048.00",,B*Strategic Building Maintenance,,,,,,No
The Royal Borough of Kensington and Chelsea,RBKC,,Capital,Capital,,Skilled Careers Limited,1265647,,,,09/04/2021,2200162793,961.20,,B*Strategic Building Maintenance,,,,,,No
The Royal Borough of Kensington and Chelsea,RBKC,,Capital,Capital,,Skilled Careers Limited,1265647,,,,09/04/2021,2200162794,838.40,,B*Strategic Building Maintenance,,,,,,No
The Royal Borough of Kensington and Chelsea,RBKC,,Capital,Capital,,Skilled Careers Limited,1265647,,,,09/04/2021,2200162804,768.96,,B*Strategic Building Maintenance,,,,,,No
The Royal Borough of Kensington and Chelsea,RBKC,,Capital,Capital,,Skilled Careers Limited,1265647,,,,16/04/2021,2200164013,838.40,,B*Strategic Building Maintenance,,,,,,No
The Royal Borough of Kensington and Chelsea,RBKC,,Capital,Capital,,Skilled Careers Limited,1265647,,,,16/04/2021,2200164014,768.96,,B*Strategic Building Maintenance,,,,,,No
The Royal Borough of Kensington and Chelsea,RBKC,,Capital,Capital,,Skilled Careers Limited,1265647,,,,22/04/2021,2200165543,"1,048.00",,B*Strategic Building Maintenance,,,,,,No
The Royal Borough of Kensington and Chelsea,RBKC,,Capital,Capital,,Skilled Careers Limited,1265647,,,,22/04/2021,2200165566,961.20,,B*Strategic Building Maintenance,,,,,,No
The Royal Borough of Kensington and Chelsea,RBKC,,Capital,Capital,,Skilled Careers Limited,1265647,,,,07/05/2021,2200168426,961.20,,B*Strategic Building Maintenance,,,,,,No
The Royal Borough of Kensington and Chelsea,RBKC,,Capital,Capital,,Skilled Careers Limited,1265647,,,,07/05/2021,2200168585,"1,048.00",,B*Strategic Building Maintenance,,,,,,No
The Royal Borough of Kensington and Chelsea,RBKC,,Capital,Capital,,Skilled Careers Limited,1265647,,,,07/05/2021,2200168586,961.20,,B*Strategic Building Maintenance,,,,,,No
The Royal Borough of Kensington and Chelsea,RBKC,,Capital,Capital,,Skilled Careers Limited,1265647,,,,07/05/2021,2200168587,"1,048.00",,B*Strategic Building Maintenance,,,,,,No
The Royal Borough of Kensington and Chelsea,RBKC,,Capital,Capital,,Skilled Careers Limited,1265647,,,,12/05/2021,2200169709,961.20,,B*Strategic Building Maintenance,,,,,,No
The Royal Borough of Kensington and Chelsea,RBKC,,Capital,Capital,,Skilled Careers Limited,1265647,,,,14/05/2021,2200170380,838.40,,B*Strategic Building Maintenance,,,,,,No
The Royal Borough of Kensington and Chelsea,RBKC,,Capital,Capital,,Skilled Careers Limited,1265647,,,,14/05/2021,2200170381,768.96,,B*Strategic Building Maintenance,,,,,,No
The Royal Borough of Kensington and Chelsea,RBKC,,Capital,Capital,,Skilled Careers Limited,1265647,,,,14/05/2021,2200170383,961.20,,B*Strategic Building Maintenance,,,,,,No
The Royal Borough of Kensington and Chelsea,RBKC,,Capital,Capital,,Skilled Careers Limited,1265647,,,,14/05/2021,2200170385,"1,048.00",,B*Strategic Building Maintenance,,,,,,No
The Royal Borough of Kensington and Chelsea,RBKC,,Capital,Capital,,Skilled Careers Limited,1265647,,,,20/05/2021,2200171465,"1,048.00",,B*Strategic Building Maintenance,,,,,,No
The Royal Borough of Kensington and Chelsea,RBKC,,Capital,Capital,,Skilled Careers Limited,1265647,,,,20/05/2021,2200171471,"1,048.00",,B*Strategic Building Maintenance,,,,,,No
The Royal Borough of Kensington and Chelsea,RBKC,,Capital,Capital,,Skilled Careers Limited,1265647,,,,25/05/2021,2200172674,961.20,,B*Strategic Building Maintenance,,,,,,No
The Royal Borough of Kensington and Chelsea,RBKC,,Capital,Capital,,Skilled Careers Limited,1265647,,,,27/05/2021,2200173191,"1,048.00",,B*Strategic Building Maintenance,,,,,,No
The Royal Borough of Kensington and Chelsea,RBKC,,Capital,Capital,,Skilled Careers Limited,1265647,,,,27/05/2021,2200173209,961.20,,B*Strategic Building Maintenance,,,,,,No
The Royal Borough of Kensington and Chelsea,RBKC,,Capital,Capital,,Skilled Careers Limited,1265647,,,,11/06/2021,2200176129,"1,048.00",,B*Strategic Building Maintenance,,,,,,No
The Royal Borough of Kensington and Chelsea,RBKC,,Capital,Capital,,Skilled Careers Limited,1265647,,,,11/06/2021,2200176130,961.20,,B*Strategic Building Maintenance,,,,,,No
The Royal Borough of Kensington and Chelsea,RBKC,,Capital,Capital,,Skilled Careers Limited,1265647,,,,11/06/2021,2200176137,768.96,,B*Strategic Building Maintenance,,,,,,No
The Royal Borough of Kensington and Chelsea,RBKC,,Capital,Capital,,Skilled Careers Limited,1265647,,,,11/06/2021,2200176145,838.40,,B*Strategic Building Maintenance,,,,,,No
The Royal Borough of Kensington and Chelsea,RBKC,,Capital,Capital,,Skilled Careers Limited,1265647,,,,17/06/2021,2200177186,961.20,,B*Strategic Building Maintenance,,,,,,No
The Royal Borough of Kensington and Chelsea,RBKC,,Capital,Capital,,Skilled Careers Limited,1265647,,,,17/06/2021,2200177191,"1,048.00",,B*Strategic Building Maintenance,,,,,,No
The Royal Borough of Kensington and Chelsea,RBKC,,Capital,Capital,,Skilled Careers Limited,1265647,,,,25/06/2021,2200178837,"1,048.00",,B*Strategic Building Maintenance,,,,,,No
The Royal Borough of Kensington and Chelsea,RBKC,,Capital,Capital,,Skilled Careers Limited,1265647,,,,25/06/2021,2200178845,961.20,,B*Strategic Building Maintenance,,,,,,No
The Royal Borough of Kensington and Chelsea,RBKC,,Capital,Capital,,Spatial Dimensions Limited,1274706,,,,08/06/2021,2200175209,"5,808.00",,Payments to main contractor,,,,,,No
The Royal Borough of Kensington and Chelsea,RBKC,,Capital,Capital,,Spatial Dimensions Limited,1274706,,,,08/06/2021,2200175287,"2,950.00",,Other Consultants,,,,,,No
The Royal Borough of Kensington and Chelsea,RBKC,,Capital,Capital,,St Francis Rc Primary School ,1232833,,,,10/06/2021,2200175703,"10,450.00",,Payments to main contractor,,,,,,No
The Royal Borough of Kensington and Chelsea,RBKC,,Capital,Capital,,St Francis Rc Primary School ,1232833,,,,10/06/2021,2200175705,"3,100.00",,B*Surveyors,,,,,,No
The Royal Borough of Kensington and Chelsea,RBKC,,Capital,Capital,,St Francis Of Assisi Rc Church,1235401,,,,27/05/2021,2200173210,"10,450.00",,Payments to main contractor,,,,,,No
The Royal Borough of Kensington and Chelsea,RBKC,,Capital,Capital,,Stace Llp,1263964,,,,20/04/2021,2200164893,"1,950.00",,Planned Maintenance (CM),,,,,,No
The Royal Borough of Kensington and Chelsea,RBKC,,Capital,Capital,,Stace Llp,1263964,,,,06/05/2021,2200168209,500.00,,Planned Maintenance (CM),,,,,,No
The Royal Borough of Kensington and Chelsea,RBKC,,Capital,Capital,,Stace Llp,1263964,,,,07/05/2021,2200168524,"10,000.00",,Special Maintenance,,,,,,No
The Royal Borough of Kensington and Chelsea,RBKC,,Capital,Capital,,Stace Llp,1263964,,,,07/05/2021,2200168529,"10,000.00",,Special Maintenance,,,,,,No
The Royal Borough of Kensington and Chelsea,RBKC,,Capital,Capital,,Stace Llp,1263964,,,,01/06/2021,2200173730,"4,928.00",,Special Maintenance,,,,,,No
The Royal Borough of Kensington and Chelsea,RBKC,,Capital,Capital,,Stace Llp,1263964,,,,15/06/2021,2200176651,"10,000.00",,Special Maintenance,,,,,,No
The Royal Borough of Kensington and Chelsea,RBKC,,Capital,Capital,,Studio Bednarski Limited,1275610,,,,16/06/2021,2200176746,"8,320.00",,Payments to main contractor,,,,,,No
The Royal Borough of Kensington and Chelsea,RBKC,,Capital,Capital,,Studio Bednarski Limited,1275610,,,,17/06/2021,2200177169,"3,700.00",,Payments to main contractor,,,,,,No
The Royal Borough of Kensington and Chelsea,RBKC,,Capital,Capital,,Suez Recycling and Recovery UK Ltd ,1235441,,,,07/05/2021,2200168429,"3,167,000.00",,Purchase of Vehicles,,,,,,No
The Royal Borough of Kensington and Chelsea,RBKC,,Capital,Capital,,Allied Protection Ltd ,1231167,,,,25/05/2021,2200172367,866.22,,Electricity provision,,,,,,No
The Royal Borough of Kensington and Chelsea,RBKC,,Capital,Capital,,Sutton Projects Ltd,1256140,,,,12/04/2021,2200163133,"4,128.00",,Planned Maintenance (CM),,,,,,No
The Royal Borough of Kensington and Chelsea,RBKC,,Capital,Capital,,Sutton Projects Ltd,1256140,,,,28/04/2021,2200166849,"40,357.19",,Planned Maintenance (CM),,,,,,No
The Royal Borough of Kensington and Chelsea,RBKC,,Capital,Capital,,Sutton Projects Ltd,1256140,,,,26/05/2021,2200173004,"9,406.00",,Planned Maintenance (CM),,,,,,No
The Royal Borough of Kensington and Chelsea,RBKC,,Capital,Capital,,Sykes and Son Limited,1275562,,,,01/04/2021,2200160959,784.00,,Site Works,,,,,,No
The Royal Borough of Kensington and Chelsea,RBKC,,Capital,Capital,,Synthetic Turf Management Limited,1277090,,,,01/04/2021,2200161010,"1,100.00",,Site Works,,,,,,No
The Royal Borough of Kensington and Chelsea,RBKC,,Capital,Capital,,Synthetic Turf Management Limited,1277090,,,,01/04/2021,2200161011,"1,250.00",,Resurfacing,,,,,,No
The Royal Borough of Kensington and Chelsea,RBKC,,Capital,Capital,,Synthetic Turf Management Limited,1277090,,,,01/04/2021,2200161854,"47,404.02",,Resurfacing,,,,,,No
The Royal Borough of Kensington and Chelsea,RBKC,,Capital,Capital,,Tace Manchester Limited,1270502,,,,19/05/2021,2200171121,"52,500.00",,Payments to main contractor,,,,,,No
The Royal Borough of Kensington and Chelsea,RBKC,,Capital,Capital,,TBRE Associates Ltd,1269736,,,,29/04/2021,2200167080,624.00,,,,,,,,No
The Royal Borough of Kensington and Chelsea,RBKC,,Capital,Capital,,TBRE Associates Ltd,1269736,,,,29/04/2021,2200167081,"6,021.61",,,,,,,,No
The Royal Borough of Kensington and Chelsea,RBKC,,Capital,Capital,,TGA Consulting Engineers LLP,1258323,,,,20/04/2021,2200164802,683.88,,Payments to main contractor,,,,,,No
The Royal Borough of Kensington and Chelsea,RBKC,,Capital,Capital,,TGA Consulting Engineers LLP,1258323,,,,07/06/2021,2200174938,683.87,,Payments to main contractor,,,,,,No
The Royal Borough of Kensington and Chelsea,RBKC,,Capital,Capital,,TRAVIS PERKINS,1256072,,,,01/04/2021,2200160973,"3,139.82",,Special Maintenance,,,,,,No
The Royal Borough of Kensington and Chelsea,RBKC,,Capital,Capital,,TRAVIS PERKINS,1256072,,,,19/04/2021,2200164546,814.02,,Special Maintenance,,,,,,No
The Royal Borough of Kensington and Chelsea,RBKC,,Capital,Capital,,TRAVIS PERKINS,1256072,,,,19/04/2021,2200164549,814.02,,Special Maintenance,,,,,,No
The Royal Borough of Kensington and Chelsea,RBKC,,Capital,Capital,,TRAVIS PERKINS,1256072,,,,19/04/2021,2200164578,935.74,,Special Maintenance,,,,,,No
The Royal Borough of Kensington and Chelsea,RBKC,,Capital,Capital,,TRAVIS PERKINS,1256072,,,,19/04/2021,2200164627,"1,170.63",,Special Maintenance,,,,,,No
The Royal Borough of Kensington and Chelsea,RBKC,,Capital,Capital,,TRAVIS PERKINS,1256072,,,,19/04/2021,2200164632,764.80,,Special Maintenance,,,,,,No
The Royal Borough of Kensington and Chelsea,RBKC,,Capital,Capital,,TRAVIS PERKINS,1256072,,,,19/04/2021,2200164646,"1,338.42",,Special Maintenance,,,,,,No
The Royal Borough of Kensington and Chelsea,RBKC,,Capital,Capital,,TRAVIS PERKINS,1256072,,,,19/04/2021,2200164664,509.06,,Special Maintenance,,,,,,No
The Royal Borough of Kensington and Chelsea,RBKC,,Capital,Capital,,TRAVIS PERKINS,1256072,,,,26/04/2021,2200166186,"2,889.00",,Special Maintenance,,,,,,No
The Royal Borough of Kensington and Chelsea,RBKC,,Capital,Capital,,TRAVIS PERKINS,1256072,,,,07/05/2021,2200168409,620.00,,Special Maintenance,,,,,,No
The Royal Borough of Kensington and Chelsea,RBKC,,Capital,Capital,,TRAVIS PERKINS,1256072,,,,25/05/2021,2200172551,"5,647.15",,Special Maintenance,,,,,,No
The Royal Borough of Kensington and Chelsea,RBKC,,Capital,Capital,,TRAVIS PERKINS,1256072,,,,25/05/2021,2200172553,536.00,,Special Maintenance,,,,,,No
The Royal Borough of Kensington and Chelsea,RBKC,,Capital,Capital,,TRAVIS PERKINS,1256072,,,,01/06/2021,2200173764,"2,416.25",,Special Maintenance,,,,,,No
The Royal Borough of Kensington and Chelsea,RBKC,,Capital,Capital,,TRAVIS PERKINS,1256072,,,,01/06/2021,2200173765,"7,559.23",,Special Maintenance,,,,,,No
The Royal Borough of Kensington and Chelsea,RBKC,,Capital,Capital,,TRAVIS PERKINS,1256072,,,,11/06/2021,2200176119,790.00,,Special Maintenance,,,,,,No
The Royal Borough of Kensington and Chelsea,RBKC,,Capital,Capital,,TRAVIS PERKINS,1256072,,,,15/06/2021,2200176599,517.54,,Payments to main contractor,,,,,,No
The Royal Borough of Kensington and Chelsea,RBKC,,Capital,Capital,,Tate Fencing Ltd ,1231604,,,,13/05/2021,2200169984,793.61,,Other capital equipment,,,,,,No
The Royal Borough of Kensington and Chelsea,RBKC,,Capital,Capital,,Tate Fencing Ltd ,1231604,,,,13/05/2021,2200170082,"2,027.52",,Other capital equipment,,,,,,No
The Royal Borough of Kensington and Chelsea,RBKC,,Capital,Capital,,Tate Fencing Ltd ,1231604,,,,18/05/2021,2200170837,"1,294.35",,Other capital equipment,,,,,,No
The Royal Borough of Kensington and Chelsea,RBKC,,Capital,Capital,,Tempus Facilities Management Ltd ,1235468,,,,15/06/2021,2200176652,"17,326.00",,Special Maintenance,,,,,,No
The Royal Borough of Kensington and Chelsea,RBKC,,Capital,Capital,,Tempus Facilities Management Ltd ,1235468,,,,15/06/2021,2200176653,"23,311.47",,Special Maintenance,,,,,,No
The Royal Borough of Kensington and Chelsea,RBKC,,Capital,Capital,,Texo Scaffolding & Construction Ltd,1266685,,,,13/04/2021,2200163533,"7,254.17",,Payments to main contractor,,,,,,No
The Royal Borough of Kensington and Chelsea,RBKC,,Capital,Capital,,Thames Water Utilities Ltd Developer Services & Infra,1231439,,,,18/05/2021,2200171015,"3,625.07",,Water diversion,,,,,,No
The Royal Borough of Kensington and Chelsea,RBKC,,Capital,Capital,,Thames Water Utilities Ltd Developer Services & Infra,1231439,,,,27/05/2021,2200173240,"1,700.00",,Payments to main contractor,,,,,,No
The Royal Borough of Kensington and Chelsea,RBKC,,Capital,Capital,,Thames Water Utilities Ltd Developer Services & Infra,1231439,,,,10/06/2021,2200175818,"4,102.97",,Water provision,,,,,,No
The Royal Borough of Kensington and Chelsea,RBKC,,Capital,Capital,,The National Energy Action Charity,1231670,,,,29/04/2021,2200167085,"1,560.00",,Other Consultants,,,,,,No
The Royal Borough of Kensington and Chelsea,RBKC,,Capital,Capital,,The Retrofit Academy CIC,1276964,,,,25/05/2021,2200172348,"1,299.00",,Other Consultants,,,,,,No
The Royal Borough of Kensington and Chelsea,RBKC,,Capital,Capital,,The Retrofit Academy CIC,1276964,,,,24/06/2021,2200178629,"1,299.00",,Other Consultants,,,,,,No
The Royal Borough of Kensington and Chelsea,RBKC,,Capital,Capital,,The SustainabilityCompany Ltd,1276005,,,,12/04/2021,2200163167,"11,500.00",,Design Consultant,,,,,,No
The Royal Borough of Kensington and Chelsea,RBKC,,Capital,Capital,,The SustainabilityCompany Ltd,1276005,,,,12/05/2021,2200169861,"10,500.00",,Design Consultant,,,,,,No
The Royal Borough of Kensington and Chelsea,RBKC,,Capital,Capital,,The SustainabilityCompany Ltd,1276005,,,,07/06/2021,2200174997,"9,000.00",,Design Consultant,,,,,,No
The Royal Borough of Kensington and Chelsea,RBKC,,Capital,Capital,,The Virtual Tour Experts,1277230,,,,09/04/2021,2200162557,"1,620.00",,Design Consultant,,,,,,No
The Royal Borough of Kensington and Chelsea,RBKC,,Capital,Capital,,Tigg Coll Architects Ltd,1275556,,,,26/04/2021,2200166212,"4,685.00",,HCC - Architects,,,,,,No
The Royal Borough of Kensington and Chelsea,RBKC,,Capital,Capital,,Tigg Coll Architects Ltd,1275556,,,,20/05/2021,2200171431,"13,550.00",,B*Surveyors,,,,,,No
The Royal Borough of Kensington and Chelsea,RBKC,,Capital,Capital,,Tigg Coll Architects Ltd,1275556,,,,16/06/2021,2200176989,"1,500.00",,Payments to main contractor,,,,,,No
The Royal Borough of Kensington and Chelsea,RBKC,,Capital,Capital,,Tigg Coll Architects Ltd,1275556,,,,21/06/2021,2200177664,"1,197.50",,HCC - Architects,,,,,,No
The Royal Borough of Kensington and Chelsea,RBKC,,Capital,Capital,,Trail Services Limited,1270872,,,,20/04/2021,2200164845,"13,795.12",,Payments to main contractor,,,,,,No
The Royal Borough of Kensington and Chelsea,RBKC,,Capital,Capital,,Trail Services Limited,1270872,,,,21/04/2021,2200165241,"18,777.45",,Payments to main contractor,,,,,,No
The Royal Borough of Kensington and Chelsea,RBKC,,Capital,Capital,,Trail Services Limited,1270872,,,,07/06/2021,2200174917,"10,674.48",,Payments to main contractor,,,,,,No
The Royal Borough of Kensington and Chelsea,RBKC,,Capital,Capital,,Transport For London,1231876,,,,07/05/2021,2200168592,"1,668.00",,Design Consultant,,,,,,No
The Royal Borough of Kensington and Chelsea,RBKC,,Capital,Capital,,Tree Wise Men S.E. Ltd ,1231880,,,,19/04/2021,2200164488,"2,922.00",,Payments to main contractor,,,,,,No
The Royal Borough of Kensington and Chelsea,RBKC,,Capital,Capital,,Tree Wise Men S.E. Ltd ,1231880,,,,23/04/2021,2200165838,"7,897.00",,Payments to main contractor,,,,,,No
The Royal Borough of Kensington and Chelsea,RBKC,,Capital,Capital,,Trowers & Hamlins LLP,1235577,,,,28/05/2021,2200173454,513.30,,,,,,,,No
The Royal Borough of Kensington and Chelsea,RBKC,,Capital,Capital,,Turner & Townsend Project Managemen ,1235588,,,,20/04/2021,2200164947,"1,500.00",,Payments to main contractor,,,,,,No
The Royal Borough of Kensington and Chelsea,RBKC,,Capital,Capital,,Turner & Townsend Project Managemen ,1235588,,,,17/05/2021,2200170744,"1,500.00",,Payments to main contractor,,,,,,No
The Royal Borough of Kensington and Chelsea,RBKC,,Capital,Capital,,Uk Power Networks(Operations) Ltd ,1231441,,,,20/04/2021,2200164780,"83,000.00",,Payments to main contractor,,,,,,No
The Royal Borough of Kensington and Chelsea,RBKC,,Capital,Capital,,Urban Eye ,1231910,,,,08/06/2021,2200175206,618.00,,Special Maintenance,,,,,,No
The Royal Borough of Kensington and Chelsea,RBKC,,Capital,Capital,,Urban Green Artist Ltd,1277416,,,,07/04/2021,2200162138,799.50,,Special Maintenance,,,,,,No
The Royal Borough of Kensington and Chelsea,RBKC,,Capital,Capital,,V Management Group,1267552,,,,11/06/2021,2200176146,"2,714.05",,Payments to main contractor,,,,,,No
The Royal Borough of Kensington and Chelsea,RBKC,,Capital,Capital,,VIKFIX LTD,1258701,,,,14/04/2021,2200163697,"58,440.92",,Special Maintenance,,,,,,No
The Royal Borough of Kensington and Chelsea,RBKC,,Capital,Capital,,VIKFIX LTD,1258701,,,,25/05/2021,2200172679,"5,219.97",,Special Maintenance,,,,,,No
The Royal Borough of Kensington and Chelsea,RBKC,,Capital,Capital,,VIKFIX LTD,1258701,,,,25/05/2021,2200172680,"14,141.50",,Special Maintenance,,,,,,No
The Royal Borough of Kensington and Chelsea,RBKC,,Capital,Capital,,VIKFIX LTD,1258701,,,,25/05/2021,2200172681,"12,454.78",,Special Maintenance,,,,,,No
The Royal Borough of Kensington and Chelsea,RBKC,,Capital,Capital,,VIKFIX LTD,1258701,,,,25/05/2021,2200172683,"3,184.24",,Special Maintenance,,,,,,No
The Royal Borough of Kensington and Chelsea,RBKC,,Capital,Capital,,VIKFIX LTD,1258701,,,,25/05/2021,2200172686,"3,249.75",,Special Maintenance,,,,,,No
The Royal Borough of Kensington and Chelsea,RBKC,,Capital,Capital,,VIKFIX LTD,1258701,,,,25/05/2021,2200172687,"5,176.56",,Special Maintenance,,,,,,No
The Royal Borough of Kensington and Chelsea,RBKC,,Capital,Capital,,VIKFIX LTD,1258701,,,,25/05/2021,2200172691,"14,141.50",,Special Maintenance,,,,,,No
The Royal Borough of Kensington and Chelsea,RBKC,,Capital,Capital,,VIKFIX LTD,1258701,,,,25/05/2021,2200172693,"12,962.28",,Special Maintenance,,,,,,No
The Royal Borough of Kensington and Chelsea,RBKC,,Capital,Capital,,VIKFIX LTD,1258701,,,,25/05/2021,2200172694,"4,048.26",,Special Maintenance,,,,,,No
The Royal Borough of Kensington and Chelsea,RBKC,,Capital,Capital,,VIKFIX LTD,1258701,,,,01/06/2021,2200173818,641.95,,Special Maintenance,,,,,,No
The Royal Borough of Kensington and Chelsea,RBKC,,Capital,Capital,,VIKFIX LTD,1258701,,,,01/06/2021,2200173820,"1,827.50",,Special Maintenance,,,,,,No
The Royal Borough of Kensington and Chelsea,RBKC,,Capital,Capital,,VIKFIX LTD,1258701,,,,01/06/2021,2200173822,"1,011.36",,Special Maintenance,,,,,,No
The Royal Borough of Kensington and Chelsea,RBKC,,Capital,Capital,,VIKFIX LTD,1258701,,,,01/06/2021,2200173823,"3,409.35",,Special Maintenance,,,,,,No
The Royal Borough of Kensington and Chelsea,RBKC,,Capital,Capital,,VIKFIX LTD,1258701,,,,03/06/2021,2200174361,604.13,,Special Maintenance,,,,,,No
The Royal Borough of Kensington and Chelsea,RBKC,,Capital,Capital,,VIKFIX LTD,1258701,,,,03/06/2021,2200174363,906.62,,Special Maintenance,,,,,,No
The Royal Borough of Kensington and Chelsea,RBKC,,Capital,Capital,,VIKFIX LTD,1258701,,,,03/06/2021,2200174364,776.48,,Special Maintenance,,,,,,No
The Royal Borough of Kensington and Chelsea,RBKC,,Capital,Capital,,VIKFIX LTD,1258701,,,,09/06/2021,2200175545,807.06,,Special Maintenance,,,,,,No
The Royal Borough of Kensington and Chelsea,RBKC,,Capital,Capital,,VIKFIX LTD,1258701,,,,09/06/2021,2200175550,836.33,,Special Maintenance,,,,,,No
The Royal Borough of Kensington and Chelsea,RBKC,,Capital,Capital,,VIKFIX LTD,1258701,,,,09/06/2021,2200175552,"1,175.62",,Special Maintenance,,,,,,No
The Royal Borough of Kensington and Chelsea,RBKC,,Capital,Capital,,VIKFIX LTD,1258701,,,,09/06/2021,2200175555,"1,283.12",,Special Maintenance,,,,,,No
The Royal Borough of Kensington and Chelsea,RBKC,,Capital,Capital,,VIKFIX LTD,1258701,,,,09/06/2021,2200175568,"1,367.69",,Special Maintenance,,,,,,No
The Royal Borough of Kensington and Chelsea,RBKC,,Capital,Capital,,VIKFIX LTD,1258701,,,,09/06/2021,2200175570,"1,683.94",,Special Maintenance,,,,,,No
The Royal Borough of Kensington and Chelsea,RBKC,,Capital,Capital,,VIKFIX LTD,1258701,,,,09/06/2021,2200175584,"1,618.29",,Special Maintenance,,,,,,No
The Royal Borough of Kensington and Chelsea,RBKC,,Capital,Capital,,VIKFIX LTD,1258701,,,,09/06/2021,2200175588,"1,473.85",,Special Maintenance,,,,,,No
The Royal Borough of Kensington and Chelsea,RBKC,,Capital,Capital,,VIKFIX LTD,1258701,,,,09/06/2021,2200175590,"73,747.00",,Special Maintenance,,,,,,No
The Royal Borough of Kensington and Chelsea,RBKC,,Capital,Capital,,VIKFIX LTD,1258701,,,,09/06/2021,2200175592,"71,013.00",,Special Maintenance,,,,,,No
The Royal Borough of Kensington and Chelsea,RBKC,,Capital,Capital,,VIKFIX LTD,1258701,,,,09/06/2021,2200175595,"3,225.16",,Special Maintenance,,,,,,No
The Royal Borough of Kensington and Chelsea,RBKC,,Capital,Capital,,VIKFIX LTD,1258701,,,,22/06/2021,2200178005,"68,488.37",,Special Maintenance,,,,,,No
The Royal Borough of Kensington and Chelsea,RBKC,,Capital,Capital,,Venn Group Ltd ,1231925,,,,20/04/2021,2200164797,"2,612.50",,B*Strategic Building Maintenance,,,,,,No
The Royal Borough of Kensington and Chelsea,RBKC,,Capital,Capital,,Venn Group Ltd ,1231925,,,,20/04/2021,2200164800,"2,612.50",,B*Strategic Building Maintenance,,,,,,No
The Royal Borough of Kensington and Chelsea,RBKC,,Capital,Capital,,Venn Group Ltd ,1231925,,,,20/04/2021,2200164882,"2,090.00",,B*Strategic Building Maintenance,,,,,,No
The Royal Borough of Kensington and Chelsea,RBKC,,Capital,Capital,,Venn Group Ltd ,1231925,,,,20/04/2021,2200164914,"1,045.00",,B*Strategic Building Maintenance,,,,,,No
The Royal Borough of Kensington and Chelsea,RBKC,,Capital,Capital,,Ventro Ltd,1269242,,,,01/04/2021,2200161214,"32,154.83",,Payments to main contractor,,,,,,No
The Royal Borough of Kensington and Chelsea,RBKC,,Capital,Capital,,Ventro Ltd,1269242,,,,07/05/2021,2200168523,"2,444.10",,Special Maintenance,,,,,,No
The Royal Borough of Kensington and Chelsea,RBKC,,Capital,Capital,,Ventro Ltd,1269242,,,,10/05/2021,2200169701,"13,849.90",,Special Maintenance,,,,,,No
The Royal Borough of Kensington and Chelsea,RBKC,,Capital,Capital,,Virgin Media Business ,1231926,,,,15/04/2021,2200163854,"45,000.02",,Computer Equipment,,,,,,No
The Royal Borough of Kensington and Chelsea,RBKC,,Capital,Capital,,Virgin Media Business ,1231926,,,,12/05/2021,2200169680,"16,950.02",,Computer Equipment,,,,,,No
The Royal Borough of Kensington and Chelsea,RBKC,,Capital,Capital,,Virgin Media Business ,1231926,,,,24/06/2021,2200178737,"5,900.02",,Computer Equipment,,,,,,No
The Royal Borough of Kensington and Chelsea,RBKC,,Capital,Capital,,Virgin Media Ltd,1280121,,,,09/06/2021,2200175581,"7,643.50",,Telecommunications,,,,,,No
The Royal Borough of Kensington and Chelsea,RBKC,,Capital,Capital,,Redact Details,1269416,,,,10/06/2021,2200175810,"1,610.00",,Payments to main contractor,,,,,,No
The Royal Borough of Kensington and Chelsea,RBKC,,Capital,Capital,,WT Partnership Limited,1278307,,,,04/05/2021,2200167569,"10,000.00",,,,,,,,No
The Royal Borough of Kensington and Chelsea,RBKC,,Capital,Capital,,WT Partnership Limited,1278307,,,,26/05/2021,2200172829,"10,000.00",,,,,,,,No
The Royal Borough of Kensington and Chelsea,RBKC,,Capital,Capital,,WT Partnership Limited,1278307,,,,28/05/2021,2200173531,"3,700.00",,Payments to sub contractor,,,,,,No
The Royal Borough of Kensington and Chelsea,RBKC,,Capital,Capital,,WT Partnership Limited,1278307,,,,28/05/2021,2200173536,"1,250.00",,Payments to sub contractor,,,,,,No
The Royal Borough of Kensington and Chelsea,RBKC,,Capital,Capital,,WT Partnership Limited,1278307,,,,28/05/2021,2200173537,"1,250.00",,Payments to sub contractor,,,,,,No
The Royal Borough of Kensington and Chelsea,RBKC,,Capital,Capital,,Warringtonfire Testing and Certific,1278393,,,,09/04/2021,2200162785,"2,320.00",,Other Consultants,,,,,,No
The Royal Borough of Kensington and Chelsea,RBKC,,Capital,Capital,,Westcotec Ltd,1260284,,,,01/04/2021,2200161518,"22,800.00",,Traffic sign & white lines,,,,,,No
The Royal Borough of Kensington and Chelsea,RBKC,,Capital,Capital,,Willmott Dixon Construction Limited,1273037,,,,07/04/2021,2200162042,"30,257.71",,Payments to main contractor,,,,,,No
The Royal Borough of Kensington and Chelsea,RBKC,,Capital,Capital,,Willmott Dixon Construction Limited,1273037,,,,07/04/2021,2200162043,"11,361.16",,Payments to main contractor,,,,,,No
The Royal Borough of Kensington and Chelsea,RBKC,,Capital,Capital,,Willmott Dixon Construction Limited,1273037,,,,16/04/2021,2200164114,"17,360.39",,Payments to main contractor,,,,,,No
The Royal Borough of Kensington and Chelsea,RBKC,,Capital,Capital,,Willmott Dixon Construction Limited,1273037,,,,26/05/2021,2200172995,"240,302.48",,Payments to main contractor,,,,,,No
The Royal Borough of Kensington and Chelsea,RBKC,,Capital,Capital,,Willmott Dixon Construction Limited,1273037,,,,26/05/2021,2200172996,"213,541.74",,Payments to main contractor,,,,,,No
The Royal Borough of Kensington and Chelsea,RBKC,,Capital,Capital,,Willmott Dixon Construction Limited,1273037,,,,21/06/2021,2200177760,"158,840.18",,Payments to main contractor,,,,,,No
The Royal Borough of Kensington and Chelsea,RBKC,,Capital,Capital,,Willmott Dixon Construction Limited,1273037,,,,21/06/2021,2200177762,"166,545.67",,Payments to main contractor,,,,,,No
The Royal Borough of Kensington and Chelsea,RBKC,,Capital,Capital,,Winkworth Development and Commercia,1278903,,,,12/05/2021,2200169772,"8,600.00",,,,,,,,No
The Royal Borough of Kensington and Chelsea,RBKC,,Capital,Capital,,Wsp Uk Ltd ,1231981,,,,20/05/2021,2200171424,"9,900.00",,Payments to main contractor,,,,,,No
